Organisation Code,Organisation Label,Effective Date,Organisational Unit,Service Division Label,Category Internal Name,Purpose,Detailed Expenditure Code,Payment Date,Transaction Number,Irrecoverable VAT Amount,Amount,Capital Or Revenue,Benificiary Name,Procurement Card
Http://opendatacommunities.org/id/metropolitan-district-council/leeds,Leeds City Council,31/08/2017,Environment & Housing,Leeds Building Services,Supplies and Services,Operational Materials,205,29/08/2017,1708-00001,0.00,179.93,R,A & A Electrical Distributors Ltd,No
Http://opendatacommunities.org/id/metropolitan-district-council/leeds,Leeds City Council,31/08/2017,Civic Enterprise Leeds,Commercial Services  ,Supplies and Services,Operational Furniture And Equipment,203,05/07/2017,1708-00002,0.00,1475.00,R,A & D-S W Supplies,Yes
Http://opendatacommunities.org/id/metropolitan-district-council/leeds,Leeds City Council,31/08/2017,Resources and Housing,Strategic Housing Partnerships,Capital,Construction,3,03/08/2017,1708-00003,0.00,31268.10,C,A & P Crontractors Ltd,No
Http://opendatacommunities.org/id/metropolitan-district-council/leeds,Leeds City Council,31/08/2017,Resources and Housing,Strategic Housing Partnerships,Capital,Construction,3,03/08/2017,1708-00004,0.00,26934.90,C,A & P Crontractors Ltd,No
Http://opendatacommunities.org/id/metropolitan-district-council/leeds,Leeds City Council,31/08/2017,Environment & Housing,Leeds Building Services,Supplies and Services,Operational Materials,205,21/08/2017,1708-00005,0.00,124.30,R,A Andrews & Sons (Marbles & Tiles),No
Http://opendatacommunities.org/id/metropolitan-district-council/leeds,Leeds City Council,31/08/2017,Environment & Housing,Leeds Building Services,Supplies and Services,Operational Materials,205,22/08/2017,1708-00006,0.00,196.86,R,A Andrews & Sons (Marbles & Tiles),No
Http://opendatacommunities.org/id/metropolitan-district-council/leeds,Leeds City Council,31/08/2017,Environment & Housing,Parks and Countryside,Supplies and Services,Other Hired And Contracted Services,265,18/08/2017,1708-00007,0.00,270.00,R,A B Jones,No
Http://opendatacommunities.org/id/metropolitan-district-council/leeds,Leeds City Council,31/08/2017,City Development,Libraries  Arts & Heritage,Supplies and Services,Operational Furniture And Equipment,203,23/08/2017,1708-00008,0.00,91.00,R,A C Entertainment Technologies Ltd,No
Http://opendatacommunities.org/id/metropolitan-district-council/leeds,Leeds City Council,31/08/2017,Environment & Housing,Parks and Countryside,Supplies and Services,Bought In Professional Services,277,01/08/2017,1708-00009,0.00,2418.25,R,REDACTED COMMERCIAL CONFIDENTIALITY,No
Http://opendatacommunities.org/id/metropolitan-district-council/leeds,Leeds City Council,31/08/2017,City Development,Highways,Capital,Construction,3,18/08/2017,1708-00010,0.00,231299.84,C,A E Yates Ltd,No
Http://opendatacommunities.org/id/metropolitan-district-council/leeds,Leeds City Council,31/08/2017,Children and Families,Safeguarding Targeted & Specialist,Supplies and Services,General Amenity For Clients/Residents,285,17/08/2017,1708-00011,0.00,73.00,R,REDACTED PERSONAL DATA,No
Http://opendatacommunities.org/id/metropolitan-district-council/leeds,Leeds City Council,31/08/2017,Children and Families,Safeguarding Targeted & Specialist,Transport,Public Transport Expenses,310,17/08/2017,1708-00012,0.00,25.20,R,REDACTED PERSONAL DATA,No
Http://opendatacommunities.org/id/metropolitan-district-council/leeds,Leeds City Council,31/08/2017,Resources and Housing,HRA Housing Leeds,Capital,Other Costs,7,24/08/2017,1708-00013,0.00,300.00,C,REDACTED PERSONAL DATA,No
Http://opendatacommunities.org/id/metropolitan-district-council/leeds,Leeds City Council,31/08/2017,Environment & Housing,Parks And Countryside  ,Supplies and Services,Operational Materials,205,28/07/2017,1708-00014,0.00,46.58,R,A Gray & G Robeson,Yes
Http://opendatacommunities.org/id/metropolitan-district-council/leeds,Leeds City Council,31/08/2017,Resources and Housing,HRA Housing Leeds,Capital,Other Costs,7,17/08/2017,1708-00015,0.00,300.00,C,REDACTED PERSONAL DATA,No
Http://opendatacommunities.org/id/metropolitan-district-council/leeds,Leeds City Council,31/08/2017,Environment & Housing,Leeds Building Services,Supplies and Services,Operational Materials,205,02/08/2017,1708-00016,0.00,93.09,R,A J H  Pump Supply & Repair Ltd,No
Http://opendatacommunities.org/id/metropolitan-district-council/leeds,Leeds City Council,31/08/2017,Environment & Housing,Leeds Building Services,Supplies and Services,Operational Materials,205,02/08/2017,1708-00017,0.00,106.82,R,A J H  Pump Supply & Repair Ltd,No
Http://opendatacommunities.org/id/metropolitan-district-council/leeds,Leeds City Council,31/08/2017,Environment & Housing,Leeds Building Services,Supplies and Services,Operational Materials,205,02/08/2017,1708-00018,0.00,15.90,R,A J H  Pump Supply & Repair Ltd,No
Http://opendatacommunities.org/id/metropolitan-district-council/leeds,Leeds City Council,31/08/2017,Environment & Housing,Leeds Building Services,Supplies and Services,Operational Materials,205,02/08/2017,1708-00019,0.00,45.50,R,A J H  Pump Supply & Repair Ltd,No
Http://opendatacommunities.org/id/metropolitan-district-council/leeds,Leeds City Council,31/08/2017,Environment & Housing,Leeds Building Services,Supplies and Services,Operational Materials,205,02/08/2017,1708-00020,0.00,126.00,R,A J H  Pump Supply & Repair Ltd,No
Http://opendatacommunities.org/id/metropolitan-district-council/leeds,Leeds City Council,31/08/2017,Environment & Housing,Leeds Building Services,Supplies and Services,Operational Materials,205,02/08/2017,1708-00021,0.00,48.85,R,A J H  Pump Supply & Repair Ltd,No
Http://opendatacommunities.org/id/metropolitan-district-council/leeds,Leeds City Council,31/08/2017,Environment & Housing,Leeds Building Services,Supplies and Services,Operational Materials,205,02/08/2017,1708-00022,0.00,187.53,R,A J H  Pump Supply & Repair Ltd,No
Http://opendatacommunities.org/id/metropolitan-district-council/leeds,Leeds City Council,31/08/2017,Environment & Housing,Leeds Building Services,Supplies and Services,Operational Materials,205,02/08/2017,1708-00023,0.00,233.50,R,A J H  Pump Supply & Repair Ltd,No
Http://opendatacommunities.org/id/metropolitan-district-council/leeds,Leeds City Council,31/08/2017,Environment & Housing,Leeds Building Services,Supplies and Services,Operational Materials,205,02/08/2017,1708-00024,0.00,46.00,R,A J H  Pump Supply & Repair Ltd,No
Http://opendatacommunities.org/id/metropolitan-district-council/leeds,Leeds City Council,31/08/2017,Environment & Housing,Leeds Building Services,Supplies and Services,Operational Materials,205,02/08/2017,1708-00025,0.00,354.73,R,A J H  Pump Supply & Repair Ltd,No
Http://opendatacommunities.org/id/metropolitan-district-council/leeds,Leeds City Council,31/08/2017,Environment & Housing,Leeds Building Services,Supplies and Services,Operational Materials,205,02/08/2017,1708-00026,0.00,750.00,R,A J H  Pump Supply & Repair Ltd,No
Http://opendatacommunities.org/id/metropolitan-district-council/leeds,Leeds City Council,31/08/2017,Environment & Housing,Leeds Building Services,Supplies and Services,Operational Materials,205,02/08/2017,1708-00027,0.00,116.32,R,A J H  Pump Supply & Repair Ltd,No
Http://opendatacommunities.org/id/metropolitan-district-council/leeds,Leeds City Council,31/08/2017,Environment & Housing,Leeds Building Services,Supplies and Services,Operational Materials,205,02/08/2017,1708-00028,0.00,27.24,R,A J H  Pump Supply & Repair Ltd,No
Http://opendatacommunities.org/id/metropolitan-district-council/leeds,Leeds City Council,31/08/2017,Environment & Housing,Leeds Building Services,Supplies and Services,Operational Materials,205,02/08/2017,1708-00029,0.00,2158.35,R,A J H  Pump Supply & Repair Ltd,No
Http://opendatacommunities.org/id/metropolitan-district-council/leeds,Leeds City Council,31/08/2017,Environment & Housing,Leeds Building Services,Supplies and Services,Operational Materials,205,04/08/2017,1708-00030,0.00,1086.00,R,A J H  Pump Supply & Repair Ltd,No
Http://opendatacommunities.org/id/metropolitan-district-council/leeds,Leeds City Council,31/08/2017,Environment & Housing,Leeds Building Services,Supplies and Services,Operational Materials,205,04/08/2017,1708-00031,0.00,336.00,R,A J H  Pump Supply & Repair Ltd,No
Http://opendatacommunities.org/id/metropolitan-district-council/leeds,Leeds City Council,31/08/2017,Environment & Housing,Leeds Building Services,Supplies and Services,Operational Materials,205,04/08/2017,1708-00032,0.00,259.90,R,A J H  Pump Supply & Repair Ltd,No
Http://opendatacommunities.org/id/metropolitan-district-council/leeds,Leeds City Council,31/08/2017,Environment & Housing,Leeds Building Services,Supplies and Services,Operational Materials,205,04/08/2017,1708-00033,0.00,245.39,R,A J H  Pump Supply & Repair Ltd,No
Http://opendatacommunities.org/id/metropolitan-district-council/leeds,Leeds City Council,31/08/2017,Environment & Housing,Leeds Building Services,Supplies and Services,Operational Materials,205,04/08/2017,1708-00034,0.00,326.46,R,A J H  Pump Supply & Repair Ltd,No
Http://opendatacommunities.org/id/metropolitan-district-council/leeds,Leeds City Council,31/08/2017,Environment & Housing,Leeds Building Services,Supplies and Services,Operational Materials,205,04/08/2017,1708-00035,0.00,23.30,R,A J H  Pump Supply & Repair Ltd,No
Http://opendatacommunities.org/id/metropolitan-district-council/leeds,Leeds City Council,31/08/2017,Environment & Housing,Leeds Building Services,Supplies and Services,Operational Materials,205,04/08/2017,1708-00036,0.00,259.45,R,A J H  Pump Supply & Repair Ltd,No
Http://opendatacommunities.org/id/metropolitan-district-council/leeds,Leeds City Council,31/08/2017,Environment & Housing,Leeds Building Services,Supplies and Services,Operational Materials,205,22/08/2017,1708-00037,0.00,950.00,R,A J H  Pump Supply & Repair Ltd,No
Http://opendatacommunities.org/id/metropolitan-district-council/leeds,Leeds City Council,31/08/2017,Environment & Housing,Parks and Countryside,Supplies and Services,Operational Materials,205,22/08/2017,1708-00038,0.00,439.00,R,A J H  Pump Supply & Repair Ltd,No
Http://opendatacommunities.org/id/metropolitan-district-council/leeds,Leeds City Council,31/08/2017,Environment & Housing,Parks and Countryside,Supplies and Services,Resaleable Materials,204,02/08/2017,1708-00039,0.00,976.68,R,A J Promotions,No
Http://opendatacommunities.org/id/metropolitan-district-council/leeds,Leeds City Council,31/08/2017,Communities and Environment,Customer Access,Supplies and Services,Resaleable Materials,204,02/08/2017,1708-00040,0.00,43.98,R,A J Promotions,No
Http://opendatacommunities.org/id/metropolitan-district-council/leeds,Leeds City Council,31/08/2017,City Development,Libraries  Arts & Heritage,Supplies and Services,Art Galleries Total Stores,003,11/08/2017,1708-00041,0.00,236.55,R,A J Promotions,No
Http://opendatacommunities.org/id/metropolitan-district-council/leeds,Leeds City Council,31/08/2017,City Development,Libraries  Arts & Heritage,Supplies and Services,Art Galleries Total Stores,003,21/08/2017,1708-00042,0.00,392.00,R,A J Promotions,No
Http://opendatacommunities.org/id/metropolitan-district-council/leeds,Leeds City Council,31/08/2017,Environment & Housing,Parks and Countryside,Supplies and Services,Resaleable Materials,204,23/08/2017,1708-00043,0.00,200.00,R,A J Promotions,No
Http://opendatacommunities.org/id/metropolitan-district-council/leeds,Leeds City Council,31/08/2017,Communities and Environment,Customer Access,Supplies and Services,Resaleable Materials,204,23/08/2017,1708-00044,0.00,106.32,R,A J Promotions,No
Http://opendatacommunities.org/id/metropolitan-district-council/leeds,Leeds City Council,31/08/2017,Children and Families,Safeguarding Targeted & Specialist,Third Party Payments,Services Rendered By Other Organisations,511,18/08/2017,1708-00045,0.00,487.50,R,A Little Something Extra Ltd,No
Http://opendatacommunities.org/id/metropolitan-district-council/leeds,Leeds City Council,31/08/2017,Communities and Environment,Customer Access,Supplies and Services,Other Hired And Contracted Services,265,31/08/2017,1708-00046,0.00,30.75,R,A Musalam,No
Http://opendatacommunities.org/id/metropolitan-district-council/leeds,Leeds City Council,31/08/2017,Communities and Environment,Customer Access,Supplies and Services,Other Hired And Contracted Services,265,02/08/2017,1708-00047,0.00,669.50,R,A Namaki,No
Http://opendatacommunities.org/id/metropolitan-district-council/leeds,Leeds City Council,31/08/2017,Environment & Housing,Parks and Countryside,Supplies and Services,Operational Materials,205,02/08/2017,1708-00048,0.00,450.00,R,A Newton,No
Http://opendatacommunities.org/id/metropolitan-district-council/leeds,Leeds City Council,31/08/2017,Environment & Housing,Parks and Countryside,Supplies and Services,Operational Materials,205,17/08/2017,1708-00049,0.00,399.00,R,A Newton,No
Http://opendatacommunities.org/id/metropolitan-district-council/leeds,Leeds City Council,31/08/2017,Environment & Housing,Parks and Countryside,Supplies and Services,Other Hired And Contracted Services,265,30/08/2017,1708-00050,0.00,1449.60,R,A Nicholls,No
Http://opendatacommunities.org/id/metropolitan-district-council/leeds,Leeds City Council,31/08/2017,City Development,Libraries  Arts & Heritage,Supplies and Services,Non-Recurring Grants,227,07/08/2017,1708-00051,0.00,9900.00,R,A Quiet Word Ltd,No
Http://opendatacommunities.org/id/metropolitan-district-council/leeds,Leeds City Council,31/08/2017,Strategic Landlord,Property and Contracts,Premises,General Maintenance,104,10/08/2017,1708-00052,0.00,45.00,R,REDACTED PERSONAL DATA,No
Http://opendatacommunities.org/id/metropolitan-district-council/leeds,Leeds City Council,31/08/2017,Civic Enterprise Leeds,Shared Services,Supplies and Services,Other Hired And Contracted Services,265,09/08/2017,1708-00053,0.00,35.00,R,A Star Couriers Ltd,No
Http://opendatacommunities.org/id/metropolitan-district-council/leeds,Leeds City Council,31/08/2017,Resources and Housing,HRA Housing Leeds,Capital,Other Costs,7,17/08/2017,1708-00054,0.00,30.00,C,REDACTED PERSONAL DATA,No
Http://opendatacommunities.org/id/metropolitan-district-council/leeds,Leeds City Council,31/08/2017,City Development,Economic Development,Supplies and Services,Publication And Promotion,267,17/08/2017,1708-00055,0.00,300.00,R,A T Graphics Limited,No
Http://opendatacommunities.org/id/metropolitan-district-council/leeds,Leeds City Council,31/08/2017,City Development,Economic Development,Supplies and Services,Publication And Promotion,267,17/08/2017,1708-00056,0.00,400.00,R,A T Graphics Limited,No
Http://opendatacommunities.org/id/metropolitan-district-council/leeds,Leeds City Council,31/08/2017,Environment & Housing,Waste Management,Employees,Central Training,79,01/08/2017,1708-00057,0.00,255.25,R,A T Nerac Ltd,No
Http://opendatacommunities.org/id/metropolitan-district-council/leeds,Leeds City Council,31/08/2017,Children and Families,Safeguarding Targeted & Specialist,Third Party Payments,Allowances,546,03/08/2017,1708-00058,0.00,170.00,R,REDACTED PERSONAL DATA,No
Http://opendatacommunities.org/id/metropolitan-district-council/leeds,Leeds City Council,31/08/2017,Communities and Environment,Waste Management,Capital,Furniture And Equipment,5,18/08/2017,1708-00059,0.00,14057.50,C,A&C Weber Uk Ltd,No
Http://opendatacommunities.org/id/metropolitan-district-council/leeds,Leeds City Council,31/08/2017,Communities and Environment,Elections  Licensing and Registration,Income,Admissions  Booking Fees & Ticket Sales,933,03/08/2017,1708-00060,0.00,120.00,R,REDACTED PERSONAL DATA,No
Http://opendatacommunities.org/id/metropolitan-district-council/leeds,Leeds City Council as Accountable Body,31/08/2017,Social Services Pooled Budgets,Leeds Community Equip Store Pooled Budgt,Supplies and Services,Other Equipment,203,25/08/2017,1708-00061,0.00,5409.00,R,Aat (Gb) Ltd,No
Http://opendatacommunities.org/id/metropolitan-district-council/leeds,Leeds City Council,31/08/2017,Adults and Health,Social Services Support Services,Transport,Public Transport Expenses,310,31/08/2017,1708-00062,0.00,272.00,R,Ab Cars (Garforth) Ltd,No
Http://opendatacommunities.org/id/metropolitan-district-council/leeds,Leeds City Council,31/08/2017,Communities and Environment,Parks and Countryside,Capital,Other Costs,7,08/08/2017,1708-00063,0.00,5000.00,C,Abacus Cost Management Ltd,No
Http://opendatacommunities.org/id/metropolitan-district-council/leeds,Leeds City Council,31/08/2017,Children and Families,Safeguarding Targeted & Specialist,Support Services,Legal Disbursements,411,10/08/2017,1708-00064,0.00,15.59,R,Abacus Express Limited,No
Http://opendatacommunities.org/id/metropolitan-district-council/leeds,Leeds City Council,31/08/2017,Children and Families,Safeguarding Targeted & Specialist,Support Services,Legal Disbursements,411,11/08/2017,1708-00065,0.00,31.02,R,Abacus Express Limited,No
Http://opendatacommunities.org/id/metropolitan-district-council/leeds,Leeds City Council,31/08/2017,Children and Families,Safeguarding Targeted & Specialist,Support Services,Legal Disbursements,411,30/08/2017,1708-00066,0.00,15.59,R,Abacus Express Limited,No
Http://opendatacommunities.org/id/metropolitan-district-council/leeds,Leeds City Council,31/08/2017,Adults and Health,Services For Older People - 65 And Over,Third Party Payments,Nursing Care Dementia,574,23/08/2017,1708-00067,0.00,1556.00,R,Abbendon Nursing Home,No
Http://opendatacommunities.org/id/metropolitan-district-council/leeds,Leeds City Council,31/08/2017,Communities and Environment,Customer Access,Supplies and Services,Other Hired And Contracted Services,265,02/08/2017,1708-00068,0.00,781.35,R,Abdulahad Denha,No
Http://opendatacommunities.org/id/metropolitan-district-council/leeds,Leeds City Council,31/08/2017,Children and Families,Safeguarding Targeted & Specialist,Transfer Payments,Leaving Care Allowances,634,04/08/2017,1708-00069,0.00,50.00,R,REDACTED PERSONAL DATA,No
Http://opendatacommunities.org/id/metropolitan-district-council/leeds,Leeds City Council,31/08/2017,Communities and Environment,Customer Access,Supplies and Services,Other Hired And Contracted Services,265,02/08/2017,1708-00070,0.00,495.55,R,Abdur Rahman Khan,No
Http://opendatacommunities.org/id/metropolitan-district-council/leeds,Leeds City Council,31/08/2017,Adults and Health,Services For Older People - 65 And Over,Third Party Payments,Nursing Home,570,23/08/2017,1708-00071,0.00,29026.51,R,Aberford Hall,No
Http://opendatacommunities.org/id/metropolitan-district-council/leeds,Leeds City Council,31/08/2017,Adults and Health,Services For Older People - 65 And Over,Third Party Payments,Nursing Care Dementia,574,23/08/2017,1708-00072,0.00,1486.20,R,Aberford Hall,No
Http://opendatacommunities.org/id/metropolitan-district-council/leeds,Leeds City Council,31/08/2017,Adults and Health,Services For Older People - 65 And Over,Third Party Payments,Residential,580,23/08/2017,1708-00073,0.00,2665.28,R,Aberford Hall,No
Http://opendatacommunities.org/id/metropolitan-district-council/leeds,Leeds City Council,31/08/2017,Environment & Housing,Strategic Housing Support,Supplies and Services,Other Hired And Contracted Services,265,11/08/2017,1708-00074,0.00,650.00,R,Abid N Riaz,No
Http://opendatacommunities.org/id/metropolitan-district-council/leeds,Leeds City Council,31/08/2017,City Development,Recreation,Income,Swimming Bath Charges,923,11/08/2017,1708-00075,0.00,71.40,R,REDACTED PERSONAL DATA,No
Http://opendatacommunities.org/id/metropolitan-district-council/leeds,Leeds City Council,31/08/2017,Resources and Housing,Technology,Supplies and Services,Computer Software & Equipment,214,18/08/2017,1708-00076,0.00,3009.00,R,Abm Critical Solutions Ltd,No
Http://opendatacommunities.org/id/metropolitan-district-council/leeds,Leeds City Council,31/08/2017,City Development,Libraries  Arts & Heritage,Supplies and Services,Operational Materials,205,03/08/2017,1708-00077,0.00,3139.00,R,Absolute Museum & Gallery Products Ltd,No
Http://opendatacommunities.org/id/metropolitan-district-council/leeds,Leeds City Council,31/08/2017,Civic Enterprise Leeds,Commercial Services  ,Supplies and Services,Operational Materials,205,24/07/2017,1708-00078,0.00,144.00,R,Abtec4abrasives,Yes
Http://opendatacommunities.org/id/metropolitan-district-council/leeds,Leeds City Council,31/08/2017,Children and Families,Safeguarding Targeted & Specialist,Employees,Agency Staff,8,22/08/2017,1708-00079,0.00,960.00,R,Academic Appointments Ltd,No
Http://opendatacommunities.org/id/metropolitan-district-council/leeds,Leeds City Council,31/08/2017,Children and Families,Safeguarding Targeted & Specialist,Employees,Agency Staff,8,30/08/2017,1708-00080,0.00,1080.00,R,Academic Appointments Ltd,No
Http://opendatacommunities.org/id/metropolitan-district-council/leeds,Leeds City Council,31/08/2017,Children and Families,Safeguarding Targeted & Specialist,Employees,Agency Staff,8,30/08/2017,1708-00081,0.00,1080.00,R,Academic Appointments Ltd,No
Http://opendatacommunities.org/id/metropolitan-district-council/leeds,Leeds City Council as Accountable Body,31/08/2017,Social Services Pooled Budgets,Jcs For People With Learning Disabilitie,Third Party Payments,Home Care,568,30/08/2017,1708-00082,0.00,1314.19,R,Accent Foundation Ltd,No
Http://opendatacommunities.org/id/metropolitan-district-council/leeds,Leeds City Council,31/08/2017,Resources and Housing,Strategic Housing Partnerships,Capital,Construction,3,24/08/2017,1708-00083,0.00,2052.00,C,Accent Homes Ltd,No
Http://opendatacommunities.org/id/metropolitan-district-council/leeds,Leeds City Council,31/08/2017,Environment & Housing,Community Safety,Transport,Hire Of Movable Plant & Machinery,315,04/08/2017,1708-00084,0.00,1242.86,R,Access Hire Nationwide Ltd,No
Http://opendatacommunities.org/id/metropolitan-district-council/leeds,Leeds City Council,31/08/2017,Environment & Housing,Community Safety,Transport,Hire Of Movable Plant & Machinery,315,25/08/2017,1708-00085,0.00,1284.29,R,Access Hire Nationwide Ltd,No
Http://opendatacommunities.org/id/metropolitan-district-council/leeds,Leeds City Council,31/08/2017,Civic Enterprise Leeds,Commercial Services  ,Supplies and Services,Operational Furniture And Equipment,203,05/07/2017,1708-00086,0.00,253.47,R,Access Locksmiths,Yes
Http://opendatacommunities.org/id/metropolitan-district-council/leeds,Leeds City Council,31/08/2017,Children and Families,Safeguarding Targeted & Specialist  ,Premises,Maintenance Of Buildings,101,06/07/2017,1708-00087,0.00,6.96,R,Access Locksmiths,Yes
Http://opendatacommunities.org/id/metropolitan-district-council/leeds,Leeds City Council,31/08/2017,Adults and Health,Services For Adults Under 65 Learn/Dis  ,Supplies and Services,Office Furniture & Equipment,201,18/07/2017,1708-00088,0.00,4.79,R,Access Locksmiths,Yes
Http://opendatacommunities.org/id/metropolitan-district-council/leeds,Leeds City Council,31/08/2017,Civic Enterprise Leeds,Commercial Services  ,Supplies and Services,Operational Materials,205,27/07/2017,1708-00089,0.00,391.10,R,Access Locksmiths,Yes
Http://opendatacommunities.org/id/metropolitan-district-council/leeds,Leeds City Council,31/08/2017,Strategic Landlord,Property and Contracts,Premises,General Maintenance,104,02/08/2017,1708-00090,0.00,82.10,R,Access Locksmiths (Leeds) Limited,No
Http://opendatacommunities.org/id/metropolitan-district-council/leeds,Leeds City Council,31/08/2017,Strategic Landlord,Property and Contracts,Premises,General Maintenance,104,02/08/2017,1708-00091,0.00,140.09,R,Access Locksmiths (Leeds) Limited,No
Http://opendatacommunities.org/id/metropolitan-district-council/leeds,Leeds City Council,31/08/2017,Strategic Landlord,Property and Contracts,Premises,General Maintenance,104,02/08/2017,1708-00092,0.00,856.20,R,Access Locksmiths (Leeds) Limited,No
Http://opendatacommunities.org/id/metropolitan-district-council/leeds,Leeds City Council,31/08/2017,Strategic Landlord,Property and Contracts,Premises,Maintenance Of Buildings,101,02/08/2017,1708-00093,0.00,80.72,R,Access Locksmiths (Leeds) Limited,No
Http://opendatacommunities.org/id/metropolitan-district-council/leeds,Leeds City Council,31/08/2017,Strategic Landlord,Property and Contracts,Premises,General Maintenance,104,02/08/2017,1708-00094,0.00,513.00,R,Access Locksmiths (Leeds) Limited,No
Http://opendatacommunities.org/id/metropolitan-district-council/leeds,Leeds City Council,31/08/2017,Strategic Landlord,Property and Contracts,Premises,General Maintenance,104,02/08/2017,1708-00095,0.00,114.00,R,Access Locksmiths (Leeds) Limited,No
Http://opendatacommunities.org/id/metropolitan-district-council/leeds,Leeds City Council,31/08/2017,Environment & Housing,Parks and Countryside,Supplies and Services,Operational Materials,205,02/08/2017,1708-00096,0.00,515.66,R,Access Locksmiths (Leeds) Limited,No
Http://opendatacommunities.org/id/metropolitan-district-council/leeds,Leeds City Council,31/08/2017,Environment & Housing,Waste Management,Supplies and Services,Operational Furniture And Equipment,203,02/08/2017,1708-00097,0.00,521.50,R,Access Locksmiths (Leeds) Limited,No
Http://opendatacommunities.org/id/metropolitan-district-council/leeds,Leeds City Council,31/08/2017,Environment & Housing,Environmental Action (West North West),Premises,Civic Buildings Recharges,165,04/08/2017,1708-00098,0.00,2.60,R,Access Locksmiths (Leeds) Limited,No
Http://opendatacommunities.org/id/metropolitan-district-council/leeds,Leeds City Council,31/08/2017,Environment & Housing,Leeds Building Services,Supplies and Services,Operational Materials,205,07/08/2017,1708-00099,0.00,45.20,R,Access Locksmiths (Leeds) Limited,No
Http://opendatacommunities.org/id/metropolitan-district-council/leeds,Leeds City Council,31/08/2017,Environment & Housing,Leeds Building Services,Supplies and Services,Operational Materials,205,07/08/2017,1708-00100,0.00,23.22,R,Access Locksmiths (Leeds) Limited,No
Http://opendatacommunities.org/id/metropolitan-district-council/leeds,Leeds City Council,31/08/2017,Environment & Housing,Leeds Building Services,Supplies and Services,Operational Materials,205,07/08/2017,1708-00101,0.00,26.00,R,Access Locksmiths (Leeds) Limited,No
Http://opendatacommunities.org/id/metropolitan-district-council/leeds,Leeds City Council,31/08/2017,Environment & Housing,Leeds Building Services,Supplies and Services,Operational Materials,205,07/08/2017,1708-00102,0.00,372.11,R,Access Locksmiths (Leeds) Limited,No
Http://opendatacommunities.org/id/metropolitan-district-council/leeds,Leeds City Council,31/08/2017,Environment & Housing,Leeds Building Services,Supplies and Services,Operational Materials,205,07/08/2017,1708-00103,0.00,207.22,R,Access Locksmiths (Leeds) Limited,No
Http://opendatacommunities.org/id/metropolitan-district-council/leeds,Leeds City Council,31/08/2017,Environment & Housing,Leeds Building Services,Supplies and Services,Operational Materials,205,07/08/2017,1708-00104,0.00,207.22,R,Access Locksmiths (Leeds) Limited,No
Http://opendatacommunities.org/id/metropolitan-district-council/leeds,Leeds City Council,31/08/2017,Environment & Housing,Leeds Building Services,Supplies and Services,Operational Materials,205,07/08/2017,1708-00105,0.00,113.16,R,Access Locksmiths (Leeds) Limited,No
Http://opendatacommunities.org/id/metropolitan-district-council/leeds,Leeds City Council,31/08/2017,Environment & Housing,Leeds Building Services,Supplies and Services,Operational Materials,205,07/08/2017,1708-00106,0.00,12.15,R,Access Locksmiths (Leeds) Limited,No
Http://opendatacommunities.org/id/metropolitan-district-council/leeds,Leeds City Council,31/08/2017,Environment & Housing,Leeds Building Services,Supplies and Services,Operational Materials,205,07/08/2017,1708-00107,0.00,21.62,R,Access Locksmiths (Leeds) Limited,No
Http://opendatacommunities.org/id/metropolitan-district-council/leeds,Leeds City Council,31/08/2017,Environment & Housing,Leeds Building Services,Supplies and Services,Operational Materials,205,07/08/2017,1708-00108,0.00,157.96,R,Access Locksmiths (Leeds) Limited,No
Http://opendatacommunities.org/id/metropolitan-district-council/leeds,Leeds City Council,31/08/2017,Environment & Housing,Leeds Building Services,Supplies and Services,Operational Materials,205,07/08/2017,1708-00109,0.00,17.10,R,Access Locksmiths (Leeds) Limited,No
Http://opendatacommunities.org/id/metropolitan-district-council/leeds,Leeds City Council,31/08/2017,Environment & Housing,Leeds Building Services,Supplies and Services,Operational Materials,205,07/08/2017,1708-00110,0.00,143.74,R,Access Locksmiths (Leeds) Limited,No
Http://opendatacommunities.org/id/metropolitan-district-council/leeds,Leeds City Council,31/08/2017,Environment & Housing,Leeds Building Services,Supplies and Services,Operational Materials,205,07/08/2017,1708-00111,0.00,73.91,R,Access Locksmiths (Leeds) Limited,No
Http://opendatacommunities.org/id/metropolitan-district-council/leeds,Leeds City Council,31/08/2017,Environment & Housing,Leeds Building Services,Supplies and Services,Operational Materials,205,07/08/2017,1708-00112,0.00,48.15,R,Access Locksmiths (Leeds) Limited,No
Http://opendatacommunities.org/id/metropolitan-district-council/leeds,Leeds City Council,31/08/2017,Environment & Housing,Leeds Building Services,Supplies and Services,Operational Materials,205,07/08/2017,1708-00113,0.00,65.51,R,Access Locksmiths (Leeds) Limited,No
Http://opendatacommunities.org/id/metropolitan-district-council/leeds,Leeds City Council,31/08/2017,Strategic Landlord,Property and Contracts,Premises,General Maintenance,104,11/08/2017,1708-00114,0.00,228.00,R,Access Locksmiths (Leeds) Limited,No
Http://opendatacommunities.org/id/metropolitan-district-council/leeds,Leeds City Council,31/08/2017,Strategic Landlord,Property and Contracts,Premises,General Maintenance,104,11/08/2017,1708-00115,0.00,138.97,R,Access Locksmiths (Leeds) Limited,No
Http://opendatacommunities.org/id/metropolitan-district-council/leeds,Leeds City Council,31/08/2017,Strategic Landlord,Property and Contracts,Premises,General Maintenance,104,11/08/2017,1708-00116,0.00,310.83,R,Access Locksmiths (Leeds) Limited,No
Http://opendatacommunities.org/id/metropolitan-district-council/leeds,Leeds City Council,31/08/2017,Strategic Landlord,Property and Contracts,Premises,General Maintenance,104,11/08/2017,1708-00117,0.00,37.50,R,Access Locksmiths (Leeds) Limited,No
Http://opendatacommunities.org/id/metropolitan-district-council/leeds,Leeds City Council,31/08/2017,Environment & Housing,Leeds Building Services,Supplies and Services,Operational Materials,205,22/08/2017,1708-00118,0.00,69.14,R,Access Locksmiths (Leeds) Limited,No
Http://opendatacommunities.org/id/metropolitan-district-council/leeds,Leeds City Council,31/08/2017,Environment & Housing,Leeds Building Services,Supplies and Services,Operational Materials,205,22/08/2017,1708-00119,0.00,372.11,R,Access Locksmiths (Leeds) Limited,No
Http://opendatacommunities.org/id/metropolitan-district-council/leeds,Leeds City Council,31/08/2017,Environment & Housing,Leeds Building Services,Supplies and Services,Operational Materials,205,22/08/2017,1708-00120,0.00,21.00,R,Access Locksmiths (Leeds) Limited,No
Http://opendatacommunities.org/id/metropolitan-district-council/leeds,Leeds City Council,31/08/2017,Strategic Landlord,Property and Contracts,Premises,General Maintenance,104,22/08/2017,1708-00121,0.00,201.80,R,Access Locksmiths (Leeds) Limited,No
Http://opendatacommunities.org/id/metropolitan-district-council/leeds,Leeds City Council,31/08/2017,Strategic Landlord,Housing Management,Supplies and Services,Resaleable Materials,204,22/08/2017,1708-00122,0.00,37.50,R,Access Locksmiths (Leeds) Limited,No
Http://opendatacommunities.org/id/metropolitan-district-council/leeds,Leeds City Council,31/08/2017,Strategic Landlord,Housing Management,Premises,General Maintenance,104,22/08/2017,1708-00123,0.00,114.00,R,Access Locksmiths (Leeds) Limited,No
Http://opendatacommunities.org/id/metropolitan-district-council/leeds,Leeds City Council,31/08/2017,Strategic Landlord,Property and Contracts,Supplies and Services,Resaleable Materials,204,22/08/2017,1708-00124,0.00,228.00,R,Access Locksmiths (Leeds) Limited,No
Http://opendatacommunities.org/id/metropolitan-district-council/leeds,Leeds City Council,31/08/2017,Strategic Landlord,Housing Management,Income,Other Income,973,22/08/2017,1708-00125,0.00,12.37,R,Access Locksmiths (Leeds) Limited,No
Http://opendatacommunities.org/id/metropolitan-district-council/leeds,Leeds City Council,31/08/2017,Strategic Landlord,Property and Contracts,Premises,General Maintenance,104,25/08/2017,1708-00126,0.00,211.61,R,Access Locksmiths (Leeds) Limited,No
Http://opendatacommunities.org/id/metropolitan-district-council/leeds,Leeds City Council,31/08/2017,Strategic Landlord,Property and Contracts,Premises,General Maintenance,104,25/08/2017,1708-00127,0.00,338.58,R,Access Locksmiths (Leeds) Limited,No
Http://opendatacommunities.org/id/metropolitan-district-council/leeds,Leeds City Council,31/08/2017,Strategic Landlord,Housing Management,Supplies and Services,Resaleable Materials,204,25/08/2017,1708-00128,0.00,114.00,R,Access Locksmiths (Leeds) Limited,No
Http://opendatacommunities.org/id/metropolitan-district-council/leeds,Leeds City Council,31/08/2017,Strategic Landlord,Property and Contracts,Supplies and Services,Office Consumables,210,25/08/2017,1708-00129,0.00,25.00,R,Access Locksmiths (Leeds) Limited,No
Http://opendatacommunities.org/id/metropolitan-district-council/leeds,Leeds City Council,31/08/2017,Civic Enterprise Leeds,Commercial Services,Supplies and Services,Operational Furniture And Equipment,203,25/08/2017,1708-00130,0.00,403.60,R,Access Locksmiths (Leeds) Limited,No
Http://opendatacommunities.org/id/metropolitan-district-council/leeds,Leeds City Council,31/08/2017,Civic Enterprise Leeds,Corporate Property Management,Premises,Maintenance Of Buildings,101,02/08/2017,1708-00131,0.00,1420.00,R,Access Maintenance Solutions Ltd,No
Http://opendatacommunities.org/id/metropolitan-district-council/leeds,Leeds City Council,31/08/2017,City Development,Libraries  Arts & Heritage,Supplies and Services,Bought In Professional Services,277,08/08/2017,1708-00132,0.00,210.00,R,Access Moving Image Ltd,No
Http://opendatacommunities.org/id/metropolitan-district-council/leeds,Leeds City Council,31/08/2017,City Development,Libraries  Arts & Heritage,Supplies and Services,Bought In Professional Services,277,15/08/2017,1708-00133,0.00,1000.00,R,Access Moving Image Ltd,No
Http://opendatacommunities.org/id/metropolitan-district-council/leeds,Leeds City Council,31/08/2017,Environment & Housing,Leeds Building Services,Supplies and Services,Operational Materials,205,22/08/2017,1708-00134,0.00,60.00,R,Access Opening Systems Limited,No
Http://opendatacommunities.org/id/metropolitan-district-council/leeds,Leeds City Council,31/08/2017,Environment & Housing,Leeds Building Services,Supplies and Services,Other Hired And Contracted Services,265,25/08/2017,1708-00135,0.00,6214.01,R,Access Opening Systems Limited,No
Http://opendatacommunities.org/id/metropolitan-district-council/leeds,Leeds City Council,31/08/2017,Insurance,Insurance,Supplies and Services,Insurance Claims,248,03/08/2017,1708-00136,0.00,15.00,R,Accident Advice Solicitors,No
Http://opendatacommunities.org/id/metropolitan-district-council/leeds,Leeds City Council,31/08/2017,Insurance,Insurance,Supplies and Services,Insurance Claims,248,03/08/2017,1708-00137,0.00,360.00,R,Accident Advice Solicitors,No
Http://opendatacommunities.org/id/metropolitan-district-council/leeds,Leeds City Council,31/08/2017,Insurance,Insurance,Supplies and Services,Insurance Claims,248,14/08/2017,1708-00138,0.00,1876.98,R,Accident Credit Group Ltd,No
Http://opendatacommunities.org/id/metropolitan-district-council/leeds,Leeds City Council,31/08/2017,Insurance,Insurance,Supplies and Services,Insurance Claims,248,24/08/2017,1708-00139,0.00,536.50,R,Accident Exchange Ltd,No
Http://opendatacommunities.org/id/metropolitan-district-council/leeds,Leeds City Council,31/08/2017,Insurance,Insurance,Supplies and Services,Insurance Claims,248,31/08/2017,1708-00140,0.00,2521.00,R,Accountant General Of The Senior Courts,No
Http://opendatacommunities.org/id/metropolitan-district-council/leeds,Leeds City Council,31/08/2017,City Development,Recreation,Transport,External Hire -Occasional,304,02/08/2017,1708-00141,0.00,128.65,R,Ace Container Services Limited,No
Http://opendatacommunities.org/id/metropolitan-district-council/leeds,Leeds City Council,31/08/2017,City Development,Recreation,Supplies and Services,Other Hired And Contracted Services,265,22/08/2017,1708-00142,0.00,496.00,R,Ace Container Services Limited,No
Http://opendatacommunities.org/id/metropolitan-district-council/leeds,Leeds City Council,31/08/2017,City Development,Recreation,Supplies and Services,Other Hired And Contracted Services,265,22/08/2017,1708-00143,0.00,93.00,R,Ace Container Services Limited,No
Http://opendatacommunities.org/id/metropolitan-district-council/leeds,Leeds City Council,31/08/2017,City Development,Libraries  Arts & Heritage,Supplies and Services,Other Hired And Contracted Services,265,22/08/2017,1708-00144,0.00,46.50,R,Ace Container Services Limited,No
Http://opendatacommunities.org/id/metropolitan-district-council/leeds,Leeds City Council,31/08/2017,City Development,Recreation,Transport,External Hire -Occasional,304,29/08/2017,1708-00145,0.00,128.65,R,Ace Container Services Limited,No
Http://opendatacommunities.org/id/metropolitan-district-council/leeds,Leeds City Council,31/08/2017,City Development,Recreation,Supplies and Services,Operational Furniture And Equipment,203,30/08/2017,1708-00146,0.00,4370.00,R,Ace Container Services Limited,No
Http://opendatacommunities.org/id/metropolitan-district-council/leeds,Leeds City Council,31/08/2017,Children and Families,Partnerships,Third Party Payments,SEN Placements,566,18/08/2017,1708-00147,0.00,17139.00,R,Ackworth School,No
Http://opendatacommunities.org/id/metropolitan-district-council/leeds,Leeds City Council,31/08/2017,Children and Families,Partnerships,Third Party Payments,SEN Placements,566,18/08/2017,1708-00148,0.00,17139.00,R,Ackworth School,No
Http://opendatacommunities.org/id/metropolitan-district-council/leeds,Leeds City Council,31/08/2017,Children and Families,Partnerships,Third Party Payments,SEN Placements,566,18/08/2017,1708-00149,0.00,17139.00,R,Ackworth School,No
Http://opendatacommunities.org/id/metropolitan-district-council/leeds,Leeds City Council,31/08/2017,Children and Families,Partnerships,Third Party Payments,SEN Placements,566,18/08/2017,1708-00150,0.00,17139.00,R,Ackworth School,No
Http://opendatacommunities.org/id/metropolitan-district-council/leeds,Leeds City Council,31/08/2017,Children and Families,Partnerships,Third Party Payments,SEN Placements,566,18/08/2017,1708-00151,0.00,23639.00,R,Ackworth School,No
Http://opendatacommunities.org/id/metropolitan-district-council/leeds,Leeds City Council,31/08/2017,Civic Enterprise Leeds,Commercial Services,Supplies and Services,Operational Furniture And Equipment,203,30/08/2017,1708-00152,0.00,1166.00,R,Acme Facilities Group Ltd,No
Http://opendatacommunities.org/id/metropolitan-district-council/leeds,Leeds City Council,31/08/2017,Children and Families,Partnerships,Third Party Payments,SEN Placements,566,16/08/2017,1708-00153,0.00,7000.00,R,Acorn Care And Education Ltd,No
Http://opendatacommunities.org/id/metropolitan-district-council/leeds,Leeds City Council,31/08/2017,Children and Families,Partnerships,Third Party Payments,SEN Placements,566,16/08/2017,1708-00154,0.00,18138.66,R,Acorn Care And Education Ltd,No
Http://opendatacommunities.org/id/metropolitan-district-council/leeds,Leeds City Council,31/08/2017,Children and Families,Partnerships,Third Party Payments,SEN Placements,566,16/08/2017,1708-00155,0.00,18138.66,R,Acorn Care And Education Ltd,No
Http://opendatacommunities.org/id/metropolitan-district-council/leeds,Leeds City Council,31/08/2017,Children and Families,Partnerships,Third Party Payments,SEN Placements,566,16/08/2017,1708-00156,0.00,18138.66,R,Acorn Care And Education Ltd,No
Http://opendatacommunities.org/id/metropolitan-district-council/leeds,Leeds City Council,31/08/2017,Children and Families,Partnerships,Third Party Payments,SEN Placements,566,16/08/2017,1708-00157,0.00,18138.66,R,Acorn Care And Education Ltd,No
Http://opendatacommunities.org/id/metropolitan-district-council/leeds,Leeds City Council,31/08/2017,Children and Families,Partnerships,Third Party Payments,SEN Placements,566,16/08/2017,1708-00158,0.00,18138.66,R,Acorn Care And Education Ltd,No
Http://opendatacommunities.org/id/metropolitan-district-council/leeds,Leeds City Council,31/08/2017,Children and Families,Partnerships,Third Party Payments,SEN Placements,566,16/08/2017,1708-00159,0.00,18138.66,R,Acorn Care And Education Ltd,No
Http://opendatacommunities.org/id/metropolitan-district-council/leeds,Leeds City Council,31/08/2017,Children and Families,Partnerships,Third Party Payments,SEN Placements,566,16/08/2017,1708-00160,0.00,18138.66,R,Acorn Care And Education Ltd,No
Http://opendatacommunities.org/id/metropolitan-district-council/leeds,Leeds City Council,31/08/2017,Children and Families,Partnerships,Third Party Payments,SEN Placements,566,16/08/2017,1708-00161,0.00,18138.66,R,Acorn Care And Education Ltd,No
Http://opendatacommunities.org/id/metropolitan-district-council/leeds,Leeds City Council,31/08/2017,Children and Families,Partnerships,Third Party Payments,SEN Placements,566,16/08/2017,1708-00162,0.00,18138.66,R,Acorn Care And Education Ltd,No
Http://opendatacommunities.org/id/metropolitan-district-council/leeds,Leeds City Council,31/08/2017,Children and Families,Partnerships,Third Party Payments,SEN Placements,566,16/08/2017,1708-00163,0.00,18138.66,R,Acorn Care And Education Ltd,No
Http://opendatacommunities.org/id/metropolitan-district-council/leeds,Leeds City Council,31/08/2017,Children and Families,Partnerships,Third Party Payments,SEN Placements,566,16/08/2017,1708-00164,0.00,18138.66,R,Acorn Care And Education Ltd,No
Http://opendatacommunities.org/id/metropolitan-district-council/leeds,Leeds City Council,31/08/2017,Children and Families,Partnerships,Third Party Payments,SEN Placements,566,16/08/2017,1708-00165,0.00,18138.66,R,Acorn Care And Education Ltd,No
Http://opendatacommunities.org/id/metropolitan-district-council/leeds,Leeds City Council,31/08/2017,Children and Families,Partnerships,Third Party Payments,SEN Placements,566,16/08/2017,1708-00166,0.00,18138.66,R,Acorn Care And Education Ltd,No
Http://opendatacommunities.org/id/metropolitan-district-council/leeds,Leeds City Council,31/08/2017,Children and Families,Partnerships,Third Party Payments,SEN Placements,566,16/08/2017,1708-00167,0.00,18138.66,R,Acorn Care And Education Ltd,No
Http://opendatacommunities.org/id/metropolitan-district-council/leeds,Leeds City Council,31/08/2017,Children and Families,Partnerships,Third Party Payments,SEN Placements,566,16/08/2017,1708-00168,0.00,18138.66,R,Acorn Care And Education Ltd,No
Http://opendatacommunities.org/id/metropolitan-district-council/leeds,Leeds City Council,31/08/2017,Children and Families,Partnerships,Third Party Payments,SEN Placements,566,16/08/2017,1708-00169,0.00,18138.66,R,Acorn Care And Education Ltd,No
Http://opendatacommunities.org/id/metropolitan-district-council/leeds,Leeds City Council,31/08/2017,Children and Families,Partnerships,Third Party Payments,SEN Placements,566,16/08/2017,1708-00170,0.00,18138.66,R,Acorn Care And Education Ltd,No
Http://opendatacommunities.org/id/metropolitan-district-council/leeds,Leeds City Council,31/08/2017,Children and Families,Partnerships,Third Party Payments,SEN Placements,566,16/08/2017,1708-00171,0.00,18138.66,R,Acorn Care And Education Ltd,No
Http://opendatacommunities.org/id/metropolitan-district-council/leeds,Leeds City Council,31/08/2017,Children and Families,Partnerships,Third Party Payments,SEN Placements,566,18/08/2017,1708-00172,0.00,18138.66,R,Acorn Care And Education Ltd,No
Http://opendatacommunities.org/id/metropolitan-district-council/leeds,Leeds City Council,31/08/2017,Adults and Health,Services For Older People - 65 And Over,Third Party Payments,Nursing Care Dementia,574,23/08/2017,1708-00173,0.00,1546.28,R,Acorn Nursing Home,No
Http://opendatacommunities.org/id/metropolitan-district-council/leeds,Leeds City Council,31/08/2017,City Development,Libraries  Arts & Heritage,Supplies and Services,Other Hired And Contracted Services,265,11/08/2017,1708-00174,0.00,9090.00,R,Acorn Scaffolding (Yorkshire) Ltd,No
Http://opendatacommunities.org/id/metropolitan-district-council/leeds,Leeds City Council,31/08/2017,City Development,Libraries  Arts & Heritage,Supplies and Services,Other Hired And Contracted Services,265,11/08/2017,1708-00175,0.00,300.00,R,Acorn Scaffolding (Yorkshire) Ltd,No
Http://opendatacommunities.org/id/metropolitan-district-council/leeds,Leeds City Council,31/08/2017,City Development,Libraries  Arts & Heritage,Supplies and Services,Other Hired And Contracted Services,265,23/08/2017,1708-00176,0.00,700.00,R,Acorn Scaffolding (Yorkshire) Ltd,No
Http://opendatacommunities.org/id/metropolitan-district-council/leeds,Leeds City Council,31/08/2017,Adults and Health,Other Adult Services,Third Party Payments,Residential - Drugs & Alcohol,583,01/08/2017,1708-00177,0.00,1925.79,R,Acorn Treatment & Housing,No
Http://opendatacommunities.org/id/metropolitan-district-council/leeds,Leeds City Council,31/08/2017,Environment & Housing,Parks and Countryside,Supplies and Services,Operational Furniture And Equipment,203,02/08/2017,1708-00178,0.00,-297.70,R,Acoustic Arrangments Limited,No
Http://opendatacommunities.org/id/metropolitan-district-council/leeds,Leeds City Council,31/08/2017,Environment & Housing,Parks and Countryside,Supplies and Services,Other Hired And Contracted Services,265,02/08/2017,1708-00179,0.00,308.62,R,Acoustic Arrangments Limited,No
Http://opendatacommunities.org/id/metropolitan-district-council/leeds,Leeds City Council,31/08/2017,Adults and Health,Services For Older People - 65 And Over,Third Party Payments,Nursing Home,570,23/08/2017,1708-00180,0.00,36967.96,R,Acre Green,No
Http://opendatacommunities.org/id/metropolitan-district-council/leeds,Leeds City Council,31/08/2017,Adults and Health,Services For Older People - 65 And Over,Third Party Payments,Nursing Care Dementia,574,23/08/2017,1708-00181,0.00,1099.96,R,Acre Green,No
Http://opendatacommunities.org/id/metropolitan-district-council/leeds,Leeds City Council,31/08/2017,Adults and Health,Services For Older People - 65 And Over,Third Party Payments,Residential,580,23/08/2017,1708-00182,0.00,5874.60,R,Acre Green,No
Http://opendatacommunities.org/id/metropolitan-district-council/leeds,Leeds City Council,31/08/2017,Adults and Health,Services For Older People Under 65 P/Dis,Third Party Payments,Nursing Home,570,23/08/2017,1708-00183,0.00,5682.64,R,Acre Green,No
Http://opendatacommunities.org/id/metropolitan-district-council/leeds,Leeds City Council,31/08/2017,Adults and Health,Services For Older People Under 65 P/Dis,Third Party Payments,Residential,580,23/08/2017,1708-00184,0.00,3145.20,R,Acre Green,No
Http://opendatacommunities.org/id/metropolitan-district-council/leeds,Leeds City Council,31/08/2017,Resources and Housing,Technology  ,Employees,Best Value Training,70,03/07/2017,1708-00185,0.00,49.00,R,Act Now Training,Yes
Http://opendatacommunities.org/id/metropolitan-district-council/leeds,Leeds City Council,31/08/2017,City Development,Highways,Supplies and Services,Operational Materials,205,04/08/2017,1708-00186,0.00,518.50,R,Actavo Uk Limited,No
Http://opendatacommunities.org/id/metropolitan-district-council/leeds,Leeds City Council,31/08/2017,City Development,Highways,Supplies and Services,Operational Materials,205,18/08/2017,1708-00187,0.00,40.00,R,Actavo Uk Limited,No
Http://opendatacommunities.org/id/metropolitan-district-council/leeds,Leeds City Council as Accountable Body,31/08/2017,Social Services Pooled Budgets,Leeds Community Equip Store Pooled Budgt,Supplies and Services,Other Equipment,203,23/08/2017,1708-00188,0.00,6875.00,R,Action Assist Ltd,No
Http://opendatacommunities.org/id/metropolitan-district-council/leeds,Leeds City Council,31/08/2017,Adults and Health,Services For Adults Under 65 Mental/Dis,Third Party Payments,Fees - Level 4,520,03/08/2017,1708-00189,0.00,1250.00,R,Action First Recruitment Ltd,No
Http://opendatacommunities.org/id/metropolitan-district-council/leeds,Leeds City Council,31/08/2017,Adults and Health,Services For Adults Under 65 Mental/Dis,Third Party Payments,Fees - Level 4,520,03/08/2017,1708-00190,0.00,1540.00,R,Action First Recruitment Ltd,No
Http://opendatacommunities.org/id/metropolitan-district-council/leeds,Leeds City Council,31/08/2017,Adults and Health,Services For Adults Under 65 Mental/Dis,Third Party Payments,Fees - Level 4,520,03/08/2017,1708-00191,0.00,220.00,R,Action First Recruitment Ltd,No
Http://opendatacommunities.org/id/metropolitan-district-council/leeds,Leeds City Council,31/08/2017,Adults and Health,Services For Adults Under 65 Mental/Dis,Third Party Payments,Fees - Level 4,520,03/08/2017,1708-00192,0.00,220.00,R,Action First Recruitment Ltd,No
Http://opendatacommunities.org/id/metropolitan-district-council/leeds,Leeds City Council,31/08/2017,Adults and Health,Services For Adults Under 65 Mental/Dis,Third Party Payments,Fees - Level 4,520,07/08/2017,1708-00193,0.00,250.00,R,Action First Recruitment Ltd,No
Http://opendatacommunities.org/id/metropolitan-district-council/leeds,Leeds City Council,31/08/2017,Adults and Health,Services For Adults Under 65 Mental/Dis,Third Party Payments,Fees - Level 4,520,07/08/2017,1708-00194,0.00,250.00,R,Action First Recruitment Ltd,No
Http://opendatacommunities.org/id/metropolitan-district-council/leeds,Leeds City Council,31/08/2017,Adults and Health,Services For Adults Under 65 Mental/Dis,Third Party Payments,Fees - Level 4,520,07/08/2017,1708-00195,0.00,250.00,R,Action First Recruitment Ltd,No
Http://opendatacommunities.org/id/metropolitan-district-council/leeds,Leeds City Council,31/08/2017,Adults and Health,Services For Adults Under 65 Mental/Dis,Third Party Payments,Fees - Level 4,520,07/08/2017,1708-00196,0.00,750.00,R,Action First Recruitment Ltd,No
Http://opendatacommunities.org/id/metropolitan-district-council/leeds,Leeds City Council,31/08/2017,Adults and Health,Services For Adults Under 65 Mental/Dis,Third Party Payments,Fees - Level 4,520,14/08/2017,1708-00197,0.00,250.00,R,Action First Recruitment Ltd,No
Http://opendatacommunities.org/id/metropolitan-district-council/leeds,Leeds City Council,31/08/2017,Adults and Health,Services For Adults Under 65 Mental/Dis,Third Party Payments,Fees - Level 4,520,18/08/2017,1708-00198,0.00,2420.00,R,Action First Recruitment Ltd,No
Http://opendatacommunities.org/id/metropolitan-district-council/leeds,Leeds City Council,31/08/2017,Adults and Health,Services For Adults Under 65 Mental/Dis,Third Party Payments,Fees - Level 4,520,18/08/2017,1708-00199,0.00,1500.00,R,Action First Recruitment Ltd,No
Http://opendatacommunities.org/id/metropolitan-district-council/leeds,Leeds City Council,31/08/2017,Adults and Health,Services For Adults Under 65 Mental/Dis,Third Party Payments,Fees - Level 4,520,18/08/2017,1708-00200,0.00,220.00,R,Action First Recruitment Ltd,No
Http://opendatacommunities.org/id/metropolitan-district-council/leeds,Leeds City Council,31/08/2017,Adults and Health,Services For Adults Under 65 Mental/Dis,Third Party Payments,Fees - Level 4,520,18/08/2017,1708-00201,0.00,500.00,R,Action First Recruitment Ltd,No
Http://opendatacommunities.org/id/metropolitan-district-council/leeds,Leeds City Council,31/08/2017,Adults and Health,Services For Adults Under 65 Mental/Dis,Third Party Payments,Fees - Level 4,520,18/08/2017,1708-00202,0.00,250.00,R,Action First Recruitment Ltd,No
Http://opendatacommunities.org/id/metropolitan-district-council/leeds,Leeds City Council,31/08/2017,Adults and Health,Services For Adults Under 65 Mental/Dis,Third Party Payments,Fees - Level 4,520,18/08/2017,1708-00203,0.00,500.00,R,Action First Recruitment Ltd,No
Http://opendatacommunities.org/id/metropolitan-district-council/leeds,Leeds City Council,31/08/2017,Adults and Health,Services For Adults Under 65 Mental/Dis,Third Party Payments,Fees - Level 4,520,18/08/2017,1708-00204,0.00,200.00,R,Action First Recruitment Ltd,No
Http://opendatacommunities.org/id/metropolitan-district-council/leeds,Leeds City Council,31/08/2017,Adults and Health,Services For Adults Under 65 Mental/Dis,Third Party Payments,Fees - Level 4,520,25/08/2017,1708-00205,0.00,660.00,R,Action First Recruitment Ltd,No
Http://opendatacommunities.org/id/metropolitan-district-council/leeds,Leeds City Council,31/08/2017,Adults and Health,Services For Adults Under 65 Mental/Dis,Third Party Payments,Fees - Level 4,520,25/08/2017,1708-00206,0.00,220.00,R,Action First Recruitment Ltd,No
Http://opendatacommunities.org/id/metropolitan-district-council/leeds,Leeds City Council,31/08/2017,Adults and Health,Services For Adults Under 65 Mental/Dis,Third Party Payments,Fees - Level 4,520,25/08/2017,1708-00207,0.00,250.00,R,Action First Recruitment Ltd,No
Http://opendatacommunities.org/id/metropolitan-district-council/leeds,Leeds City Council,31/08/2017,Adults and Health,Services For Adults Under 65 Mental/Dis,Third Party Payments,Fees - Level 4,520,25/08/2017,1708-00208,0.00,250.00,R,Action First Recruitment Ltd,No
Http://opendatacommunities.org/id/metropolitan-district-council/leeds,Leeds City Council,31/08/2017,Adults and Health,Services For Adults Under 65 Mental/Dis,Third Party Payments,Fees - Level 4,520,25/08/2017,1708-00209,0.00,1000.00,R,Action First Recruitment Ltd,No
Http://opendatacommunities.org/id/metropolitan-district-council/leeds,Leeds City Council,31/08/2017,Adults and Health,Services For Adults Under 65 Mental/Dis,Third Party Payments,Fees - Level 4,520,25/08/2017,1708-00210,0.00,1980.00,R,Action First Recruitment Ltd,No
Http://opendatacommunities.org/id/metropolitan-district-council/leeds,Leeds City Council,31/08/2017,Adults and Health,Services For Adults Under 65 Mental/Dis,Third Party Payments,Fees - Level 4,520,30/08/2017,1708-00211,0.00,250.00,R,Action First Recruitment Ltd,No
Http://opendatacommunities.org/id/metropolitan-district-council/leeds,Leeds City Council,31/08/2017,Adults and Health,Services For Adults Under 65 Mental/Dis,Third Party Payments,Fees - Level 4,520,30/08/2017,1708-00212,0.00,250.00,R,Action First Recruitment Ltd,No
Http://opendatacommunities.org/id/metropolitan-district-council/leeds,Leeds City Council,31/08/2017,Children and Families,Safeguarding Targeted & Specialist,Third Party Payments,Independent Fostering Agencies,509,01/08/2017,1708-00213,0.00,-1849.68,R,Action For Children,No
Http://opendatacommunities.org/id/metropolitan-district-council/leeds,Leeds City Council,31/08/2017,Children and Families,Safeguarding Targeted & Specialist,Third Party Payments,Independent Fostering Agencies,509,01/08/2017,1708-00214,0.00,6864.19,R,Action For Children,No
Http://opendatacommunities.org/id/metropolitan-district-council/leeds,Leeds City Council,31/08/2017,Children and Families,Safeguarding Targeted & Specialist,Third Party Payments,Independent Fostering Agencies,509,21/08/2017,1708-00215,0.00,4624.20,R,Action For Children,No
Http://opendatacommunities.org/id/metropolitan-district-council/leeds,Leeds City Council,31/08/2017,Children and Families,Safeguarding Targeted & Specialist,Third Party Payments,Independent Fostering Agencies,509,21/08/2017,1708-00216,0.00,4997.10,R,Action For Children,No
Http://opendatacommunities.org/id/metropolitan-district-council/leeds,Leeds City Council,31/08/2017,Children and Families,Safeguarding Targeted & Specialist,Third Party Payments,Independent Fostering Agencies,509,21/08/2017,1708-00217,0.00,4624.20,R,Action For Children,No
Http://opendatacommunities.org/id/metropolitan-district-council/leeds,Leeds City Council,31/08/2017,Children and Families,Safeguarding Targeted & Specialist,Third Party Payments,Independent Fostering Agencies,509,21/08/2017,1708-00218,0.00,-4622.40,R,Action For Children,No
Http://opendatacommunities.org/id/metropolitan-district-council/leeds,Leeds City Council,31/08/2017,Children and Families,Safeguarding Targeted & Specialist,Third Party Payments,Independent Fostering Agencies,509,21/08/2017,1708-00219,0.00,0.00,R,Action For Children,No
Http://opendatacommunities.org/id/metropolitan-district-council/leeds,Leeds City Council,31/08/2017,Children and Families,Safeguarding Targeted & Specialist,Third Party Payments,Independent Fostering Agencies,509,22/08/2017,1708-00220,0.00,4624.20,R,Action For Children,No
Http://opendatacommunities.org/id/metropolitan-district-council/leeds,Leeds City Council,31/08/2017,Children and Families,Safeguarding Targeted & Specialist,Third Party Payments,Independent Fostering Agencies,509,25/08/2017,1708-00221,0.00,7611.30,R,Action For Children,No
Http://opendatacommunities.org/id/metropolitan-district-council/leeds,Leeds City Council,31/08/2017,Children and Families,Safeguarding Targeted & Specialist,Third Party Payments,Independent Fostering Agencies,509,25/08/2017,1708-00222,0.00,4776.48,R,Action For Children,No
Http://opendatacommunities.org/id/metropolitan-district-council/leeds,Leeds City Council,31/08/2017,Children and Families,Safeguarding Targeted & Specialist,Third Party Payments,Independent Fostering Agencies,509,25/08/2017,1708-00223,0.00,4776.48,R,Action For Children,No
Http://opendatacommunities.org/id/metropolitan-district-council/leeds,Leeds City Council,31/08/2017,Children and Families,Safeguarding Targeted & Specialist,Third Party Payments,Independent Fostering Agencies,509,25/08/2017,1708-00224,0.00,4776.48,R,Action For Children,No
Http://opendatacommunities.org/id/metropolitan-district-council/leeds,Leeds City Council,31/08/2017,Children and Families,Safeguarding Targeted & Specialist,Third Party Payments,Independent Fostering Agencies,509,25/08/2017,1708-00225,0.00,3697.92,R,Action For Children,No
Http://opendatacommunities.org/id/metropolitan-district-council/leeds,Leeds City Council,31/08/2017,Children and Families,Safeguarding Targeted & Specialist,Third Party Payments,Independent Fostering Agencies,509,25/08/2017,1708-00226,0.00,4776.48,R,Action For Children,No
Http://opendatacommunities.org/id/metropolitan-district-council/leeds,Leeds City Council,31/08/2017,Children and Families,Safeguarding Targeted & Specialist,Third Party Payments,Independent Fostering Agencies,509,17/08/2017,1708-00227,0.00,4997.10,R,Action For Children Services Ltd,No
Http://opendatacommunities.org/id/metropolitan-district-council/leeds,Leeds City Council,31/08/2017,Children and Families,Safeguarding Targeted & Specialist,Third Party Payments,Independent Fostering Agencies,509,25/08/2017,1708-00228,0.00,5163.67,R,Action For Children Services Ltd,No
Http://opendatacommunities.org/id/metropolitan-district-council/leeds,Leeds City Council,31/08/2017,Environment & Housing,Environmental Action (West North West),Supplies and Services,Bought In Professional Services,277,01/08/2017,1708-00229,0.00,110.00,R,Acumen Waste Services Ltd,No
Http://opendatacommunities.org/id/metropolitan-district-council/leeds,Leeds City Council,31/08/2017,Environment & Housing,Waste Management,Supplies and Services,Recycling & Reuse Charges,234,08/08/2017,1708-00230,0.00,5703.71,R,Acumen Waste Services Ltd,No
Http://opendatacommunities.org/id/metropolitan-district-council/leeds,Leeds City Council,31/08/2017,Environment & Housing,Environmental Action (West North West),Supplies and Services,Bought In Professional Services,277,11/08/2017,1708-00231,0.00,110.00,R,Acumen Waste Services Ltd,No
Http://opendatacommunities.org/id/metropolitan-district-council/leeds,Leeds City Council,31/08/2017,Environment & Housing,Waste Management,Transport,Repair & Maintenance of  Plant,342,16/08/2017,1708-00232,0.00,1265.00,R,Acumen Waste Services Ltd,No
Http://opendatacommunities.org/id/metropolitan-district-council/leeds,Leeds City Council,31/08/2017,Environment & Housing,Waste Management,Supplies and Services,Recycling & Reuse Charges,234,17/08/2017,1708-00233,0.00,5701.03,R,Acumen Waste Services Ltd,No
Http://opendatacommunities.org/id/metropolitan-district-council/leeds,Leeds City Council,31/08/2017,Environment & Housing,Waste Management,Supplies and Services,Recycling & Reuse Charges,234,24/08/2017,1708-00234,0.00,110.00,R,Acumen Waste Services Ltd,No
Http://opendatacommunities.org/id/metropolitan-district-council/leeds,Leeds City Council,31/08/2017,Environment & Housing,Waste Management,Supplies and Services,Recycling & Reuse Charges,234,24/08/2017,1708-00235,0.00,220.00,R,Acumen Waste Services Ltd,No
Http://opendatacommunities.org/id/metropolitan-district-council/leeds,Leeds City Council,31/08/2017,Environment & Housing,Waste Management,Supplies and Services,Recycling & Reuse Charges,234,24/08/2017,1708-00236,0.00,220.00,R,Acumen Waste Services Ltd,No
Http://opendatacommunities.org/id/metropolitan-district-council/leeds,Leeds City Council,31/08/2017,Environment & Housing,Waste Management,Supplies and Services,Recycling & Reuse Charges,234,24/08/2017,1708-00237,0.00,110.00,R,Acumen Waste Services Ltd,No
Http://opendatacommunities.org/id/metropolitan-district-council/leeds,Leeds City Council,31/08/2017,Environment & Housing,Waste Management,Supplies and Services,Recycling & Reuse Charges,234,30/08/2017,1708-00238,0.00,4810.60,R,Acumen Waste Services Ltd,No
Http://opendatacommunities.org/id/metropolitan-district-council/leeds,Leeds City Council,31/08/2017,Environment & Housing,Waste Management,Supplies and Services,Recycling & Reuse Charges,234,30/08/2017,1708-00239,0.00,5764.68,R,Acumen Waste Services Ltd,No
Http://opendatacommunities.org/id/metropolitan-district-council/leeds,Leeds City Council,31/08/2017,Environment & Housing,Waste Management,Supplies and Services,Recycling & Reuse Charges,234,30/08/2017,1708-00240,0.00,5745.25,R,Acumen Waste Services Ltd,No
Http://opendatacommunities.org/id/metropolitan-district-council/leeds,Leeds City Council,31/08/2017,Environment & Housing,Environmental Action (South),Premises,Removal Of Workplace Waste,126,31/08/2017,1708-00241,0.00,220.00,R,Acumen Waste Services Ltd,No
Http://opendatacommunities.org/id/metropolitan-district-council/leeds,Leeds City Council,31/08/2017,Environment & Housing,Environmental Action (South),Premises,Removal Of Workplace Waste,126,31/08/2017,1708-00242,0.00,110.00,R,Acumen Waste Services Ltd,No
Http://opendatacommunities.org/id/metropolitan-district-council/leeds,Leeds City Council,31/08/2017,Environment & Housing,Environmental Action (South),Premises,Removal Of Workplace Waste,126,31/08/2017,1708-00243,0.00,330.00,R,Acumen Waste Services Ltd,No
Http://opendatacommunities.org/id/metropolitan-district-council/leeds,Leeds City Council,31/08/2017,Environment & Housing,Parks and Countryside,Supplies and Services,Resaleable Materials,204,16/08/2017,1708-00244,0.00,100.00,R,Acushnet Europe Limited,No
Http://opendatacommunities.org/id/metropolitan-district-council/leeds,Leeds City Council,31/08/2017,Civic Enterprise Leeds,Shared Services,Supplies and Services,Operational Materials,205,16/08/2017,1708-00245,0.00,645.00,R,Ad3 Envelope Printers Limited,No
Http://opendatacommunities.org/id/metropolitan-district-council/leeds,Leeds City Council,31/08/2017,Adults and Health,Assessment And Care Management,Employees,Training & Development,70,03/08/2017,1708-00246,0.00,13.00,R,REDACTED PERSONAL DATA,No
Http://opendatacommunities.org/id/metropolitan-district-council/leeds,Leeds City Council,31/08/2017,Adults and Health,Services For Older People - 65 And Over,Third Party Payments,Nursing Home,570,23/08/2017,1708-00247,0.00,3786.24,R,Adbolton Hall,No
Http://opendatacommunities.org/id/metropolitan-district-council/leeds,Leeds City Council,31/08/2017,Children and Families,Safeguarding Targeted & Specialist,Supplies and Services,Bought In Professional Services,277,02/08/2017,1708-00248,0.00,3135.00,R,Adcs,No
Http://opendatacommunities.org/id/metropolitan-district-council/leeds,Leeds City Council,31/08/2017,Resources and Housing,HRA Housing Leeds,Capital,Internal Fees,6,01/09/2017,1708-00249,0.00,3120.00,C,Addleshaw Goddard Llp,No
Http://opendatacommunities.org/id/metropolitan-district-council/leeds,Leeds City Council,31/08/2017,Resources and Housing,Sustainable Energy & Climate Change,Capital,Other Costs,7,01/09/2017,1708-00250,0.00,3120.50,C,Addleshaw Goddard Llp,No
Http://opendatacommunities.org/id/metropolitan-district-council/leeds,Leeds City Council,31/08/2017,City Development,Asset Management,Capital,Land,1,08/09/2017,1708-00251,0.00,962000.00,C,Addleshaw Goddard Llp Client Ac,No
Http://opendatacommunities.org/id/metropolitan-district-council/leeds,Leeds City Council,31/08/2017,Resources and Housing,Human Resources,Employees,Occupational Health,85,17/08/2017,1708-00252,0.00,60.00,R,Addlestone & Partners,No
Http://opendatacommunities.org/id/metropolitan-district-council/leeds,Leeds City Council,31/08/2017,Resources and Housing,Technology  ,Employees,Agency Staff,8,17/07/2017,1708-00253,0.00,21036.70,R,Adecco Alfred Marks,Yes
Http://opendatacommunities.org/id/metropolitan-district-council/leeds,Leeds City Council,31/08/2017,Resources and Housing,Technology  ,Employees,Agency Staff,8,26/07/2017,1708-00254,0.00,21662.90,R,Adecco Alfred Marks,Yes
Http://opendatacommunities.org/id/metropolitan-district-council/leeds,Leeds City Council,31/08/2017,Adults and Health,Public Health,Third Party Payments,Public Health Commissioned Services,526,25/08/2017,1708-00255,0.00,41.48,R,Adel Pharmacy,No
Http://opendatacommunities.org/id/metropolitan-district-council/leeds,Leeds City Council,31/08/2017,Communities and Environment,Communities,Supplies and Services,'Well Being' Large Grants Projects,230,25/08/2017,1708-00256,0.00,7500.00,R,Adel War Memorial Association,No
Http://opendatacommunities.org/id/metropolitan-district-council/leeds,Leeds City Council,31/08/2017,Adults and Health,Services For Older People - 65 And Over,Third Party Payments,Nursing Home,570,23/08/2017,1708-00257,0.00,1157.68,R,Aden House,No
Http://opendatacommunities.org/id/metropolitan-district-council/leeds,Leeds City Council,31/08/2017,Environment & Housing,Leeds Building Services,Supplies and Services,Operational Materials,205,04/08/2017,1708-00258,0.00,514.04,R,Adi Global,No
Http://opendatacommunities.org/id/metropolitan-district-council/leeds,Leeds City Council,31/08/2017,Environment & Housing,Leeds Building Services,Supplies and Services,Operational Materials,205,07/08/2017,1708-00259,0.00,81.76,R,Adi Global,No
Http://opendatacommunities.org/id/metropolitan-district-council/leeds,Leeds City Council,31/08/2017,Environment & Housing,Leeds Building Services,Supplies and Services,Operational Materials,205,07/08/2017,1708-00260,0.00,13.17,R,Adi Global,No
Http://opendatacommunities.org/id/metropolitan-district-council/leeds,Leeds City Council,31/08/2017,Environment & Housing,Leeds Building Services,Supplies and Services,Operational Materials,205,07/08/2017,1708-00261,0.00,79.02,R,Adi Global,No
Http://opendatacommunities.org/id/metropolitan-district-council/leeds,Leeds City Council,31/08/2017,Environment & Housing,Leeds Building Services,Supplies and Services,Operational Materials,205,17/08/2017,1708-00262,0.00,59.91,R,Adi Global,No
Http://opendatacommunities.org/id/metropolitan-district-council/leeds,Leeds City Council,31/08/2017,Environment & Housing,Leeds Building Services,Supplies and Services,Operational Materials,205,17/08/2017,1708-00263,0.00,37.57,R,Adi Global,No
Http://opendatacommunities.org/id/metropolitan-district-council/leeds,Leeds City Council,31/08/2017,Environment & Housing,Leeds Building Services,Supplies and Services,Operational Materials,205,17/08/2017,1708-00264,0.00,225.42,R,Adi Global,No
Http://opendatacommunities.org/id/metropolitan-district-council/leeds,Leeds City Council,31/08/2017,Environment & Housing,Leeds Building Services,Supplies and Services,Operational Materials,205,17/08/2017,1708-00265,0.00,316.11,R,Adi Global,No
Http://opendatacommunities.org/id/metropolitan-district-council/leeds,Leeds City Council,31/08/2017,Environment & Housing,Leeds Building Services,Supplies and Services,Operational Materials,205,22/08/2017,1708-00266,0.00,1235.61,R,Adi Global,No
Http://opendatacommunities.org/id/metropolitan-district-council/leeds,Leeds City Council,31/08/2017,Environment & Housing,Community Safety  ,Supplies and Services,Other Hired And Contracted Services,265,18/07/2017,1708-00267,0.00,122.72,R,Adi-Gardiner Ltd,Yes
Http://opendatacommunities.org/id/metropolitan-district-council/leeds,Leeds City Council,31/08/2017,Environment & Housing,Community Safety  ,Supplies and Services,Other Hired And Contracted Services,265,18/07/2017,1708-00268,0.00,180.00,R,Adi-Gardiner Ltd,Yes
Http://opendatacommunities.org/id/metropolitan-district-council/leeds,Leeds City Council,31/08/2017,Children and Families,Safeguarding Targeted & Specialist,Supplies and Services,Security Services(Non Infrastructure),262,04/08/2017,1708-00269,0.00,108.90,R,Adm Security,No
Http://opendatacommunities.org/id/metropolitan-district-council/leeds,Leeds City Council,31/08/2017,Children and Families,Safeguarding Targeted & Specialist,Supplies and Services,Security Services(Non Infrastructure),262,11/08/2017,1708-00270,0.00,108.90,R,Adm Security,No
Http://opendatacommunities.org/id/metropolitan-district-council/leeds,Leeds City Council,31/08/2017,Children and Families,Safeguarding Targeted & Specialist,Supplies and Services,Security Services(Non Infrastructure),262,18/08/2017,1708-00271,0.00,108.90,R,Adm Security,No
Http://opendatacommunities.org/id/metropolitan-district-council/leeds,Leeds City Council,31/08/2017,Children and Families,Safeguarding Targeted & Specialist,Supplies and Services,Security Services(Non Infrastructure),262,24/08/2017,1708-00272,0.00,108.90,R,Adm Security,No
Http://opendatacommunities.org/id/metropolitan-district-council/leeds,Leeds City Council,31/08/2017,Children and Families,Safeguarding Targeted & Specialist,Supplies and Services,Security Services(Non Infrastructure),262,31/08/2017,1708-00273,0.00,108.90,R,Adm Security,No
Http://opendatacommunities.org/id/metropolitan-district-council/leeds,Leeds City Council,31/08/2017,Children and Families,Safeguarding Targeted & Specialist,Third Party Payments,Independent Fostering Agencies,509,04/08/2017,1708-00274,0.00,2850.00,R,Adolescent And Childrens Trust,No
Http://opendatacommunities.org/id/metropolitan-district-council/leeds,Leeds City Council,31/08/2017,Children and Families,Safeguarding Targeted & Specialist,Third Party Payments,Independent Fostering Agencies,509,04/08/2017,1708-00275,0.00,2850.00,R,Adolescent And Childrens Trust,No
Http://opendatacommunities.org/id/metropolitan-district-council/leeds,Leeds City Council,31/08/2017,Children and Families,Safeguarding Targeted & Specialist,Third Party Payments,Independent Fostering Agencies,509,04/08/2017,1708-00276,0.00,2850.00,R,Adolescent And Childrens Trust,No
Http://opendatacommunities.org/id/metropolitan-district-council/leeds,Leeds City Council,31/08/2017,Children and Families,Safeguarding Targeted & Specialist,Third Party Payments,Independent Fostering Agencies,509,04/08/2017,1708-00277,0.00,3000.00,R,Adolescent And Childrens Trust,No
Http://opendatacommunities.org/id/metropolitan-district-council/leeds,Leeds City Council,31/08/2017,Children and Families,Safeguarding Targeted & Specialist,Third Party Payments,Independent Fostering Agencies,509,24/08/2017,1708-00278,0.00,3100.00,R,Adolescent And Childrens Trust,No
Http://opendatacommunities.org/id/metropolitan-district-council/leeds,Leeds City Council,31/08/2017,Children and Families,Safeguarding Targeted & Specialist,Third Party Payments,Independent Fostering Agencies,509,24/08/2017,1708-00279,0.00,2945.00,R,Adolescent And Childrens Trust,No
Http://opendatacommunities.org/id/metropolitan-district-council/leeds,Leeds City Council,31/08/2017,Children and Families,Safeguarding Targeted & Specialist,Third Party Payments,Independent Fostering Agencies,509,24/08/2017,1708-00280,0.00,2945.00,R,Adolescent And Childrens Trust,No
Http://opendatacommunities.org/id/metropolitan-district-council/leeds,Leeds City Council,31/08/2017,Children and Families,Safeguarding Targeted & Specialist,Third Party Payments,Independent Fostering Agencies,509,24/08/2017,1708-00281,0.00,2945.00,R,Adolescent And Childrens Trust,No
Http://opendatacommunities.org/id/metropolitan-district-council/leeds,Leeds City Council,31/08/2017,Children and Families,Safeguarding Targeted & Specialist,Third Party Payments,Independent Fostering Agencies,509,24/08/2017,1708-00282,0.00,3100.00,R,Adolescent And Childrens Trust,No
Http://opendatacommunities.org/id/metropolitan-district-council/leeds,Leeds City Council,31/08/2017,Children and Families,Safeguarding Targeted & Specialist,Third Party Payments,Independent Fostering Agencies,509,25/08/2017,1708-00283,0.00,600.00,R,Adolescent And Childrens Trust,No
Http://opendatacommunities.org/id/metropolitan-district-council/leeds,Leeds City Council as Accountable Body,31/08/2017,Social Services Pooled Budgets,Jcs For People With Learning Disabilitie,Third Party Payments,Residential,580,24/08/2017,1708-00284,0.00,2609.36,R,Adrian House,No
Http://opendatacommunities.org/id/metropolitan-district-council/leeds,Leeds City Council as Accountable Body,31/08/2017,Social Services Pooled Budgets,Jcs For People With Learning Disabilitie,Third Party Payments,Residential,580,31/08/2017,1708-00285,0.00,2609.36,R,Adrian House,No
Http://opendatacommunities.org/id/metropolitan-district-council/leeds,Leeds City Council,31/08/2017,Strategic Landlord,Housing Management,Premises,Premises Security Services,162,03/08/2017,1708-00286,0.00,137.77,R,Adt Fire And Security Plc,No
Http://opendatacommunities.org/id/metropolitan-district-council/leeds,Leeds City Council,31/08/2017,Strategic Landlord,Housing Management,Premises,Premises Security Services,162,03/08/2017,1708-00287,0.00,142.00,R,Adt Fire And Security Plc,No
Http://opendatacommunities.org/id/metropolitan-district-council/leeds,Leeds City Council,31/08/2017,Strategic Landlord,Housing Management,Premises,Premises Security Services,162,03/08/2017,1708-00288,0.00,136.47,R,Adt Fire And Security Plc,No
Http://opendatacommunities.org/id/metropolitan-district-council/leeds,Leeds City Council,31/08/2017,Civic Enterprise Leeds,Corporate Property Management,Premises,Maintenance Of Buildings,101,17/08/2017,1708-00289,0.00,153.63,R,Adt Fire And Security Plc,No
Http://opendatacommunities.org/id/metropolitan-district-council/leeds,Leeds City Council,31/08/2017,Strategic Landlord,Housing Management,Premises,Water Services,125,30/08/2017,1708-00290,0.00,142.00,R,Adt Fire And Security Plc,No
Http://opendatacommunities.org/id/metropolitan-district-council/leeds,Leeds City Council,31/08/2017,Strategic Landlord,Housing Management,Premises,Premises Security Services,162,30/08/2017,1708-00291,0.00,136.47,R,Adt Fire And Security Plc,No
Http://opendatacommunities.org/id/metropolitan-district-council/leeds,Leeds City Council as Accountable Body,31/08/2017,Social Services Pooled Budgets,Jcs For People With Learning Disabilitie,Third Party Payments,Sheltered Accommodation,569,18/08/2017,1708-00292,0.00,395.50,R,Adult Placement Services,No
Http://opendatacommunities.org/id/metropolitan-district-council/leeds,Leeds City Council as Accountable Body,31/08/2017,Social Services Pooled Budgets,Jcs For People With Learning Disabilitie,Third Party Payments,Sheltered Accommodation,569,18/08/2017,1708-00293,0.00,1332.20,R,Adult Placement Services,No
Http://opendatacommunities.org/id/metropolitan-district-council/leeds,Leeds City Council,31/08/2017,Adults and Health,Services For Adults Under 65 Mental/Dis,Third Party Payments,Nursing Home,570,23/08/2017,1708-00294,0.00,1541.96,R,Adult Supported Living Ltd,No
Http://opendatacommunities.org/id/metropolitan-district-council/leeds,Leeds City Council,31/08/2017,City Development,Libraries  Arts & Heritage,Supplies and Services,External Audit Fees,261,04/08/2017,1708-00295,0.00,85.00,R,Advance Stocks Ltd,No
Http://opendatacommunities.org/id/metropolitan-district-council/leeds,Leeds City Council,31/08/2017,City Development,Recreation,Supplies and Services,External Audit Fees,261,25/08/2017,1708-00296,0.00,235.00,R,Advance Stocks Ltd,No
Http://opendatacommunities.org/id/metropolitan-district-council/leeds,Leeds City Council,31/08/2017,City Development,Recreation,Supplies and Services,External Audit Fees,261,25/08/2017,1708-00297,0.00,85.00,R,Advance Stocks Ltd,No
Http://opendatacommunities.org/id/metropolitan-district-council/leeds,Leeds City Council,31/08/2017,City Development,Libraries  Arts & Heritage,Supplies and Services,External Audit Fees,261,31/08/2017,1708-00298,0.00,90.00,R,Advance Stocks Ltd,No
Http://opendatacommunities.org/id/metropolitan-district-council/leeds,Leeds City Council,31/08/2017,Children and Families,Safeguarding Targeted & Specialist,Support Services,Legal Disbursements,411,14/08/2017,1708-00299,0.00,309.30,R,Advanced Child Care Assessments Ltd,No
Http://opendatacommunities.org/id/metropolitan-district-council/leeds,Leeds City Council,31/08/2017,Children and Families,Safeguarding Targeted & Specialist,Support Services,Legal Disbursements,411,24/08/2017,1708-00300,0.00,261.00,R,Advanced Child Care Assessments Ltd,No
Http://opendatacommunities.org/id/metropolitan-district-council/leeds,Leeds City Council as Accountable Body,31/08/2017,Social Services Pooled Budgets,Jcs For People With Learning Disabilitie,Third Party Payments,Residential,580,23/08/2017,1708-00301,0.00,20183.88,R,Advitam Ltd,No
Http://opendatacommunities.org/id/metropolitan-district-council/leeds,Leeds City Council,31/08/2017,Adults and Health,Services For Older People - 65 And Over,Third Party Payments,Payments To Voluntary Organisations,561,04/08/2017,1708-00302,0.00,83435.70,R,Advonet,No
Http://opendatacommunities.org/id/metropolitan-district-council/leeds,Leeds City Council,31/08/2017,Adults and Health,Services For Adults Under 65 Mental/Dis,Third Party Payments,Payments To Voluntary Organisations,561,08/08/2017,1708-00303,0.00,1051.94,R,Advonet,No
Http://opendatacommunities.org/id/metropolitan-district-council/leeds,Leeds City Council,31/08/2017,Adults and Health,Services For Adults Under 65 Mental/Dis,Third Party Payments,Payments To Voluntary Organisations,561,08/08/2017,1708-00304,0.00,13553.10,R,Advonet,No
Http://opendatacommunities.org/id/metropolitan-district-council/leeds,Leeds City Council,31/08/2017,City Development,Highways,Capital,Construction,3,04/08/2017,1708-00305,0.00,10000.00,C,Aecom Limited,No
Http://opendatacommunities.org/id/metropolitan-district-council/leeds,Leeds City Council,31/08/2017,City Development,Highways,Supplies and Services,Other Hired And Contracted Services,265,07/08/2017,1708-00306,0.00,9995.00,R,Aecom Limited,No
Http://opendatacommunities.org/id/metropolitan-district-council/leeds,Leeds City Council,31/08/2017,City Development,Economic Development,Capital,Other Costs,7,14/08/2017,1708-00307,0.00,24000.00,C,Aecom Limited,No
Http://opendatacommunities.org/id/metropolitan-district-council/leeds,Leeds City Council,31/08/2017,Adults and Health,Services For Older People - 65 And Over,Third Party Payments,Home Care,568,02/08/2017,1708-00308,0.00,511.36,R,Affinity Trust,No
Http://opendatacommunities.org/id/metropolitan-district-council/leeds,Leeds City Council,31/08/2017,Adults and Health,Services For Older People Under 65 P/Dis,Third Party Payments,Home Care,568,04/08/2017,1708-00309,0.00,1062.67,R,Affinity Trust,No
Http://opendatacommunities.org/id/metropolitan-district-council/leeds,Leeds City Council,31/08/2017,Adults and Health,Services For Older People Under 65 P/Dis,Third Party Payments,Home Care,568,04/08/2017,1708-00310,0.00,639.20,R,Affinity Trust,No
Http://opendatacommunities.org/id/metropolitan-district-council/leeds,Leeds City Council,31/08/2017,Adults and Health,Services For Older People - 65 And Over,Third Party Payments,Home Care,568,04/08/2017,1708-00311,0.00,1076.48,R,Affinity Trust,No
Http://opendatacommunities.org/id/metropolitan-district-council/leeds,Leeds City Council,31/08/2017,Adults and Health,Services For Older People - 65 And Over,Third Party Payments,Home Care,568,04/08/2017,1708-00312,0.00,431.46,R,Affinity Trust,No
Http://opendatacommunities.org/id/metropolitan-district-council/leeds,Leeds City Council,31/08/2017,Adults and Health,Services For Older People - 65 And Over,Third Party Payments,Home Care,568,04/08/2017,1708-00313,0.00,503.37,R,Affinity Trust,No
Http://opendatacommunities.org/id/metropolitan-district-council/leeds,Leeds City Council as Accountable Body,31/08/2017,Social Services Pooled Budgets,Jcs For People With Learning Disabilitie,Third Party Payments,Home Care,568,15/08/2017,1708-00314,0.00,966.79,R,Affinity Trust,No
Http://opendatacommunities.org/id/metropolitan-district-council/leeds,Leeds City Council as Accountable Body,31/08/2017,Social Services Pooled Budgets,Jcs For People With Learning Disabilitie,Third Party Payments,Home Care,568,15/08/2017,1708-00315,0.00,1046.69,R,Affinity Trust,No
Http://opendatacommunities.org/id/metropolitan-district-council/leeds,Leeds City Council as Accountable Body,31/08/2017,Social Services Pooled Budgets,Jcs For People With Learning Disabilitie,Third Party Payments,Home Care,568,15/08/2017,1708-00316,0.00,1086.64,R,Affinity Trust,No
Http://opendatacommunities.org/id/metropolitan-district-council/leeds,Leeds City Council as Accountable Body,31/08/2017,Social Services Pooled Budgets,Jcs For People With Learning Disabilitie,Third Party Payments,Home Care,568,15/08/2017,1708-00317,0.00,239.70,R,Affinity Trust,No
Http://opendatacommunities.org/id/metropolitan-district-council/leeds,Leeds City Council as Accountable Body,31/08/2017,Social Services Pooled Budgets,Jcs For People With Learning Disabilitie,Third Party Payments,Home Care,568,15/08/2017,1708-00318,0.00,816.00,R,Affinity Trust,No
Http://opendatacommunities.org/id/metropolitan-district-council/leeds,Leeds City Council as Accountable Body,31/08/2017,Social Services Pooled Budgets,Jcs For People With Learning Disabilitie,Third Party Payments,Day Centre,564,15/08/2017,1708-00319,0.00,385.83,R,Affinity Trust,No
Http://opendatacommunities.org/id/metropolitan-district-council/leeds,Leeds City Council as Accountable Body,31/08/2017,Social Services Pooled Budgets,Jcs For People With Learning Disabilitie,Third Party Payments,Home Care,568,15/08/2017,1708-00320,0.00,767.04,R,Affinity Trust,No
Http://opendatacommunities.org/id/metropolitan-district-council/leeds,Leeds City Council as Accountable Body,31/08/2017,Social Services Pooled Budgets,Jcs For People With Learning Disabilitie,Third Party Payments,Home Care,568,15/08/2017,1708-00321,0.00,1518.00,R,Affinity Trust,No
Http://opendatacommunities.org/id/metropolitan-district-council/leeds,Leeds City Council as Accountable Body,31/08/2017,Social Services Pooled Budgets,Jcs For People With Learning Disabilitie,Third Party Payments,Home Care,568,15/08/2017,1708-00322,0.00,1211.04,R,Affinity Trust,No
Http://opendatacommunities.org/id/metropolitan-district-council/leeds,Leeds City Council as Accountable Body,31/08/2017,Social Services Pooled Budgets,Jcs For People With Learning Disabilitie,Third Party Payments,Home Care,568,15/08/2017,1708-00323,0.00,846.94,R,Affinity Trust,No
Http://opendatacommunities.org/id/metropolitan-district-council/leeds,Leeds City Council as Accountable Body,31/08/2017,Social Services Pooled Budgets,Jcs For People With Learning Disabilitie,Third Party Payments,Home Care,568,15/08/2017,1708-00324,0.00,191.76,R,Affinity Trust,No
Http://opendatacommunities.org/id/metropolitan-district-council/leeds,Leeds City Council as Accountable Body,31/08/2017,Social Services Pooled Budgets,Jcs For People With Learning Disabilitie,Third Party Payments,Home Care,568,15/08/2017,1708-00325,0.00,639.20,R,Affinity Trust,No
Http://opendatacommunities.org/id/metropolitan-district-council/leeds,Leeds City Council as Accountable Body,31/08/2017,Social Services Pooled Budgets,Jcs For People With Learning Disabilitie,Third Party Payments,Home Care,568,15/08/2017,1708-00326,0.00,306.00,R,Affinity Trust,No
Http://opendatacommunities.org/id/metropolitan-district-council/leeds,Leeds City Council as Accountable Body,31/08/2017,Social Services Pooled Budgets,Jcs For People With Learning Disabilitie,Third Party Payments,Home Care,568,15/08/2017,1708-00327,0.00,1118.60,R,Affinity Trust,No
Http://opendatacommunities.org/id/metropolitan-district-council/leeds,Leeds City Council as Accountable Body,31/08/2017,Social Services Pooled Budgets,Jcs For People With Learning Disabilitie,Third Party Payments,Home Care,568,15/08/2017,1708-00328,0.00,2988.26,R,Affinity Trust,No
Http://opendatacommunities.org/id/metropolitan-district-council/leeds,Leeds City Council as Accountable Body,31/08/2017,Social Services Pooled Budgets,Jcs For People With Learning Disabilitie,Third Party Payments,Home Care,568,15/08/2017,1708-00329,0.00,408.64,R,Affinity Trust,No
Http://opendatacommunities.org/id/metropolitan-district-council/leeds,Leeds City Council as Accountable Body,31/08/2017,Social Services Pooled Budgets,Jcs For People With Learning Disabilitie,Third Party Payments,Home Care,568,15/08/2017,1708-00330,0.00,941.92,R,Affinity Trust,No
Http://opendatacommunities.org/id/metropolitan-district-council/leeds,Leeds City Council as Accountable Body,31/08/2017,Social Services Pooled Budgets,Jcs For People With Learning Disabilitie,Third Party Payments,Home Care,568,15/08/2017,1708-00331,0.00,255.68,R,Affinity Trust,No
Http://opendatacommunities.org/id/metropolitan-district-council/leeds,Leeds City Council as Accountable Body,31/08/2017,Social Services Pooled Budgets,Jcs For People With Learning Disabilitie,Third Party Payments,Home Care,568,15/08/2017,1708-00332,0.00,958.80,R,Affinity Trust,No
Http://opendatacommunities.org/id/metropolitan-district-council/leeds,Leeds City Council as Accountable Body,31/08/2017,Social Services Pooled Budgets,Jcs For People With Learning Disabilitie,Third Party Payments,Home Care,568,15/08/2017,1708-00333,0.00,383.52,R,Affinity Trust,No
Http://opendatacommunities.org/id/metropolitan-district-council/leeds,Leeds City Council,31/08/2017,Adults and Health,Services For Older People Under 65 P/Dis,Third Party Payments,Home Care,568,18/08/2017,1708-00334,0.00,511.36,R,Affinity Trust,No
Http://opendatacommunities.org/id/metropolitan-district-council/leeds,Leeds City Council,31/08/2017,Adults and Health,Services For Older People Under 65 P/Dis,Third Party Payments,Home Care,568,18/08/2017,1708-00335,0.00,134.56,R,Affinity Trust,No
Http://opendatacommunities.org/id/metropolitan-district-council/leeds,Leeds City Council,31/08/2017,Adults and Health,Services For Older People Under 65 P/Dis,Third Party Payments,Home Care,568,18/08/2017,1708-00336,0.00,403.68,R,Affinity Trust,No
Http://opendatacommunities.org/id/metropolitan-district-council/leeds,Leeds City Council as Accountable Body,31/08/2017,Social Services Pooled Budgets,Jcs For People With Learning Disabilitie,Third Party Payments,Day Centre,564,21/08/2017,1708-00337,0.00,1035.99,R,Affinity Trust,No
Http://opendatacommunities.org/id/metropolitan-district-council/leeds,Leeds City Council as Accountable Body,31/08/2017,Social Services Pooled Budgets,Jcs For People With Learning Disabilitie,Third Party Payments,Home Care,568,21/08/2017,1708-00338,0.00,335.58,R,Affinity Trust,No
Http://opendatacommunities.org/id/metropolitan-district-council/leeds,Leeds City Council as Accountable Body,31/08/2017,Social Services Pooled Budgets,Jcs For People With Learning Disabilitie,Third Party Payments,Home Care,568,21/08/2017,1708-00339,0.00,211.74,R,Affinity Trust,No
Http://opendatacommunities.org/id/metropolitan-district-council/leeds,Leeds City Council as Accountable Body,31/08/2017,Social Services Pooled Budgets,Jcs For People With Learning Disabilitie,Third Party Payments,Home Care,568,21/08/2017,1708-00340,0.00,1230.46,R,Affinity Trust,No
Http://opendatacommunities.org/id/metropolitan-district-council/leeds,Leeds City Council as Accountable Body,31/08/2017,Social Services Pooled Budgets,Jcs For People With Learning Disabilitie,Third Party Payments,Home Care,568,21/08/2017,1708-00341,0.00,303.62,R,Affinity Trust,No
Http://opendatacommunities.org/id/metropolitan-district-council/leeds,Leeds City Council as Accountable Body,31/08/2017,Social Services Pooled Budgets,Jcs For People With Learning Disabilitie,Third Party Payments,Home Care,568,21/08/2017,1708-00342,0.00,612.00,R,Affinity Trust,No
Http://opendatacommunities.org/id/metropolitan-district-council/leeds,Leeds City Council as Accountable Body,31/08/2017,Social Services Pooled Budgets,Jcs For People With Learning Disabilitie,Third Party Payments,Home Care,568,21/08/2017,1708-00343,0.00,479.40,R,Affinity Trust,No
Http://opendatacommunities.org/id/metropolitan-district-council/leeds,Leeds City Council as Accountable Body,31/08/2017,Social Services Pooled Budgets,Jcs For People With Learning Disabilitie,Third Party Payments,Home Care,568,21/08/2017,1708-00344,0.00,1320.00,R,Affinity Trust,No
Http://opendatacommunities.org/id/metropolitan-district-council/leeds,Leeds City Council as Accountable Body,31/08/2017,Social Services Pooled Budgets,Jcs For People With Learning Disabilitie,Third Party Payments,Home Care,568,21/08/2017,1708-00345,0.00,1211.04,R,Affinity Trust,No
Http://opendatacommunities.org/id/metropolitan-district-council/leeds,Leeds City Council as Accountable Body,31/08/2017,Social Services Pooled Budgets,Jcs For People With Learning Disabilitie,Third Party Payments,Home Care,568,21/08/2017,1708-00346,0.00,1182.52,R,Affinity Trust,No
Http://opendatacommunities.org/id/metropolitan-district-council/leeds,Leeds City Council as Accountable Body,31/08/2017,Social Services Pooled Budgets,Jcs For People With Learning Disabilitie,Third Party Payments,Home Care,568,21/08/2017,1708-00347,0.00,191.76,R,Affinity Trust,No
Http://opendatacommunities.org/id/metropolitan-district-council/leeds,Leeds City Council as Accountable Body,31/08/2017,Social Services Pooled Budgets,Jcs For People With Learning Disabilitie,Third Party Payments,Home Care,568,21/08/2017,1708-00348,0.00,639.20,R,Affinity Trust,No
Http://opendatacommunities.org/id/metropolitan-district-council/leeds,Leeds City Council as Accountable Body,31/08/2017,Social Services Pooled Budgets,Jcs For People With Learning Disabilitie,Third Party Payments,Home Care,568,21/08/2017,1708-00349,0.00,1118.60,R,Affinity Trust,No
Http://opendatacommunities.org/id/metropolitan-district-council/leeds,Leeds City Council as Accountable Body,31/08/2017,Social Services Pooled Budgets,Jcs For People With Learning Disabilitie,Third Party Payments,Home Care,568,21/08/2017,1708-00350,0.00,2632.71,R,Affinity Trust,No
Http://opendatacommunities.org/id/metropolitan-district-council/leeds,Leeds City Council as Accountable Body,31/08/2017,Social Services Pooled Budgets,Jcs For People With Learning Disabilitie,Third Party Payments,Home Care,568,21/08/2017,1708-00351,0.00,306.48,R,Affinity Trust,No
Http://opendatacommunities.org/id/metropolitan-district-council/leeds,Leeds City Council as Accountable Body,31/08/2017,Social Services Pooled Budgets,Jcs For People With Learning Disabilitie,Third Party Payments,Home Care,568,21/08/2017,1708-00352,0.00,941.92,R,Affinity Trust,No
Http://opendatacommunities.org/id/metropolitan-district-council/leeds,Leeds City Council as Accountable Body,31/08/2017,Social Services Pooled Budgets,Jcs For People With Learning Disabilitie,Third Party Payments,Home Care,568,21/08/2017,1708-00353,0.00,255.68,R,Affinity Trust,No
Http://opendatacommunities.org/id/metropolitan-district-council/leeds,Leeds City Council as Accountable Body,31/08/2017,Social Services Pooled Budgets,Jcs For People With Learning Disabilitie,Third Party Payments,Home Care,568,21/08/2017,1708-00354,0.00,767.04,R,Affinity Trust,No
Http://opendatacommunities.org/id/metropolitan-district-council/leeds,Leeds City Council as Accountable Body,31/08/2017,Social Services Pooled Budgets,Jcs For People With Learning Disabilitie,Third Party Payments,Home Care,568,21/08/2017,1708-00355,0.00,431.46,R,Affinity Trust,No
Http://opendatacommunities.org/id/metropolitan-district-council/leeds,Leeds City Council as Accountable Body,31/08/2017,Social Services Pooled Budgets,Jcs For People With Learning Disabilitie,Third Party Payments,Home Care,568,21/08/2017,1708-00356,0.00,1050.00,R,Affinity Trust,No
Http://opendatacommunities.org/id/metropolitan-district-council/leeds,Leeds City Council as Accountable Body,31/08/2017,Social Services Pooled Budgets,Jcs For People With Learning Disabilitie,Third Party Payments,Home Care,568,21/08/2017,1708-00357,0.00,637.53,R,Affinity Trust,No
Http://opendatacommunities.org/id/metropolitan-district-council/leeds,Leeds City Council as Accountable Body,31/08/2017,Social Services Pooled Budgets,Jcs For People With Learning Disabilitie,Third Party Payments,Home Care,568,21/08/2017,1708-00358,0.00,780.00,R,Affinity Trust,No
Http://opendatacommunities.org/id/metropolitan-district-council/leeds,Leeds City Council as Accountable Body,31/08/2017,Social Services Pooled Budgets,Jcs For People With Learning Disabilitie,Third Party Payments,Home Care,568,21/08/2017,1708-00359,0.00,2034.60,R,Affinity Trust,No
Http://opendatacommunities.org/id/metropolitan-district-council/leeds,Leeds City Council as Accountable Body,31/08/2017,Social Services Pooled Budgets,Jcs For People With Learning Disabilitie,Third Party Payments,Home Care,568,21/08/2017,1708-00360,0.00,894.88,R,Affinity Trust,No
Http://opendatacommunities.org/id/metropolitan-district-council/leeds,Leeds City Council as Accountable Body,31/08/2017,Social Services Pooled Budgets,Jcs For People With Learning Disabilitie,Third Party Payments,Home Care,568,23/08/2017,1708-00361,0.00,1530.78,R,Affinity Trust,No
Http://opendatacommunities.org/id/metropolitan-district-council/leeds,Leeds City Council as Accountable Body,31/08/2017,Social Services Pooled Budgets,Jcs For People With Learning Disabilitie,Third Party Payments,Home Care,568,23/08/2017,1708-00362,0.00,2623.88,R,Affinity Trust,No
Http://opendatacommunities.org/id/metropolitan-district-council/leeds,Leeds City Council as Accountable Body,31/08/2017,Social Services Pooled Budgets,Jcs For People With Learning Disabilitie,Third Party Payments,Day Centre,564,23/08/2017,1708-00363,0.00,938.56,R,Affinity Trust,No
Http://opendatacommunities.org/id/metropolitan-district-council/leeds,Leeds City Council as Accountable Body,31/08/2017,Social Services Pooled Budgets,Jcs For People With Learning Disabilitie,Third Party Payments,Home Care,568,23/08/2017,1708-00364,0.00,404.40,R,Affinity Trust,No
Http://opendatacommunities.org/id/metropolitan-district-council/leeds,Leeds City Council as Accountable Body,31/08/2017,Social Services Pooled Budgets,Jcs For People With Learning Disabilitie,Third Party Payments,Day Centre,564,23/08/2017,1708-00365,0.00,2564.43,R,Affinity Trust,No
Http://opendatacommunities.org/id/metropolitan-district-council/leeds,Leeds City Council as Accountable Body,31/08/2017,Social Services Pooled Budgets,Jcs For People With Learning Disabilitie,Third Party Payments,Home Care,568,23/08/2017,1708-00366,0.00,1343.01,R,Affinity Trust,No
Http://opendatacommunities.org/id/metropolitan-district-council/leeds,Leeds City Council as Accountable Body,31/08/2017,Social Services Pooled Budgets,Jcs For People With Learning Disabilitie,Third Party Payments,Home Care,568,23/08/2017,1708-00367,0.00,703.92,R,Affinity Trust,No
Http://opendatacommunities.org/id/metropolitan-district-council/leeds,Leeds City Council as Accountable Body,31/08/2017,Social Services Pooled Budgets,Jcs For People With Learning Disabilitie,Third Party Payments,Home Care,568,23/08/2017,1708-00368,0.00,964.67,R,Affinity Trust,No
Http://opendatacommunities.org/id/metropolitan-district-council/leeds,Leeds City Council as Accountable Body,31/08/2017,Social Services Pooled Budgets,Jcs For People With Learning Disabilitie,Third Party Payments,Home Care,568,25/08/2017,1708-00369,0.00,782.64,R,Affinity Trust,No
Http://opendatacommunities.org/id/metropolitan-district-council/leeds,Leeds City Council as Accountable Body,31/08/2017,Social Services Pooled Budgets,Jcs For People With Learning Disabilitie,Third Party Payments,Home Care,568,25/08/2017,1708-00370,0.00,1531.98,R,Affinity Trust,No
Http://opendatacommunities.org/id/metropolitan-district-council/leeds,Leeds City Council as Accountable Body,31/08/2017,Social Services Pooled Budgets,Jcs For People With Learning Disabilitie,Third Party Payments,Home Care,568,25/08/2017,1708-00371,0.00,720.68,R,Affinity Trust,No
Http://opendatacommunities.org/id/metropolitan-district-council/leeds,Leeds City Council as Accountable Body,31/08/2017,Social Services Pooled Budgets,Jcs For People With Learning Disabilitie,Third Party Payments,Home Care,568,25/08/2017,1708-00372,0.00,360.00,R,Affinity Trust,No
Http://opendatacommunities.org/id/metropolitan-district-council/leeds,Leeds City Council as Accountable Body,31/08/2017,Social Services Pooled Budgets,Jcs For People With Learning Disabilitie,Third Party Payments,Home Care,568,25/08/2017,1708-00373,0.00,301.68,R,Affinity Trust,No
Http://opendatacommunities.org/id/metropolitan-district-council/leeds,Leeds City Council as Accountable Body,31/08/2017,Social Services Pooled Budgets,Jcs For People With Learning Disabilitie,Third Party Payments,Day Centre,564,25/08/2017,1708-00374,0.00,583.11,R,Affinity Trust,No
Http://opendatacommunities.org/id/metropolitan-district-council/leeds,Leeds City Council as Accountable Body,31/08/2017,Social Services Pooled Budgets,Jcs For People With Learning Disabilitie,Third Party Payments,Day Centre,564,25/08/2017,1708-00375,0.00,1994.44,R,Affinity Trust,No
Http://opendatacommunities.org/id/metropolitan-district-council/leeds,Leeds City Council as Accountable Body,31/08/2017,Social Services Pooled Budgets,Jcs For People With Learning Disabilitie,Third Party Payments,Day Centre,564,25/08/2017,1708-00376,0.00,1142.64,R,Affinity Trust,No
Http://opendatacommunities.org/id/metropolitan-district-council/leeds,Leeds City Council as Accountable Body,31/08/2017,Social Services Pooled Budgets,Jcs For People With Learning Disabilitie,Third Party Payments,Day Centre,564,25/08/2017,1708-00377,0.00,1065.33,R,Affinity Trust,No
Http://opendatacommunities.org/id/metropolitan-district-council/leeds,Leeds City Council as Accountable Body,31/08/2017,Social Services Pooled Budgets,Jcs For People With Learning Disabilitie,Third Party Payments,Home Care,568,25/08/2017,1708-00378,0.00,1050.00,R,Affinity Trust,No
Http://opendatacommunities.org/id/metropolitan-district-council/leeds,Leeds City Council as Accountable Body,31/08/2017,Social Services Pooled Budgets,Jcs For People With Learning Disabilitie,Third Party Payments,Home Care,568,25/08/2017,1708-00379,0.00,663.63,R,Affinity Trust,No
Http://opendatacommunities.org/id/metropolitan-district-council/leeds,Leeds City Council as Accountable Body,31/08/2017,Social Services Pooled Budgets,Jcs For People With Learning Disabilitie,Third Party Payments,Home Care,568,25/08/2017,1708-00380,0.00,2503.40,R,Affinity Trust,No
Http://opendatacommunities.org/id/metropolitan-district-council/leeds,Leeds City Council,31/08/2017,Adults and Health,Services For Older People - 65 And Over,Third Party Payments,Home Care,568,30/08/2017,1708-00381,0.00,695.13,R,Affinity Trust,No
Http://opendatacommunities.org/id/metropolitan-district-council/leeds,Leeds City Council,31/08/2017,Adults and Health,Services For Older People - 65 And Over,Third Party Payments,Home Care,568,30/08/2017,1708-00382,0.00,1076.48,R,Affinity Trust,No
Http://opendatacommunities.org/id/metropolitan-district-council/leeds,Leeds City Council,31/08/2017,Adults and Health,Services For Older People - 65 And Over,Third Party Payments,Home Care,568,30/08/2017,1708-00383,0.00,511.36,R,Affinity Trust,No
Http://opendatacommunities.org/id/metropolitan-district-council/leeds,Leeds City Council,31/08/2017,Adults and Health,Services For Older People - 65 And Over,Third Party Payments,Home Care,568,30/08/2017,1708-00384,0.00,799.00,R,Affinity Trust,No
Http://opendatacommunities.org/id/metropolitan-district-council/leeds,Leeds City Council as Accountable Body,31/08/2017,Social Services Pooled Budgets,Jcs For People With Learning Disabilitie,Third Party Payments,Sheltered Accommodation,569,23/08/2017,1708-00385,0.00,99033.39,R,Affinity Trust North Divisional Office,No
Http://opendatacommunities.org/id/metropolitan-district-council/leeds,Leeds City Council,31/08/2017,Environment & Housing,Parks And Countryside  ,Transport,Hire Of Movable Plant & Machinery,315,07/07/2017,1708-00386,0.00,4750.00,R,Afi Uplift Ltd,Yes
Http://opendatacommunities.org/id/metropolitan-district-council/leeds,Leeds City Council,31/08/2017,City Development,Employment & Skills,Supplies and Services,College Contracts,276,02/08/2017,1708-00387,0.00,7200.00,R,Age Uk Leeds,No
Http://opendatacommunities.org/id/metropolitan-district-council/leeds,Leeds City Council,31/08/2017,Adults and Health,Public Health,Third Party Payments,Services Rendered By Voluntary Sector,505,04/08/2017,1708-00388,0.00,2575.00,R,Age Uk Leeds,No
Http://opendatacommunities.org/id/metropolitan-district-council/leeds,Leeds City Council,31/08/2017,Adults and Health,Public Health,Third Party Payments,Services Rendered By Voluntary Sector,505,04/08/2017,1708-00389,0.00,2575.00,R,Age Uk Leeds,No
Http://opendatacommunities.org/id/metropolitan-district-council/leeds,Leeds City Council,31/08/2017,Children and Families,Safeguarding Targeted & Specialist,Third Party Payments,Services Rendered By Other Organisations,511,03/08/2017,1708-00390,0.00,3.77,R,REDACTED PERSONAL DATA,No
Http://opendatacommunities.org/id/metropolitan-district-council/leeds,Leeds City Council,31/08/2017,Children and Families,Learning Skills & Universal,Employees,Training & Development,70,11/08/2017,1708-00391,0.00,160.00,R,Aid Training & Operations Ltd,No
Http://opendatacommunities.org/id/metropolitan-district-council/leeds,Leeds City Council,31/08/2017,Children and Families,Learning Skills & Universal,Supplies and Services,Teaching Materials,202,25/08/2017,1708-00392,0.00,157.95,R,Aid Training & Operations Ltd,No
Http://opendatacommunities.org/id/metropolitan-district-council/leeds,Leeds City Council,31/08/2017,Children and Families,Learning Skills & Universal,Supplies and Services,Teaching Materials,202,25/08/2017,1708-00393,0.00,16.96,R,Aid Training & Operations Ltd,No
Http://opendatacommunities.org/id/metropolitan-district-council/leeds,Leeds City Council as Accountable Body,31/08/2017,Social Services Pooled Budgets,Leeds Community Equip Store Pooled Budgt,Supplies and Services,Other Equipment,203,04/08/2017,1708-00394,0.00,299.60,R,Aidapt Bathrooms Ltd,No
Http://opendatacommunities.org/id/metropolitan-district-council/leeds,Leeds City Council as Accountable Body,31/08/2017,Social Services Pooled Budgets,Leeds Community Equip Store Pooled Budgt,Supplies and Services,Other Equipment,203,04/08/2017,1708-00395,0.00,1219.55,R,Aidapt Bathrooms Ltd,No
Http://opendatacommunities.org/id/metropolitan-district-council/leeds,Leeds City Council as Accountable Body,31/08/2017,Social Services Pooled Budgets,Leeds Community Equip Store Pooled Budgt,Supplies and Services,Other Equipment,203,04/08/2017,1708-00396,0.00,77.00,R,Aidapt Bathrooms Ltd,No
Http://opendatacommunities.org/id/metropolitan-district-council/leeds,Leeds City Council as Accountable Body,31/08/2017,Social Services Pooled Budgets,Leeds Community Equip Store Pooled Budgt,Supplies and Services,Other Equipment,203,04/08/2017,1708-00397,0.00,110.00,R,Aidapt Bathrooms Ltd,No
Http://opendatacommunities.org/id/metropolitan-district-council/leeds,Leeds City Council as Accountable Body,31/08/2017,Social Services Pooled Budgets,Leeds Community Equip Store Pooled Budgt,Supplies and Services,Other Equipment,203,04/08/2017,1708-00398,0.00,107.00,R,Aidapt Bathrooms Ltd,No
Http://opendatacommunities.org/id/metropolitan-district-council/leeds,Leeds City Council as Accountable Body,31/08/2017,Social Services Pooled Budgets,Leeds Community Equip Store Pooled Budgt,Supplies and Services,Other Equipment,203,16/08/2017,1708-00399,0.00,99.50,R,Aidapt Bathrooms Ltd,No
Http://opendatacommunities.org/id/metropolitan-district-council/leeds,Leeds City Council as Accountable Body,31/08/2017,Social Services Pooled Budgets,Leeds Community Equip Store Pooled Budgt,Supplies and Services,Other Equipment,203,17/08/2017,1708-00400,0.00,3737.25,R,Aidapt Bathrooms Ltd,No
Http://opendatacommunities.org/id/metropolitan-district-council/leeds,Leeds City Council as Accountable Body,31/08/2017,Social Services Pooled Budgets,Leeds Community Equip Store Pooled Budgt,Supplies and Services,Other Equipment,203,18/08/2017,1708-00401,0.00,169.40,R,Aidapt Bathrooms Ltd,No
Http://opendatacommunities.org/id/metropolitan-district-council/leeds,Leeds City Council as Accountable Body,31/08/2017,Social Services Pooled Budgets,Leeds Community Equip Store Pooled Budgt,Supplies and Services,Other Equipment,203,25/08/2017,1708-00402,0.00,1892.12,R,Aidapt Bathrooms Ltd,No
Http://opendatacommunities.org/id/metropolitan-district-council/leeds,Leeds City Council as Accountable Body,31/08/2017,Social Services Pooled Budgets,Leeds Community Equip Store Pooled Budgt,Supplies and Services,Other Equipment,203,25/08/2017,1708-00403,0.00,1460.70,R,Aidapt Bathrooms Ltd,No
Http://opendatacommunities.org/id/metropolitan-district-council/leeds,Leeds City Council,31/08/2017,Children and Families,Safeguarding Targeted & Specialist,Third Party Payments,Section 17,551,25/08/2017,1708-00404,0.00,55.00,R,Aim Education Leeds Limited,No
Http://opendatacommunities.org/id/metropolitan-district-council/leeds,Leeds City Council,31/08/2017,City Development,Libraries  Arts & Heritage,Supplies and Services,Other Hired And Contracted Services,265,16/08/2017,1708-00405,0.00,120.00,R,Ainsley Johns,No
Http://opendatacommunities.org/id/metropolitan-district-council/leeds,Leeds City Council,31/08/2017,Environment & Housing,Leeds Building Services,Supplies and Services,Operational Materials,205,02/08/2017,1708-00406,0.00,52.45,R,Air Conditioning Accessories,No
Http://opendatacommunities.org/id/metropolitan-district-council/leeds,Leeds City Council,31/08/2017,Environment & Housing,Leeds Building Services,Supplies and Services,Operational Materials,205,02/08/2017,1708-00407,0.00,42.00,R,Air Conditioning Accessories,No
Http://opendatacommunities.org/id/metropolitan-district-council/leeds,Leeds City Council,31/08/2017,Environment & Housing,Leeds Building Services,Supplies and Services,Operational Materials,205,02/08/2017,1708-00408,0.00,49.37,R,Air Conditioning Accessories,No
Http://opendatacommunities.org/id/metropolitan-district-council/leeds,Leeds City Council,31/08/2017,Environment & Housing,Leeds Building Services,Supplies and Services,Operational Materials,205,02/08/2017,1708-00409,0.00,89.24,R,Air Conditioning Accessories,No
Http://opendatacommunities.org/id/metropolitan-district-council/leeds,Leeds City Council,31/08/2017,Environment & Housing,Leeds Building Services,Supplies and Services,Operational Materials,205,02/08/2017,1708-00410,0.00,104.67,R,Air Conditioning Accessories,No
Http://opendatacommunities.org/id/metropolitan-district-council/leeds,Leeds City Council,31/08/2017,Environment & Housing,Environmental Health,Supplies and Services,Operational Furniture And Equipment,203,01/08/2017,1708-00411,0.00,75.12,R,Air Liquide Uk,No
Http://opendatacommunities.org/id/metropolitan-district-council/leeds,Leeds City Council,31/08/2017,Environment & Housing,Environmental Health,Supplies and Services,Operational Furniture And Equipment,203,04/08/2017,1708-00412,0.00,9.39,R,Air Liquide Uk,No
Http://opendatacommunities.org/id/metropolitan-district-council/leeds,Leeds City Council,31/08/2017,Environment & Housing,Parks and Countryside,Supplies and Services,Operational Furniture And Equipment,203,15/08/2017,1708-00413,0.00,558.70,R,Air Solutions (Leeds) Ltd,No
Http://opendatacommunities.org/id/metropolitan-district-council/leeds,Leeds City Council,31/08/2017,Adults and Health,Services For Adults Under 65 Mental/Dis,Third Party Payments,Residential,580,23/08/2017,1708-00414,0.00,6028.00,R,Aire House,No
Http://opendatacommunities.org/id/metropolitan-district-council/leeds,Leeds City Council as Accountable Body,31/08/2017,Social Services Pooled Budgets,Jcs For People With Learning Disabilitie,Third Party Payments,Residential,580,23/08/2017,1708-00415,0.00,3059.84,R,Aire House,No
Http://opendatacommunities.org/id/metropolitan-district-council/leeds,Leeds City Council,31/08/2017,City Development,Economic Development,Capital,Other Costs,7,08/08/2017,1708-00416,0.00,77534.47,C,Aire Valley Land Llp,No
Http://opendatacommunities.org/id/metropolitan-district-council/leeds,Leeds City Council,31/08/2017,Environment & Housing,Parks and Countryside,Supplies and Services,Other Hired And Contracted Services,265,18/08/2017,1708-00417,0.00,10625.00,R,Aire Valley Tree Services Ltd,No
Http://opendatacommunities.org/id/metropolitan-district-council/leeds,Leeds City Council,31/08/2017,Adults and Health,Services For Older People - 65 And Over,Third Party Payments,Residential Care Dementia,571,23/08/2017,1708-00418,0.00,38421.14,R,Aire View Residential Home,No
Http://opendatacommunities.org/id/metropolitan-district-council/leeds,Leeds City Council,31/08/2017,Adults and Health,Services For Older People - 65 And Over,Third Party Payments,Residential,580,23/08/2017,1708-00419,0.00,12909.00,R,Aire View Residential Home,No
Http://opendatacommunities.org/id/metropolitan-district-council/leeds,Leeds City Council,31/08/2017,Adults and Health,Services For Older People - 65 And Over,Third Party Payments,Residential Care Dementia,571,23/08/2017,1708-00420,0.00,4702.44,R,Airedale (Goldsborough),No
Http://opendatacommunities.org/id/metropolitan-district-council/leeds,Leeds City Council,31/08/2017,Adults and Health,Services For Older People - 65 And Over,Third Party Payments,Residential,580,23/08/2017,1708-00421,0.00,24251.53,R,Airedale (Goldsborough),No
Http://opendatacommunities.org/id/metropolitan-district-council/leeds,Leeds City Council,31/08/2017,Children and Families,Safeguarding Targeted & Specialist,Supplies and Services,Operational Furniture And Equipment,203,29/08/2017,1708-00422,0.00,4149.00,R,Airedale Catering Equipment Ltd,No
Http://opendatacommunities.org/id/metropolitan-district-council/leeds,Leeds City Council,31/08/2017,Adults and Health,Assessment And Care Management,Employees,Training Costs,71,11/08/2017,1708-00423,0.00,150.00,R,Airedale Community Trading (Act) Ltd,No
Http://opendatacommunities.org/id/metropolitan-district-council/leeds,Leeds City Council,31/08/2017,Adults and Health,Assessment And Care Management,Employees,Training Costs,71,31/08/2017,1708-00424,0.00,120.00,R,Airedale Community Trading (Act) Ltd,No
Http://opendatacommunities.org/id/metropolitan-district-council/leeds,Leeds City Council,31/08/2017,City Development,Economic Development,Supplies and Services,Grants To Businesses,243,08/08/2017,1708-00425,0.00,3150.00,R,Airedale House Ltd,No
Http://opendatacommunities.org/id/metropolitan-district-council/leeds,Leeds City Council as Accountable Body,31/08/2017,Social Services Pooled Budgets,Jcs For People With Learning Disabilitie,Third Party Payments,Home Care,568,31/08/2017,1708-00426,0.00,101.53,R,Airedale Nhs Foundation Trust,No
Http://opendatacommunities.org/id/metropolitan-district-council/leeds,Leeds City Council,31/08/2017,Environment & Housing,Community Safety,Supplies and Services,Bought In Professional Services,277,18/08/2017,1708-00427,0.00,802.84,R,Airwave Solutions Ltd,No
Http://opendatacommunities.org/id/metropolitan-district-council/leeds,Leeds City Council,31/08/2017,Civic Enterprise Leeds,Commercial Services,Supplies and Services,Other Hired And Contracted Services,265,16/08/2017,1708-00428,0.00,90.00,R,Air-Weigh Europe Limited,No
Http://opendatacommunities.org/id/metropolitan-district-council/leeds,Leeds City Council,31/08/2017,Civic Enterprise Leeds,Commercial Services,Supplies and Services,Other Hired And Contracted Services,265,16/08/2017,1708-00429,0.00,90.00,R,Air-Weigh Europe Limited,No
Http://opendatacommunities.org/id/metropolitan-district-council/leeds,Leeds City Council,31/08/2017,Civic Enterprise Leeds,Commercial Services,Supplies and Services,Other Hired And Contracted Services,265,16/08/2017,1708-00430,0.00,90.00,R,Air-Weigh Europe Limited,No
Http://opendatacommunities.org/id/metropolitan-district-council/leeds,Leeds City Council,31/08/2017,Civic Enterprise Leeds,Commercial Services,Supplies and Services,Other Hired And Contracted Services,265,24/08/2017,1708-00431,0.00,180.00,R,Air-Weigh Europe Limited,No
Http://opendatacommunities.org/id/metropolitan-district-council/leeds,Leeds City Council,31/08/2017,Civic Enterprise Leeds,Commercial Services,Supplies and Services,Other Hired And Contracted Services,265,25/08/2017,1708-00432,0.00,175.00,R,Air-Weigh Europe Limited,No
Http://opendatacommunities.org/id/metropolitan-district-council/leeds,Leeds City Council,31/08/2017,Civic Enterprise Leeds,Commercial Services,Supplies and Services,Other Hired And Contracted Services,265,25/08/2017,1708-00433,0.00,175.00,R,Air-Weigh Europe Limited,No
Http://opendatacommunities.org/id/metropolitan-district-council/leeds,Leeds City Council,31/08/2017,Adults and Health,Services For Adults Under 65 Mental/Dis,Third Party Payments,Fees - Level 4,520,04/08/2017,1708-00434,0.00,175.00,R,Ait Mitra,No
Http://opendatacommunities.org/id/metropolitan-district-council/leeds,Leeds City Council,31/08/2017,Adults and Health,Services For Adults Under 65 Mental/Dis,Third Party Payments,Fees - Level 4,520,04/08/2017,1708-00435,0.00,175.00,R,Ait Mitra,No
Http://opendatacommunities.org/id/metropolitan-district-council/leeds,Leeds City Council,31/08/2017,Adults and Health,Services For Adults Under 65 Mental/Dis,Third Party Payments,Fees - Level 4,520,04/08/2017,1708-00436,0.00,175.00,R,Ait Mitra,No
Http://opendatacommunities.org/id/metropolitan-district-council/leeds,Leeds City Council,31/08/2017,Adults and Health,Services For Adults Under 65 Mental/Dis,Third Party Payments,Fees - Level 4,520,04/08/2017,1708-00437,0.00,175.00,R,Ait Mitra,No
Http://opendatacommunities.org/id/metropolitan-district-council/leeds,Leeds City Council,31/08/2017,Adults and Health,Services For Adults Under 65 Mental/Dis,Third Party Payments,Fees - Level 4,520,04/08/2017,1708-00438,0.00,175.00,R,Ait Mitra,No
Http://opendatacommunities.org/id/metropolitan-district-council/leeds,Leeds City Council,31/08/2017,Adults and Health,Services For Adults Under 65 Mental/Dis,Third Party Payments,Fees - Level 4,520,04/08/2017,1708-00439,0.00,175.00,R,Ait Mitra,No
Http://opendatacommunities.org/id/metropolitan-district-council/leeds,Leeds City Council,31/08/2017,Adults and Health,Services For Adults Under 65 Mental/Dis,Third Party Payments,Fees - Level 4,520,04/08/2017,1708-00440,0.00,175.00,R,Ait Mitra,No
Http://opendatacommunities.org/id/metropolitan-district-council/leeds,Leeds City Council,31/08/2017,Adults and Health,Services For Adults Under 65 Mental/Dis,Third Party Payments,Fees - Level 4,520,04/08/2017,1708-00441,0.00,175.00,R,Ait Mitra,No
Http://opendatacommunities.org/id/metropolitan-district-council/leeds,Leeds City Council,31/08/2017,Adults and Health,Services For Adults Under 65 Mental/Dis,Third Party Payments,Fees - Level 4,520,04/08/2017,1708-00442,0.00,175.00,R,Ait Mitra,No
Http://opendatacommunities.org/id/metropolitan-district-council/leeds,Leeds City Council,31/08/2017,Adults and Health,Services For Adults Under 65 Mental/Dis,Third Party Payments,Fees - Level 4,520,04/08/2017,1708-00443,0.00,239.50,R,Ait Mitra,No
Http://opendatacommunities.org/id/metropolitan-district-council/leeds,Leeds City Council as Accountable Body,31/08/2017,Social Services Pooled Budgets,Jcs For People With Learning Disabilitie,Third Party Payments,Residential,580,23/08/2017,1708-00444,0.00,6173.24,R,Aitch Care Homes,No
Http://opendatacommunities.org/id/metropolitan-district-council/leeds,Leeds City Council,31/08/2017,Adults and Health,Services For Older People - 65 And Over,Third Party Payments,Home Care,568,18/08/2017,1708-00445,0.00,14001.48,R,Aj Community Care Ltd,No
Http://opendatacommunities.org/id/metropolitan-district-council/leeds,Leeds City Council,31/08/2017,Adults and Health,Services For Older People Under 65 P/Dis,Third Party Payments,Home Care,568,18/08/2017,1708-00446,0.00,3824.70,R,Aj Community Care Ltd,No
Http://opendatacommunities.org/id/metropolitan-district-council/leeds,Leeds City Council,31/08/2017,Environment & Housing,Leeds Building Services,Supplies and Services,Operational Furniture And Equipment,203,04/08/2017,1708-00447,0.00,325.00,R,Ajm Fixings & Power Tools Ltd,No
Http://opendatacommunities.org/id/metropolitan-district-council/leeds,Leeds City Council,31/08/2017,Environment & Housing,Leeds Building Services,Supplies and Services,Stores - Central And Other Depots,005,04/08/2017,1708-00448,0.00,685.34,R,Ajm Fixings & Power Tools Ltd,No
Http://opendatacommunities.org/id/metropolitan-district-council/leeds,Leeds City Council,31/08/2017,Environment & Housing,Leeds Building Services,Supplies and Services,Stores - Central And Other Depots,005,04/08/2017,1708-00449,0.00,251.10,R,Ajm Fixings & Power Tools Ltd,No
Http://opendatacommunities.org/id/metropolitan-district-council/leeds,Leeds City Council,31/08/2017,Environment & Housing,Leeds Building Services,Supplies and Services,Stores - Central And Other Depots,005,17/08/2017,1708-00450,0.00,1366.80,R,Ajm Fixings & Power Tools Ltd,No
Http://opendatacommunities.org/id/metropolitan-district-council/leeds,Leeds City Council,31/08/2017,Environment & Housing,Leeds Building Services,Supplies and Services,Stores - Central And Other Depots,005,17/08/2017,1708-00451,0.00,345.00,R,Ajm Fixings & Power Tools Ltd,No
Http://opendatacommunities.org/id/metropolitan-district-council/leeds,Leeds City Council,31/08/2017,Environment & Housing,Leeds Building Services,Supplies and Services,Operational Furniture And Equipment,203,17/08/2017,1708-00452,0.00,255.00,R,Ajm Fixings & Power Tools Ltd,No
Http://opendatacommunities.org/id/metropolitan-district-council/leeds,Leeds City Council,31/08/2017,Environment & Housing,Leeds Building Services,Supplies and Services,Operational Furniture And Equipment,203,21/08/2017,1708-00453,0.00,86.82,R,Ajm Fixings & Power Tools Ltd,No
Http://opendatacommunities.org/id/metropolitan-district-council/leeds,Leeds City Council,31/08/2017,Environment & Housing,Leeds Building Services,Supplies and Services,Stores - Central And Other Depots,005,22/08/2017,1708-00454,0.00,702.30,R,Ajm Fixings & Power Tools Ltd,No
Http://opendatacommunities.org/id/metropolitan-district-council/leeds,Leeds City Council,31/08/2017,Environment & Housing,Leeds Building Services,Supplies and Services,Operational Materials,205,29/08/2017,1708-00455,0.00,19.00,R,Ajm Fixings & Power Tools Ltd,No
Http://opendatacommunities.org/id/metropolitan-district-council/leeds,Leeds City Council,31/08/2017,Environment & Housing,Leeds Building Services,Supplies and Services,Stores - Central And Other Depots,005,29/08/2017,1708-00456,0.00,160.00,R,Ajm Fixings & Power Tools Ltd,No
Http://opendatacommunities.org/id/metropolitan-district-council/leeds,Leeds City Council,31/08/2017,Environment & Housing,Leeds Building Services,Supplies and Services,Operational Furniture And Equipment,203,31/08/2017,1708-00457,0.00,304.30,R,Ajm Fixings & Power Tools Ltd,No
Http://opendatacommunities.org/id/metropolitan-district-council/leeds,Leeds City Council,31/08/2017,Adults and Health,Services For Older People - 65 And Over,Third Party Payments,Nursing Home,570,23/08/2017,1708-00458,0.00,1247.60,R,Akari Care Ltd,No
Http://opendatacommunities.org/id/metropolitan-district-council/leeds,Leeds City Council,31/08/2017,Civic Enterprise Leeds,Commercial Services,Premises,Plant and Machinery,102,23/08/2017,1708-00459,0.00,356.00,R,Akua Uk Ltd,No
Http://opendatacommunities.org/id/metropolitan-district-council/leeds,Leeds City Council,31/08/2017,Civic Enterprise Leeds,Commercial Services,Premises,Plant and Machinery,102,23/08/2017,1708-00460,0.00,315.35,R,Akua Uk Ltd,No
Http://opendatacommunities.org/id/metropolitan-district-council/leeds,Leeds City Council,31/08/2017,Civic Enterprise Leeds,Commercial Services,Premises,Plant and Machinery,102,23/08/2017,1708-00461,0.00,115.50,R,Akua Uk Ltd,No
Http://opendatacommunities.org/id/metropolitan-district-council/leeds,Leeds City Council,31/08/2017,Civic Enterprise Leeds,Commercial Services,Premises,Plant and Machinery,102,23/08/2017,1708-00462,0.00,251.00,R,Akua Uk Ltd,No
Http://opendatacommunities.org/id/metropolitan-district-council/leeds,Leeds City Council,31/08/2017,Civic Enterprise Leeds,Commercial Services,Premises,Plant and Machinery,102,23/08/2017,1708-00463,0.00,447.60,R,Akua Uk Ltd,No
Http://opendatacommunities.org/id/metropolitan-district-council/leeds,Leeds City Council,31/08/2017,Civic Enterprise Leeds,Commercial Services,Premises,Plant and Machinery,102,23/08/2017,1708-00464,0.00,197.25,R,Akua Uk Ltd,No
Http://opendatacommunities.org/id/metropolitan-district-council/leeds,Leeds City Council,31/08/2017,Environment & Housing,Leeds Building Services,Supplies and Services,Operational Materials,205,02/08/2017,1708-00465,0.00,50.22,R,Akw Medicare Ltd,No
Http://opendatacommunities.org/id/metropolitan-district-council/leeds,Leeds City Council,31/08/2017,Environment & Housing,Leeds Building Services,Supplies and Services,Operational Materials,205,02/08/2017,1708-00466,0.00,50.22,R,Akw Medicare Ltd,No
Http://opendatacommunities.org/id/metropolitan-district-council/leeds,Leeds City Council,31/08/2017,Environment & Housing,Leeds Building Services,Supplies and Services,Operational Materials,205,22/08/2017,1708-00467,0.00,54.67,R,Akw Medicare Ltd,No
Http://opendatacommunities.org/id/metropolitan-district-council/leeds,Leeds City Council,31/08/2017,Children and Families,Safeguarding Targeted & Specialist  ,Premises,General Maintenance,104,04/07/2017,1708-00468,0.00,43.96,R,Al Murad Diy Ltd,Yes
Http://opendatacommunities.org/id/metropolitan-district-council/leeds,Leeds City Council,31/08/2017,Resources and Housing,Democratic Services  ,Premises,Grounds Maintenance Work,111,14/07/2017,1708-00469,0.00,20.00,R,Alan Brown Flowers,Yes
Http://opendatacommunities.org/id/metropolitan-district-council/leeds,Leeds City Council,31/08/2017,Resources and Housing,Democratic Services  ,Premises,Grounds Maintenance Work,111,27/07/2017,1708-00470,0.00,7.50,R,Alan Brown Flowers,Yes
Http://opendatacommunities.org/id/metropolitan-district-council/leeds,Leeds City Council,31/08/2017,Insurance,Insurance,Supplies and Services,Insurance Claims,248,10/08/2017,1708-00471,0.00,635.50,R,REDACTED PERSONAL DATA,No
Http://opendatacommunities.org/id/metropolitan-district-council/leeds,Leeds City Council,31/08/2017,City Development,Planning & Sustainable Development,Support Services,Legal Disbursements,411,10/08/2017,1708-00472,0.00,400.00,R,Alan Evans,No
Http://opendatacommunities.org/id/metropolitan-district-council/leeds,Leeds City Council,31/08/2017,City Development,Planning & Sustainable Development,Support Services,Legal Disbursements,411,25/08/2017,1708-00473,0.00,1000.00,R,Alan Evans,No
Http://opendatacommunities.org/id/metropolitan-district-council/leeds,Leeds City Council,31/08/2017,Civic Enterprise Leeds,Commercial Services,Supplies and Services,Other Hired And Contracted Services,265,18/08/2017,1708-00474,0.00,926.56,R,Albert Farnell Ltd,No
Http://opendatacommunities.org/id/metropolitan-district-council/leeds,Leeds City Council,31/08/2017,Children and Families,Safeguarding Targeted & Specialist  ,Supplies and Services,Food & Drink,231,05/07/2017,1708-00475,0.00,26.78,R,Aldi,Yes
Http://opendatacommunities.org/id/metropolitan-district-council/leeds,Leeds City Council,31/08/2017,Children and Families,Safeguarding Targeted & Specialist  ,Transfer Payments,Leaving Care Allowances,634,21/07/2017,1708-00476,0.00,4.82,R,Aldi,Yes
Http://opendatacommunities.org/id/metropolitan-district-council/leeds,Leeds City Council,31/08/2017,Children and Families,Safeguarding Targeted & Specialist  ,Supplies and Services,Food & Drink,231,24/07/2017,1708-00477,0.00,67.31,R,Aldi,Yes
Http://opendatacommunities.org/id/metropolitan-district-council/leeds,Leeds City Council,31/08/2017,Children and Families,Safeguarding Targeted & Specialist  ,Supplies and Services,Teaching Materials,202,28/07/2017,1708-00478,0.00,20.04,R,Aldi,Yes
Http://opendatacommunities.org/id/metropolitan-district-council/leeds,Leeds City Council,31/08/2017,Children and Families,Safeguarding Targeted & Specialist  ,Supplies and Services,Food & Drink,231,28/07/2017,1708-00479,0.00,16.78,R,Aldi,Yes
Http://opendatacommunities.org/id/metropolitan-district-council/leeds,Leeds City Council,31/08/2017,Children and Families,Safeguarding Targeted & Specialist,Support Services,Legal Disbursements,411,04/08/2017,1708-00480,0.00,166.75,R,Alere Toxicology Plc,No
Http://opendatacommunities.org/id/metropolitan-district-council/leeds,Leeds City Council,31/08/2017,Children and Families,Safeguarding Targeted & Specialist,Support Services,Legal Disbursements,411,10/08/2017,1708-00481,0.00,311.00,R,Alere Toxicology Plc,No
Http://opendatacommunities.org/id/metropolitan-district-council/leeds,Leeds City Council,31/08/2017,Children and Families,Safeguarding Targeted & Specialist,Support Services,Legal Disbursements,411,10/08/2017,1708-00482,0.00,108.00,R,Alere Toxicology Plc,No
Http://opendatacommunities.org/id/metropolitan-district-council/leeds,Leeds City Council,31/08/2017,Children and Families,Safeguarding Targeted & Specialist,Support Services,Legal Disbursements,411,11/08/2017,1708-00483,0.00,12.50,R,Alere Toxicology Plc,No
Http://opendatacommunities.org/id/metropolitan-district-council/leeds,Leeds City Council,31/08/2017,Children and Families,Safeguarding Targeted & Specialist,Support Services,Legal Disbursements,411,11/08/2017,1708-00484,0.00,31.68,R,Alere Toxicology Plc,No
Http://opendatacommunities.org/id/metropolitan-district-council/leeds,Leeds City Council,31/08/2017,Children and Families,Safeguarding Targeted & Specialist,Support Services,Legal Disbursements,411,14/08/2017,1708-00485,0.00,175.68,R,Alere Toxicology Plc,No
Http://opendatacommunities.org/id/metropolitan-district-council/leeds,Leeds City Council,31/08/2017,Children and Families,Safeguarding Targeted & Specialist,Support Services,Legal Disbursements,411,17/08/2017,1708-00486,0.00,183.55,R,Alere Toxicology Plc,No
Http://opendatacommunities.org/id/metropolitan-district-council/leeds,Leeds City Council,31/08/2017,Children and Families,Safeguarding Targeted & Specialist,Support Services,Legal Disbursements,411,18/08/2017,1708-00487,0.00,23.75,R,Alere Toxicology Plc,No
Http://opendatacommunities.org/id/metropolitan-district-council/leeds,Leeds City Council,31/08/2017,Children and Families,Safeguarding Targeted & Specialist,Support Services,Legal Disbursements,411,23/08/2017,1708-00488,0.00,154.08,R,Alere Toxicology Plc,No
Http://opendatacommunities.org/id/metropolitan-district-council/leeds,Leeds City Council,31/08/2017,Children and Families,Safeguarding Targeted & Specialist,Support Services,Legal Disbursements,411,23/08/2017,1708-00489,0.00,79.80,R,Alere Toxicology Plc,No
Http://opendatacommunities.org/id/metropolitan-district-council/leeds,Leeds City Council,31/08/2017,Children and Families,Safeguarding Targeted & Specialist,Support Services,Legal Disbursements,411,25/08/2017,1708-00490,0.00,108.00,R,Alere Toxicology Plc,No
Http://opendatacommunities.org/id/metropolitan-district-council/leeds,Leeds City Council,31/08/2017,Children and Families,Safeguarding Targeted & Specialist,Support Services,Legal Disbursements,411,25/08/2017,1708-00491,0.00,25.00,R,Alere Toxicology Plc,No
Http://opendatacommunities.org/id/metropolitan-district-council/leeds,Leeds City Council,31/08/2017,Children and Families,Safeguarding Targeted & Specialist,Support Services,Legal Disbursements,411,25/08/2017,1708-00492,0.00,74.75,R,Alere Toxicology Plc,No
Http://opendatacommunities.org/id/metropolitan-district-council/leeds,Leeds City Council,31/08/2017,Resources and Housing,Legal Services,Support Services,Legal Disbursements,411,25/08/2017,1708-00493,0.00,103.68,R,Alere Toxicology Plc,No
Http://opendatacommunities.org/id/metropolitan-district-council/leeds,Leeds City Council,31/08/2017,Children and Families,Safeguarding Targeted & Specialist,Support Services,Legal Disbursements,411,25/08/2017,1708-00494,0.00,12.50,R,Alere Toxicology Plc,No
Http://opendatacommunities.org/id/metropolitan-district-council/leeds,Leeds City Council,31/08/2017,Children and Families,Safeguarding Targeted & Specialist,Support Services,Legal Disbursements,411,25/08/2017,1708-00495,0.00,46.68,R,Alere Toxicology Plc,No
Http://opendatacommunities.org/id/metropolitan-district-council/leeds,Leeds City Council,31/08/2017,Children and Families,Safeguarding Targeted & Specialist,Support Services,Legal Disbursements,411,25/08/2017,1708-00496,0.00,166.75,R,Alere Toxicology Plc,No
Http://opendatacommunities.org/id/metropolitan-district-council/leeds,Leeds City Council,31/08/2017,Children and Families,Safeguarding Targeted & Specialist,Support Services,Legal Disbursements,411,11/08/2017,1708-00497,0.00,632.00,R,Alex Taylor,No
Http://opendatacommunities.org/id/metropolitan-district-council/leeds,Leeds City Council,31/08/2017,Civic Enterprise Leeds,Commercial Services,Transport,Vehicle Spares,345,24/08/2017,1708-00498,0.00,257.50,R,Alex Wagg,No
Http://opendatacommunities.org/id/metropolitan-district-council/leeds,Leeds City Council,31/08/2017,Adults and Health,Services For Older People - 65 And Over,Third Party Payments,Residential Care Dementia,571,04/08/2017,1708-00499,0.00,20787.00,R,Alexander Residential Home,No
Http://opendatacommunities.org/id/metropolitan-district-council/leeds,Leeds City Council,31/08/2017,Adults and Health,Services For Older People - 65 And Over,Third Party Payments,Residential Care Dementia,571,23/08/2017,1708-00500,0.00,14616.81,R,Alexander Residential Home,No
Http://opendatacommunities.org/id/metropolitan-district-council/leeds,Leeds City Council,31/08/2017,Adults and Health,Services For Older People - 65 And Over,Third Party Payments,Residential,580,23/08/2017,1708-00501,0.00,20065.53,R,Alexander Residential Home,No
Http://opendatacommunities.org/id/metropolitan-district-council/leeds,Leeds City Council,31/08/2017,Communities and Environment,Customer Access,Supplies and Services,Other Hired And Contracted Services,265,02/08/2017,1708-00502,0.00,1672.45,R,Alexandra Costenco,No
Http://opendatacommunities.org/id/metropolitan-district-council/leeds,Leeds City Council,31/08/2017,Adults and Health,Services For Older People - 65 And Over,Third Party Payments,Residential Care Dementia,571,23/08/2017,1708-00503,0.00,1497.96,R,Alexandra Court,No
Http://opendatacommunities.org/id/metropolitan-district-council/leeds,Leeds City Council,31/08/2017,Adults and Health,Services For Older People - 65 And Over,Third Party Payments,Residential,580,23/08/2017,1708-00504,0.00,5398.28,R,Alexandra Court,No
Http://opendatacommunities.org/id/metropolitan-district-council/leeds,Leeds City Council,31/08/2017,City Development,Libraries  Arts & Heritage,Supplies and Services,Other Hired And Contracted Services,265,25/08/2017,1708-00505,0.00,200.00,R,Alexandra Docherty (Sandy),No
Http://opendatacommunities.org/id/metropolitan-district-council/leeds,Leeds City Council,31/08/2017,Communities and Environment,Customer Access,Supplies and Services,Other Hired And Contracted Services,265,02/08/2017,1708-00506,0.00,89.30,R,Alexandra Hirst,No
Http://opendatacommunities.org/id/metropolitan-district-council/leeds,Leeds City Council,31/08/2017,Communities and Environment,Customer Access,Supplies and Services,Other Hired And Contracted Services,265,02/08/2017,1708-00507,0.00,123.00,R,Alexia Blohm-Pain,No
Http://opendatacommunities.org/id/metropolitan-district-council/leeds,Leeds City Council,31/08/2017,City Development,Libraries  Arts & Heritage,Supplies and Services,Other Hired And Contracted Services,265,04/08/2017,1708-00508,0.00,5580.00,R,Alfred Bagnall & Sons (Leeds) Ltd,No
Http://opendatacommunities.org/id/metropolitan-district-council/leeds,Leeds City Council,31/08/2017,City Development,Libraries  Arts & Heritage,Supplies and Services,Other Hired And Contracted Services,265,04/08/2017,1708-00509,0.00,380.00,R,Alfred Bagnall & Sons (Leeds) Ltd,No
Http://opendatacommunities.org/id/metropolitan-district-council/leeds,Leeds City Council,31/08/2017,City Development,Libraries  Arts & Heritage,Supplies and Services,Bought In Professional Services,277,04/08/2017,1708-00510,0.00,6264.00,R,Alfred Bagnall & Sons (Leeds) Ltd,No
Http://opendatacommunities.org/id/metropolitan-district-council/leeds,Leeds City Council,31/08/2017,City Development,Libraries  Arts & Heritage,Supplies and Services,Bought In Professional Services,277,04/08/2017,1708-00511,0.00,45612.00,R,Alfred Bagnall & Sons (Leeds) Ltd,No
Http://opendatacommunities.org/id/metropolitan-district-council/leeds,Leeds City Council,31/08/2017,Environment & Housing,Leeds Building Services,Supplies and Services,Other Hired And Contracted Services,265,10/08/2017,1708-00512,0.00,5848.23,R,Alfred Bagnall & Sons (Leeds) Ltd,No
Http://opendatacommunities.org/id/metropolitan-district-council/leeds,Leeds City Council,31/08/2017,City Development,Libraries  Arts & Heritage,Premises,Maintenance Of Buildings,101,25/08/2017,1708-00513,0.00,15586.11,R,Alfred Bagnall & Sons (Leeds) Ltd,No
Http://opendatacommunities.org/id/metropolitan-district-council/leeds,Leeds City Council,31/08/2017,City Development,Libraries  Arts & Heritage,Supplies and Services,Bought In Professional Services,277,25/08/2017,1708-00514,0.00,9751.00,R,Alfred Bagnall & Sons (Leeds) Ltd,No
Http://opendatacommunities.org/id/metropolitan-district-council/leeds,Leeds City Council,31/08/2017,City Development,Libraries  Arts & Heritage,Supplies and Services,Bought In Professional Services,277,25/08/2017,1708-00515,0.00,35600.00,R,Alfred Bagnall & Sons (Leeds) Ltd,No
Http://opendatacommunities.org/id/metropolitan-district-council/leeds,Leeds City Council,31/08/2017,City Development,Libraries  Arts & Heritage,Supplies and Services,Bought In Professional Services,277,25/08/2017,1708-00516,0.00,2000.00,R,Alfred Bagnall & Sons (Leeds) Ltd,No
Http://opendatacommunities.org/id/metropolitan-district-council/leeds,Leeds City Council,31/08/2017,City Development,Libraries  Arts & Heritage,Supplies and Services,Bought In Professional Services,277,25/08/2017,1708-00517,0.00,2000.00,R,Alfred Bagnall & Sons (Leeds) Ltd,No
Http://opendatacommunities.org/id/metropolitan-district-council/leeds,Leeds City Council,31/08/2017,City Development,Recreation,Supplies and Services,Other Hired And Contracted Services,265,25/08/2017,1708-00518,0.00,3130.00,R,Alfred Bagnall & Sons (Leeds) Ltd,No
Http://opendatacommunities.org/id/metropolitan-district-council/leeds,Leeds City Council,31/08/2017,Adults and Health,Services For Older People Under 65 P/Dis,Supplies and Services,Operational Furniture And Equipment,203,25/08/2017,1708-00519,0.00,1415.00,R,Alfred Bagnall & Sons (Leeds) Ltd,No
Http://opendatacommunities.org/id/metropolitan-district-council/leeds,Leeds City Council,31/08/2017,Environment & Housing,Leeds Building Services,Supplies and Services,Other Hired And Contracted Services,265,25/08/2017,1708-00520,0.00,6906.00,R,Alfred Bagnall & Sons (Leeds) Ltd,No
Http://opendatacommunities.org/id/metropolitan-district-council/leeds,Leeds City Council,31/08/2017,Environment & Housing,Leeds Building Services,Supplies and Services,Other Hired And Contracted Services,265,25/08/2017,1708-00521,0.00,5620.00,R,Alfred Bagnall & Sons (Leeds) Ltd,No
Http://opendatacommunities.org/id/metropolitan-district-council/leeds,Leeds City Council,31/08/2017,Environment & Housing,Leeds Building Services,Supplies and Services,Other Hired And Contracted Services,265,25/08/2017,1708-00522,0.00,220.00,R,Alfred Bagnall & Sons (Leeds) Ltd,No
Http://opendatacommunities.org/id/metropolitan-district-council/leeds,Leeds City Council,31/08/2017,Children and Families,Safeguarding Targeted & Specialist,Third Party Payments,Section 17,551,04/08/2017,1708-00523,0.00,147.80,R,REDACTED PERSONAL DATA,No
Http://opendatacommunities.org/id/metropolitan-district-council/leeds,Leeds City Council,31/08/2017,Children and Families,Safeguarding Targeted & Specialist,Third Party Payments,Section 17,551,11/08/2017,1708-00524,0.00,147.80,R,REDACTED PERSONAL DATA,No
Http://opendatacommunities.org/id/metropolitan-district-council/leeds,Leeds City Council,31/08/2017,Children and Families,Safeguarding Targeted & Specialist,Third Party Payments,Section 17,551,18/08/2017,1708-00525,0.00,147.80,R,REDACTED PERSONAL DATA,No
Http://opendatacommunities.org/id/metropolitan-district-council/leeds,Leeds City Council,31/08/2017,Children and Families,Safeguarding Targeted & Specialist,Third Party Payments,Section 17,551,25/08/2017,1708-00526,0.00,147.80,R,REDACTED PERSONAL DATA,No
Http://opendatacommunities.org/id/metropolitan-district-council/leeds,Leeds City Council,31/08/2017,Communities and Environment,Customer Access,Supplies and Services,Other Hired And Contracted Services,265,02/08/2017,1708-00527,0.00,399.57,R,Ali Pourakaberian,No
Http://opendatacommunities.org/id/metropolitan-district-council/leeds,Leeds City Council,31/08/2017,Children and Families,Safeguarding Targeted & Specialist,Third Party Payments,Placement Support,550,22/08/2017,1708-00528,0.00,117.00,R,REDACTED PERSONAL DATA,No
Http://opendatacommunities.org/id/metropolitan-district-council/leeds,Leeds City Council,31/08/2017,City Development,Recreation,Income,Swimming Bath Charges,923,08/08/2017,1708-00529,0.00,109.25,R,REDACTED PERSONAL DATA,No
Http://opendatacommunities.org/id/metropolitan-district-council/leeds,Leeds City Council,31/08/2017,Environment & Housing,Leeds Building Services,Supplies and Services,Other Hired And Contracted Services,265,02/08/2017,1708-00530,0.00,195.00,R,All Clear Solutions Ltd,No
Http://opendatacommunities.org/id/metropolitan-district-council/leeds,Leeds City Council,31/08/2017,Environment & Housing,Leeds Building Services,Supplies and Services,Other Hired And Contracted Services,265,02/08/2017,1708-00531,0.00,195.00,R,All Clear Solutions Ltd,No
Http://opendatacommunities.org/id/metropolitan-district-council/leeds,Leeds City Council,31/08/2017,Environment & Housing,Leeds Building Services,Supplies and Services,Other Hired And Contracted Services,265,14/08/2017,1708-00532,0.00,250.00,R,All Clear Solutions Ltd,No
Http://opendatacommunities.org/id/metropolitan-district-council/leeds,Leeds City Council,31/08/2017,Environment & Housing,Leeds Building Services,Supplies and Services,Other Hired And Contracted Services,265,14/08/2017,1708-00533,0.00,250.00,R,All Clear Solutions Ltd,No
Http://opendatacommunities.org/id/metropolitan-district-council/leeds,Leeds City Council,31/08/2017,Environment & Housing,Leeds Building Services,Supplies and Services,Other Hired And Contracted Services,265,14/08/2017,1708-00534,0.00,1750.00,R,All Clear Solutions Ltd,No
Http://opendatacommunities.org/id/metropolitan-district-council/leeds,Leeds City Council,31/08/2017,Environment & Housing,Leeds Building Services,Supplies and Services,Other Hired And Contracted Services,265,14/08/2017,1708-00535,0.00,195.00,R,All Clear Solutions Ltd,No
Http://opendatacommunities.org/id/metropolitan-district-council/leeds,Leeds City Council,31/08/2017,Environment & Housing,Leeds Building Services,Supplies and Services,Other Hired And Contracted Services,265,14/08/2017,1708-00536,0.00,250.00,R,All Clear Solutions Ltd,No
Http://opendatacommunities.org/id/metropolitan-district-council/leeds,Leeds City Council,31/08/2017,Environment & Housing,Leeds Building Services,Supplies and Services,Other Hired And Contracted Services,265,14/08/2017,1708-00537,0.00,195.00,R,All Clear Solutions Ltd,No
Http://opendatacommunities.org/id/metropolitan-district-council/leeds,Leeds City Council,31/08/2017,Environment & Housing,Leeds Building Services,Supplies and Services,Other Hired And Contracted Services,265,18/08/2017,1708-00538,0.00,1945.00,R,All Clear Solutions Ltd,No
Http://opendatacommunities.org/id/metropolitan-district-council/leeds,Leeds City Council,31/08/2017,Environment & Housing,Leeds Building Services,Supplies and Services,Other Hired And Contracted Services,265,21/08/2017,1708-00539,0.00,250.00,R,All Clear Solutions Ltd,No
Http://opendatacommunities.org/id/metropolitan-district-council/leeds,Leeds City Council,31/08/2017,Environment & Housing,Leeds Building Services,Supplies and Services,Other Hired And Contracted Services,265,21/08/2017,1708-00540,0.00,195.00,R,All Clear Solutions Ltd,No
Http://opendatacommunities.org/id/metropolitan-district-council/leeds,Leeds City Council,31/08/2017,Environment & Housing,Leeds Building Services,Supplies and Services,Other Hired And Contracted Services,265,21/08/2017,1708-00541,0.00,195.00,R,All Clear Solutions Ltd,No
Http://opendatacommunities.org/id/metropolitan-district-council/leeds,Leeds City Council,31/08/2017,Environment & Housing,Leeds Building Services,Supplies and Services,Other Hired And Contracted Services,265,25/08/2017,1708-00542,0.00,250.00,R,All Clear Solutions Ltd,No
Http://opendatacommunities.org/id/metropolitan-district-council/leeds,Leeds City Council,31/08/2017,Environment & Housing,Leeds Building Services,Supplies and Services,Other Hired And Contracted Services,265,25/08/2017,1708-00543,0.00,195.00,R,All Clear Solutions Ltd,No
Http://opendatacommunities.org/id/metropolitan-district-council/leeds,Leeds City Council,31/08/2017,Environment & Housing,Leeds Building Services,Supplies and Services,Other Hired And Contracted Services,265,25/08/2017,1708-00544,0.00,1000.00,R,All Clear Solutions Ltd,No
Http://opendatacommunities.org/id/metropolitan-district-council/leeds,Leeds City Council,31/08/2017,Environment & Housing,Leeds Building Services,Supplies and Services,Other Hired And Contracted Services,265,25/08/2017,1708-00545,0.00,1905.00,R,All Clear Solutions Ltd,No
Http://opendatacommunities.org/id/metropolitan-district-council/leeds,Leeds City Council,31/08/2017,Environment & Housing,Leeds Building Services,Supplies and Services,Other Hired And Contracted Services,265,25/08/2017,1708-00546,0.00,195.00,R,All Clear Solutions Ltd,No
Http://opendatacommunities.org/id/metropolitan-district-council/leeds,Leeds City Council,31/08/2017,Environment & Housing,Leeds Building Services,Supplies and Services,Other Hired And Contracted Services,265,25/08/2017,1708-00547,0.00,430.00,R,All Clear Solutions Ltd,No
Http://opendatacommunities.org/id/metropolitan-district-council/leeds,Leeds City Council as Accountable Body,31/08/2017,Social Services Pooled Budgets,Jcs For People With Learning Disabilitie,Third Party Payments,Sheltered Accommodation,569,23/08/2017,1708-00548,0.00,12248.52,R,Allerton Avenue,No
Http://opendatacommunities.org/id/metropolitan-district-council/leeds,Leeds City Council,31/08/2017,Resources and Housing,Finance,Supplies and Services,Bank Charges,263,01/08/2017,1708-00549,0.00,-66.11,R,Alliance & Leicester Commercial Bank,No
Http://opendatacommunities.org/id/metropolitan-district-council/leeds,Leeds City Council,31/08/2017,Resources and Housing,Finance,Supplies and Services,Bank Charges,263,04/08/2017,1708-00550,0.00,1030.80,R,Alliance & Leicester Commercial Bank,No
Http://opendatacommunities.org/id/metropolitan-district-council/leeds,Leeds City Council,31/08/2017,Resources and Housing,Finance,Supplies and Services,Bank Charges,263,04/08/2017,1708-00551,0.00,100.14,R,Alliance & Leicester Commercial Bank,No
Http://opendatacommunities.org/id/metropolitan-district-council/leeds,Leeds City Council,31/08/2017,City Development,Highways,Supplies and Services,Other Hired And Contracted Services,265,02/08/2017,1708-00552,0.00,596.76,R,Allied Exploration & Geotechnics Ltd,No
Http://opendatacommunities.org/id/metropolitan-district-council/leeds,Leeds City Council,31/08/2017,City Development,Highways,Supplies and Services,Other Hired And Contracted Services,265,02/08/2017,1708-00553,0.00,1376.50,R,Allied Exploration & Geotechnics Ltd,No
Http://opendatacommunities.org/id/metropolitan-district-council/leeds,Leeds City Council,31/08/2017,City Development,Highways,Supplies and Services,Other Hired And Contracted Services,265,15/08/2017,1708-00554,0.00,7165.10,R,Allied Exploration & Geotechnics Ltd,No
Http://opendatacommunities.org/id/metropolitan-district-council/leeds,Leeds City Council,31/08/2017,City Development,Highways,Supplies and Services,Other Hired And Contracted Services,265,18/08/2017,1708-00555,0.00,669.37,R,Allied Exploration & Geotechnics Ltd,No
Http://opendatacommunities.org/id/metropolitan-district-council/leeds,Leeds City Council,31/08/2017,City Development,Highways,Supplies and Services,Other Hired And Contracted Services,265,18/08/2017,1708-00556,0.00,250.00,R,Allied Exploration & Geotechnics Ltd,No
Http://opendatacommunities.org/id/metropolitan-district-council/leeds,Leeds City Council,31/08/2017,City Development,Highways,Supplies and Services,Other Hired And Contracted Services,265,21/08/2017,1708-00557,0.00,57.00,R,Allied Exploration & Geotechnics Ltd,No
Http://opendatacommunities.org/id/metropolitan-district-council/leeds,Leeds City Council as Accountable Body,31/08/2017,Social Services Pooled Budgets,Jcs For People With Learning Disabilitie,Third Party Payments,Home Care,568,04/08/2017,1708-00558,0.00,15155.14,R,Allied Healthcare,No
Http://opendatacommunities.org/id/metropolitan-district-council/leeds,Leeds City Council as Accountable Body,31/08/2017,Social Services Pooled Budgets,Jcs For People With Learning Disabilitie,Third Party Payments,Home Care,568,08/08/2017,1708-00559,0.00,200.16,R,Allied Healthcare,No
Http://opendatacommunities.org/id/metropolitan-district-council/leeds,Leeds City Council as Accountable Body,31/08/2017,Social Services Pooled Budgets,Jcs For People With Learning Disabilitie,Third Party Payments,Home Care,568,09/08/2017,1708-00560,0.00,901.88,R,Allied Healthcare,No
Http://opendatacommunities.org/id/metropolitan-district-council/leeds,Leeds City Council as Accountable Body,31/08/2017,Social Services Pooled Budgets,Jcs For People With Learning Disabilitie,Third Party Payments,Home Care,568,09/08/2017,1708-00561,0.00,1023.12,R,Allied Healthcare,No
Http://opendatacommunities.org/id/metropolitan-district-council/leeds,Leeds City Council,31/08/2017,Children and Families,Partnerships,Third Party Payments,Services Rendered By Voluntary Sector,505,10/08/2017,1708-00562,0.00,598.50,R,Allied Healthcare,No
Http://opendatacommunities.org/id/metropolitan-district-council/leeds,Leeds City Council,31/08/2017,Children and Families,Partnerships,Third Party Payments,Services Rendered By Voluntary Sector,505,10/08/2017,1708-00563,0.00,684.00,R,Allied Healthcare,No
Http://opendatacommunities.org/id/metropolitan-district-council/leeds,Leeds City Council,31/08/2017,Children and Families,Partnerships,Third Party Payments,Services Rendered By Voluntary Sector,505,10/08/2017,1708-00564,0.00,684.00,R,Allied Healthcare,No
Http://opendatacommunities.org/id/metropolitan-district-council/leeds,Leeds City Council,31/08/2017,Adults and Health,Other Generic Services,Third Party Payments,Home Care,568,18/08/2017,1708-00565,0.00,18547.11,R,Allied Healthcare,No
Http://opendatacommunities.org/id/metropolitan-district-council/leeds,Leeds City Council,31/08/2017,Adults and Health,Other Generic Services,Third Party Payments,Home Care,568,18/08/2017,1708-00566,0.00,7896.48,R,Allied Healthcare,No
Http://opendatacommunities.org/id/metropolitan-district-council/leeds,Leeds City Council as Accountable Body,31/08/2017,Social Services Pooled Budgets,Jcs For People With Learning Disabilitie,Third Party Payments,Home Care,568,18/08/2017,1708-00567,0.00,17104.37,R,Allied Healthcare,No
Http://opendatacommunities.org/id/metropolitan-district-council/leeds,Leeds City Council as Accountable Body,31/08/2017,Social Services Pooled Budgets,Jcs For People With Learning Disabilitie,Third Party Payments,Home Care,568,18/08/2017,1708-00568,0.00,14680.30,R,Allied Healthcare,No
Http://opendatacommunities.org/id/metropolitan-district-council/leeds,Leeds City Council,31/08/2017,Adults and Health,Other Generic Services,Third Party Payments,Home Care,568,24/08/2017,1708-00569,0.00,95.55,R,Allied Healthcare,No
Http://opendatacommunities.org/id/metropolitan-district-council/leeds,Leeds City Council,31/08/2017,Adults and Health,Services For Older People - 65 And Over,Third Party Payments,Home Care,568,25/08/2017,1708-00570,0.00,1711.14,R,Allied Healthcare,No
Http://opendatacommunities.org/id/metropolitan-district-council/leeds,Leeds City Council,31/08/2017,Adults and Health,Services For Older People - 65 And Over,Third Party Payments,Home Care,568,25/08/2017,1708-00571,0.00,2573.96,R,Allied Healthcare,No
Http://opendatacommunities.org/id/metropolitan-district-council/leeds,Leeds City Council,31/08/2017,Adults and Health,Services For Older People Under 65 P/Dis,Third Party Payments,Home Care,568,25/08/2017,1708-00572,0.00,341.46,R,Allied Healthcare,No
Http://opendatacommunities.org/id/metropolitan-district-council/leeds,Leeds City Council as Accountable Body,31/08/2017,Social Services Pooled Budgets,Jcs For People With Learning Disabilitie,Third Party Payments,Home Care,568,29/08/2017,1708-00573,0.00,844.64,R,Allied Healthcare,No
Http://opendatacommunities.org/id/metropolitan-district-council/leeds,Leeds City Council as Accountable Body,31/08/2017,Social Services Pooled Budgets,Jcs For People With Learning Disabilitie,Third Party Payments,Home Care,568,29/08/2017,1708-00574,0.00,413.03,R,Allied Healthcare,No
Http://opendatacommunities.org/id/metropolitan-district-council/leeds,Leeds City Council as Accountable Body,31/08/2017,Social Services Pooled Budgets,Jcs For People With Learning Disabilitie,Third Party Payments,Home Care,568,29/08/2017,1708-00575,0.00,155.68,R,Allied Healthcare,No
Http://opendatacommunities.org/id/metropolitan-district-council/leeds,Leeds City Council as Accountable Body,31/08/2017,Social Services Pooled Budgets,Jcs For People With Learning Disabilitie,Third Party Payments,Home Care,568,29/08/2017,1708-00576,0.00,16377.22,R,Allied Healthcare,No
Http://opendatacommunities.org/id/metropolitan-district-council/leeds,Leeds City Council,31/08/2017,Adults and Health,Public Health,Third Party Payments,Public Health Commissioned Services,526,25/08/2017,1708-00577,0.00,118.67,R,Allied Pharmacy Ltd,No
Http://opendatacommunities.org/id/metropolitan-district-council/leeds,Leeds City Council,31/08/2017,Resources and Housing,Finance,Supplies and Services,Bank Charges,263,04/08/2017,1708-00578,0.00,-2340.00,R,Allpay Limted,No
Http://opendatacommunities.org/id/metropolitan-district-council/leeds,Leeds City Council,31/08/2017,Resources and Housing,Finance,Supplies and Services,Bank Charges,263,04/08/2017,1708-00579,0.00,8589.56,R,Allpay Limted,No
Http://opendatacommunities.org/id/metropolitan-district-council/leeds,Leeds City Council,31/08/2017,Strategic Landlord,Housing Management,Supplies and Services,Other Hired And Contracted Services,265,07/08/2017,1708-00580,0.00,0.12,R,Allpay Limted,No
Http://opendatacommunities.org/id/metropolitan-district-council/leeds,Leeds City Council,31/08/2017,Strategic Landlord,Housing Management,Supplies and Services,Other Hired And Contracted Services,265,11/08/2017,1708-00581,0.00,17.42,R,Allpay Limted,No
Http://opendatacommunities.org/id/metropolitan-district-council/leeds,Leeds City Council,31/08/2017,Resources and Housing,Finance,Supplies and Services,Bank Charges,263,11/08/2017,1708-00582,0.00,2840.00,R,Allpay Limted,No
Http://opendatacommunities.org/id/metropolitan-district-council/leeds,Leeds City Council,31/08/2017,Strategic Landlord,Housing Management,Supplies and Services,Other Hired And Contracted Services,265,11/08/2017,1708-00583,0.00,16.17,R,Allpay Limted,No
Http://opendatacommunities.org/id/metropolitan-district-council/leeds,Leeds City Council,31/08/2017,Resources and Housing,Finance,Supplies and Services,Bank Charges,263,11/08/2017,1708-00584,0.00,14.64,R,Allpay Limted,No
Http://opendatacommunities.org/id/metropolitan-district-council/leeds,Leeds City Council,31/08/2017,Resources and Housing,Finance,Supplies and Services,Bank Charges,263,11/08/2017,1708-00585,0.00,332.83,R,Allpay Limted,No
Http://opendatacommunities.org/id/metropolitan-district-council/leeds,Leeds City Council,31/08/2017,Strategic Landlord,Housing Management,Supplies and Services,Other Hired And Contracted Services,265,11/08/2017,1708-00586,0.00,293.59,R,Allpay Limted,No
Http://opendatacommunities.org/id/metropolitan-district-council/leeds,Leeds City Council,31/08/2017,Strategic Landlord,Housing Management,Supplies and Services,Other Hired And Contracted Services,265,11/08/2017,1708-00587,0.00,0.25,R,Allpay Limted,No
Http://opendatacommunities.org/id/metropolitan-district-council/leeds,Leeds City Council,31/08/2017,Resources and Housing,Finance,Supplies and Services,Bank Charges,263,11/08/2017,1708-00588,0.00,1.14,R,Allpay Limted,No
Http://opendatacommunities.org/id/metropolitan-district-council/leeds,Leeds City Council,31/08/2017,Strategic Landlord,Housing Management,Supplies and Services,Other Hired And Contracted Services,265,15/08/2017,1708-00589,0.00,408.02,R,Allpay Limted,No
Http://opendatacommunities.org/id/metropolitan-district-council/leeds,Leeds City Council,31/08/2017,Environment & Housing,Strategic Housing Support  ,Supplies and Services,Other Hired And Contracted Services,265,06/07/2017,1708-00590,0.00,70.00,R,Allpay Ltd,Yes
Http://opendatacommunities.org/id/metropolitan-district-council/leeds,Leeds City Council,31/08/2017,Environment & Housing,Waste Management,Transport,Fuel (Non LCC Supplies),321,07/08/2017,1708-00591,0.00,2.70,R,Allstar Business Solutions Ltd,No
Http://opendatacommunities.org/id/metropolitan-district-council/leeds,Leeds City Council,31/08/2017,Resources and Housing,Democratic Services,Transport,Fuel (Non LCC Supplies),321,07/08/2017,1708-00592,0.00,301.71,R,Allstar Business Solutions Ltd,No
Http://opendatacommunities.org/id/metropolitan-district-council/leeds,Leeds City Council,31/08/2017,Environment & Housing,Parks and Countryside,Transport,Fuel (Non LCC Supplies),321,07/08/2017,1708-00593,0.00,84.70,R,Allstar Business Solutions Ltd,No
Http://opendatacommunities.org/id/metropolitan-district-council/leeds,Leeds City Council,31/08/2017,City Development,Highways,Transport,Fuel (Non LCC Supplies),321,07/08/2017,1708-00594,0.00,74.69,R,Allstar Business Solutions Ltd,No
Http://opendatacommunities.org/id/metropolitan-district-council/leeds,Leeds City Council,31/08/2017,Children and Families,Learning Skills & Universal,Transport,Fuel (Non LCC Supplies),321,07/08/2017,1708-00595,0.00,1565.81,R,Allstar Business Solutions Ltd,No
Http://opendatacommunities.org/id/metropolitan-district-council/leeds,Leeds City Council,31/08/2017,Environment & Housing,Leeds Building Services,Transport,Fuel (Non LCC Supplies),321,14/08/2017,1708-00596,0.00,17.27,R,Allstar Business Solutions Ltd,No
Http://opendatacommunities.org/id/metropolitan-district-council/leeds,Leeds City Council,31/08/2017,Environment & Housing,Leeds Building Services,Transport,Fuel (Non LCC Supplies),321,29/08/2017,1708-00597,0.00,42.40,R,Allstar Business Solutions Ltd,No
Http://opendatacommunities.org/id/metropolitan-district-council/leeds,Leeds City Council,31/08/2017,Environment & Housing,SP Contracts & SECC,Third Party Payments,Supporting Ppl - Block Gross Chargeable,514,02/08/2017,1708-00598,0.00,29.77,R,Alpha (Rsl) Limited,No
Http://opendatacommunities.org/id/metropolitan-district-council/leeds,Leeds City Council,31/08/2017,Environment & Housing,Statutory Housing,Premises,Rents,141,31/08/2017,1708-00599,0.00,1357.94,R,Alpha Property Rentals Ltd,No
Http://opendatacommunities.org/id/metropolitan-district-council/leeds,Leeds City Council,31/08/2017,Environment & Housing,Statutory Housing,Supplies and Services,Other Hired And Contracted Services,265,31/08/2017,1708-00600,0.00,600.00,R,Alpha Property Rentals Ltd,No
Http://opendatacommunities.org/id/metropolitan-district-council/leeds,Leeds City Council,31/08/2017,Children and Families,Safeguarding Targeted & Specialist,Support Services,Legal Disbursements,411,16/08/2017,1708-00601,0.00,361.88,R,Alphabiolabs,No
Http://opendatacommunities.org/id/metropolitan-district-council/leeds,Leeds City Council,31/08/2017,Children and Families,Safeguarding Targeted & Specialist,Support Services,Legal Disbursements,411,16/08/2017,1708-00602,0.00,120.00,R,Alphabiolabs,No
Http://opendatacommunities.org/id/metropolitan-district-council/leeds,Leeds City Council,31/08/2017,Children and Families,Safeguarding Targeted & Specialist,Support Services,Legal Disbursements,411,16/08/2017,1708-00603,0.00,163.35,R,Alphabiolabs,No
Http://opendatacommunities.org/id/metropolitan-district-council/leeds,Leeds City Council,31/08/2017,Children and Families,Safeguarding Targeted & Specialist,Support Services,Legal Disbursements,411,16/08/2017,1708-00604,0.00,129.38,R,Alphabiolabs,No
Http://opendatacommunities.org/id/metropolitan-district-council/leeds,Leeds City Council,31/08/2017,Children and Families,Safeguarding Targeted & Specialist,Support Services,Legal Disbursements,411,25/08/2017,1708-00605,0.00,165.01,R,Alphabiolabs,No
Http://opendatacommunities.org/id/metropolitan-district-council/leeds,Leeds City Council,31/08/2017,Children and Families,Safeguarding Targeted & Specialist,Support Services,Legal Disbursements,411,25/08/2017,1708-00606,0.00,153.75,R,Alphabiolabs,No
Http://opendatacommunities.org/id/metropolitan-district-council/leeds,Leeds City Council,31/08/2017,Children and Families,Safeguarding Targeted & Specialist,Support Services,Legal Disbursements,411,25/08/2017,1708-00607,0.00,153.75,R,Alphabiolabs,No
Http://opendatacommunities.org/id/metropolitan-district-council/leeds,Leeds City Council,31/08/2017,Children and Families,Safeguarding Targeted & Specialist,Support Services,Legal Disbursements,411,25/08/2017,1708-00608,0.00,129.38,R,Alphabiolabs,No
Http://opendatacommunities.org/id/metropolitan-district-council/leeds,Leeds City Council,31/08/2017,Children and Families,Safeguarding Targeted & Specialist,Third Party Payments,Placement Support,550,25/08/2017,1708-00609,0.00,454.00,R,Alphabiolabs,No
Http://opendatacommunities.org/id/metropolitan-district-council/leeds,Leeds City Council,31/08/2017,Children and Families,Safeguarding Targeted & Specialist,Support Services,Legal Disbursements,411,30/08/2017,1708-00610,0.00,379.75,R,Alphabiolabs,No
Http://opendatacommunities.org/id/metropolitan-district-council/leeds,Leeds City Council,31/08/2017,Children and Families,Safeguarding Targeted & Specialist,Support Services,Legal Disbursements,411,30/08/2017,1708-00611,0.00,130.01,R,Alphabiolabs,No
Http://opendatacommunities.org/id/metropolitan-district-council/leeds,Leeds City Council,31/08/2017,Children and Families,Safeguarding Targeted & Specialist,Support Services,Legal Disbursements,411,30/08/2017,1708-00612,0.00,96.25,R,Alphabiolabs,No
Http://opendatacommunities.org/id/metropolitan-district-council/leeds,Leeds City Council,31/08/2017,Communities and Environment,Communities,Supplies and Services,'Well Being' Large Grants Projects,230,04/08/2017,1708-00613,0.00,1895.00,R,Altogether Armley,No
Http://opendatacommunities.org/id/metropolitan-district-council/leeds,Leeds City Council,31/08/2017,Children and Families,Safeguarding Targeted & Specialist  ,Supplies and Services,Admission Charges To Schools,283,18/07/2017,1708-00614,0.00,820.00,R,Alton Towers Park,Yes
Http://opendatacommunities.org/id/metropolitan-district-council/leeds,Leeds City Council,31/08/2017,Children and Families,Safeguarding Targeted & Specialist  ,Supplies and Services,General Amenity For Clients/Residents,285,23/07/2017,1708-00615,0.00,125.00,R,Alton Towers Park,Yes
Http://opendatacommunities.org/id/metropolitan-district-council/leeds,Leeds City Council,31/08/2017,Adults and Health,Services For Older People - 65 And Over,Third Party Payments,Payments To Voluntary Organisations,561,11/08/2017,1708-00616,0.00,68125.00,R,Alzheimers Society,No
Http://opendatacommunities.org/id/metropolitan-district-council/leeds,Leeds City Council,31/08/2017,Insurance,Insurance,Supplies and Services,Insurance Claims,248,18/08/2017,1708-00617,0.00,250.00,R,REDACTED PERSONAL DATA,No
Http://opendatacommunities.org/id/metropolitan-district-council/leeds,Leeds City Council,31/08/2017,Environment & Housing,Leeds Building Services,Supplies and Services,Operational Materials,205,07/08/2017,1708-00618,0.00,27.14,R,Amari Plastics Plc,No
Http://opendatacommunities.org/id/metropolitan-district-council/leeds,Leeds City Council,31/08/2017,Environment & Housing,Leeds Building Services,Supplies and Services,Operational Materials,205,17/08/2017,1708-00619,0.00,66.00,R,Amari Plastics Plc,No
Http://opendatacommunities.org/id/metropolitan-district-council/leeds,Leeds City Council,31/08/2017,Environment & Housing,Leeds Building Services,Supplies and Services,Operational Materials,205,22/08/2017,1708-00620,0.00,235.00,R,Amari Plastics Plc,No
Http://opendatacommunities.org/id/metropolitan-district-council/leeds,Leeds City Council,31/08/2017,Environment & Housing,Leeds Building Services,Supplies and Services,Operational Materials,205,22/08/2017,1708-00621,0.00,81.00,R,Amari Plastics Plc,No
Http://opendatacommunities.org/id/metropolitan-district-council/leeds,Leeds City Council,31/08/2017,Children and Families,Safeguarding Targeted & Specialist,Third Party Payments,Services Rendered By Voluntary Sector,505,08/08/2017,1708-00622,0.00,5184.00,R,Amazing Grace Early Years Childcare,No
Http://opendatacommunities.org/id/metropolitan-district-council/leeds,Leeds City Council,31/08/2017,City Development,Recreation,Supplies and Services,Operational Furniture And Equipment,203,04/08/2017,1708-00623,0.00,105.00,R,Amazon Leisure Uk Ltd,No
Http://opendatacommunities.org/id/metropolitan-district-council/leeds,Leeds City Council,31/08/2017,City Development,Recreation,Supplies and Services,Operational Furniture And Equipment,203,08/08/2017,1708-00624,0.00,2422.48,R,Amazon Leisure Uk Ltd,No
Http://opendatacommunities.org/id/metropolitan-district-council/leeds,Leeds City Council,31/08/2017,City Development,Recreation,Supplies and Services,Operational Furniture And Equipment,203,11/08/2017,1708-00625,0.00,361.38,R,Amazon Leisure Uk Ltd,No
Http://opendatacommunities.org/id/metropolitan-district-council/leeds,Leeds City Council,31/08/2017,City Development,Recreation,Supplies and Services,Operational Furniture And Equipment,203,11/08/2017,1708-00626,0.00,469.60,R,Amazon Leisure Uk Ltd,No
Http://opendatacommunities.org/id/metropolitan-district-council/leeds,Leeds City Council,31/08/2017,City Development,Recreation,Supplies and Services,Operational Furniture And Equipment,203,11/08/2017,1708-00627,0.00,5693.92,R,Amazon Leisure Uk Ltd,No
Http://opendatacommunities.org/id/metropolitan-district-council/leeds,Leeds City Council,31/08/2017,City Development,Recreation,Supplies and Services,Operational Furniture And Equipment,203,11/08/2017,1708-00628,0.00,3324.78,R,Amazon Leisure Uk Ltd,No
Http://opendatacommunities.org/id/metropolitan-district-council/leeds,Leeds City Council,31/08/2017,City Development,Recreation,Supplies and Services,Operational Furniture And Equipment,203,16/08/2017,1708-00629,0.00,618.41,R,Amazon Leisure Uk Ltd,No
Http://opendatacommunities.org/id/metropolitan-district-council/leeds,Leeds City Council,31/08/2017,City Development,Recreation,Supplies and Services,Operational Furniture And Equipment,203,18/08/2017,1708-00630,0.00,7.83,R,Amazon Leisure Uk Ltd,No
Http://opendatacommunities.org/id/metropolitan-district-council/leeds,Leeds City Council,31/08/2017,City Development,Recreation,Supplies and Services,Operational Furniture And Equipment,203,24/08/2017,1708-00631,0.00,301.21,R,Amazon Leisure Uk Ltd,No
Http://opendatacommunities.org/id/metropolitan-district-council/leeds,Leeds City Council,31/08/2017,City Development,Recreation,Supplies and Services,Operational Furniture And Equipment,203,25/08/2017,1708-00632,0.00,181.18,R,Amazon Leisure Uk Ltd,No
Http://opendatacommunities.org/id/metropolitan-district-council/leeds,Leeds City Council,31/08/2017,City Development,Recreation,Supplies and Services,Operational Furniture And Equipment,203,25/08/2017,1708-00633,0.00,127.50,R,Amazon Leisure Uk Ltd,No
Http://opendatacommunities.org/id/metropolitan-district-council/leeds,Leeds City Council,31/08/2017,City Development,Recreation,Supplies and Services,Operational Furniture And Equipment,203,30/08/2017,1708-00634,0.00,11.30,R,Amazon Leisure Uk Ltd,No
Http://opendatacommunities.org/id/metropolitan-district-council/leeds,Leeds City Council,31/08/2017,City Development,Recreation,Supplies and Services,Operational Furniture And Equipment,203,30/08/2017,1708-00635,0.00,387.50,R,Amazon Leisure Uk Ltd,No
Http://opendatacommunities.org/id/metropolitan-district-council/leeds,Leeds City Council,31/08/2017,Children and Families,Safeguarding Targeted & Specialist  ,Supplies and Services,Books & Audio-Visual Materials,206,06/07/2017,1708-00636,0.00,44.57,R,Amazon Svcs Europe sar,Yes
Http://opendatacommunities.org/id/metropolitan-district-council/leeds,Leeds City Council,31/08/2017,Resources and Housing,Legal Services  ,Supplies and Services,Books & Audio-Visual Materials,206,08/07/2017,1708-00637,0.00,362.80,R,Amazon Svcs Europe sar,Yes
Http://opendatacommunities.org/id/metropolitan-district-council/leeds,Leeds City Council,31/08/2017,City Development,Libraries  Arts & Heritage  ,Supplies and Services,Operational Materials,205,27/07/2017,1708-00638,0.00,18.39,R,Amazon Svcs Europe sar,Yes
Http://opendatacommunities.org/id/metropolitan-district-council/leeds,Leeds City Council,31/08/2017,Children and Families,Safeguarding Targeted & Specialist  ,Supplies and Services,Teaching Materials,202,30/06/2017,1708-00639,0.00,19.18,R,Amazon UK Marketplace,Yes
Http://opendatacommunities.org/id/metropolitan-district-council/leeds,Leeds City Council,31/08/2017,Communities and Environment,Benefits  Wlefare And Poverty  ,Supplies and Services,Office Furniture & Equipment,201,30/06/2017,1708-00640,0.00,10.84,R,Amazon UK Marketplace,Yes
Http://opendatacommunities.org/id/metropolitan-district-council/leeds,Leeds City Council,31/08/2017,Adults and Health,Services For Older People - 65 And Over  ,Premises,First Aid Requisites,128,30/06/2017,1708-00641,0.00,14.07,R,Amazon UK Marketplace,Yes
Http://opendatacommunities.org/id/metropolitan-district-council/leeds,Leeds City Council,31/08/2017,Children and Families,Safeguarding Targeted & Specialist  ,Supplies and Services,Teaching Materials,202,30/06/2017,1708-00642,0.00,2.53,R,Amazon UK Marketplace,Yes
Http://opendatacommunities.org/id/metropolitan-district-council/leeds,Leeds City Council,31/08/2017,Children and Families,Safeguarding Targeted & Specialist  ,Supplies and Services,Teaching Materials,202,02/07/2017,1708-00643,0.00,5.40,R,Amazon UK Marketplace,Yes
Http://opendatacommunities.org/id/metropolitan-district-council/leeds,Leeds City Council,31/08/2017,City Development,Libraries  Arts & Heritage  ,Supplies and Services,Books & Audio-Visual Materials,206,03/07/2017,1708-00644,0.00,8.76,R,Amazon UK Marketplace,Yes
Http://opendatacommunities.org/id/metropolitan-district-council/leeds,Leeds City Council,31/08/2017,Children and Families,Safeguarding Targeted & Specialist  ,Supplies and Services,Teaching Materials,202,03/07/2017,1708-00645,0.00,71.50,R,Amazon UK Marketplace,Yes
Http://opendatacommunities.org/id/metropolitan-district-council/leeds,Leeds City Council,31/08/2017,Children and Families,Safeguarding Targeted & Specialist  ,Supplies and Services,Teaching Materials,202,03/07/2017,1708-00646,0.00,5.33,R,Amazon UK Marketplace,Yes
Http://opendatacommunities.org/id/metropolitan-district-council/leeds,Leeds City Council,31/08/2017,Children and Families,Safeguarding Targeted & Specialist  ,Supplies and Services,Teaching Materials,202,04/07/2017,1708-00647,0.00,32.77,R,Amazon UK Marketplace,Yes
Http://opendatacommunities.org/id/metropolitan-district-council/leeds,Leeds City Council,31/08/2017,Children and Families,Safeguarding Targeted & Specialist  ,Supplies and Services,Teaching Materials,202,04/07/2017,1708-00648,0.00,27.96,R,Amazon UK Marketplace,Yes
Http://opendatacommunities.org/id/metropolitan-district-council/leeds,Leeds City Council,31/08/2017,Communities and Environment,Customer Access  ,Supplies and Services,Operational Furniture And Equipment,203,04/07/2017,1708-00649,0.00,22.40,R,Amazon UK Marketplace,Yes
Http://opendatacommunities.org/id/metropolitan-district-council/leeds,Leeds City Council,31/08/2017,Communities and Environment,Customer Access  ,Supplies and Services,Operational Furniture And Equipment,203,05/07/2017,1708-00650,0.00,358.25,R,Amazon UK Marketplace,Yes
Http://opendatacommunities.org/id/metropolitan-district-council/leeds,Leeds City Council,31/08/2017,City Development,Libraries  Arts & Heritage  ,Supplies and Services,Teaching Materials,202,05/07/2017,1708-00651,0.00,10.53,R,Amazon UK Marketplace,Yes
Http://opendatacommunities.org/id/metropolitan-district-council/leeds,Leeds City Council,31/08/2017,Strategic Landlord,Housing Management  ,Supplies and Services,Operational Furniture And Equipment,203,05/07/2017,1708-00652,0.00,25.88,R,Amazon UK Marketplace,Yes
Http://opendatacommunities.org/id/metropolitan-district-council/leeds,Leeds City Council,31/08/2017,Children and Families,Safeguarding Targeted & Specialist  ,Transfer Payments,Young Peoples Rewards,653,05/07/2017,1708-00653,0.00,3.95,R,Amazon UK Marketplace,Yes
Http://opendatacommunities.org/id/metropolitan-district-council/leeds,Leeds City Council,31/08/2017,Strategic Landlord,Housing Management  ,Supplies and Services,Operational Furniture And Equipment,203,05/07/2017,1708-00654,0.00,22.69,R,Amazon UK Marketplace,Yes
Http://opendatacommunities.org/id/metropolitan-district-council/leeds,Leeds City Council,31/08/2017,City Development,Libraries  Arts & Heritage  ,Supplies and Services,Teaching Materials,202,05/07/2017,1708-00655,0.00,5.97,R,Amazon UK Marketplace,Yes
Http://opendatacommunities.org/id/metropolitan-district-council/leeds,Leeds City Council,31/08/2017,Children and Families,Partnerships  ,Supplies and Services,Teaching Materials,202,05/07/2017,1708-00656,0.00,27.98,R,Amazon UK Marketplace,Yes
Http://opendatacommunities.org/id/metropolitan-district-council/leeds,Leeds City Council,31/08/2017,Communities and Environment,Elections  Licensing And Registration  ,Supplies and Services,Operational Furniture And Equipment,203,06/07/2017,1708-00657,0.00,10.98,R,Amazon UK Marketplace,Yes
Http://opendatacommunities.org/id/metropolitan-district-council/leeds,Leeds City Council,31/08/2017,Environment & Housing,Parks And Countryside  ,Supplies and Services,Books & Audio-Visual Materials,206,06/07/2017,1708-00658,0.00,59.45,R,Amazon UK Marketplace,Yes
Http://opendatacommunities.org/id/metropolitan-district-council/leeds,Leeds City Council,31/08/2017,City Development,Libraries  Arts & Heritage  ,Supplies and Services,Operational Materials,205,06/07/2017,1708-00659,0.00,4.29,R,Amazon UK Marketplace,Yes
Http://opendatacommunities.org/id/metropolitan-district-council/leeds,Leeds City Council,31/08/2017,Children and Families,Safeguarding Targeted & Specialist  ,Transfer Payments,Children's Homes Clothing Allowance,608,06/07/2017,1708-00660,0.00,51.74,R,Amazon UK Marketplace,Yes
Http://opendatacommunities.org/id/metropolitan-district-council/leeds,Leeds City Council,31/08/2017,Children and Families,Learning Skills & Universal  ,Supplies and Services,Operational Furniture And Equipment,203,06/07/2017,1708-00661,0.00,23.99,R,Amazon UK Marketplace,Yes
Http://opendatacommunities.org/id/metropolitan-district-council/leeds,Leeds City Council,31/08/2017,Children and Families,Learning Skills & Universal  ,Supplies and Services,Operational Furniture And Equipment,203,06/07/2017,1708-00662,0.00,31.74,R,Amazon UK Marketplace,Yes
Http://opendatacommunities.org/id/metropolitan-district-council/leeds,Leeds City Council,31/08/2017,Communities and Environment,Communities  ,Supplies and Services,Operational Furniture And Equipment,203,06/07/2017,1708-00663,0.00,21.38,R,Amazon UK Marketplace,Yes
Http://opendatacommunities.org/id/metropolitan-district-council/leeds,Leeds City Council,31/08/2017,Children and Families,Safeguarding Targeted & Specialist  ,Supplies and Services,Office Consumables,210,06/07/2017,1708-00664,0.00,16.14,R,Amazon UK Marketplace,Yes
Http://opendatacommunities.org/id/metropolitan-district-council/leeds,Leeds City Council,31/08/2017,City Development,Recreation  ,Supplies and Services,Operational Furniture And Equipment,203,06/07/2017,1708-00665,0.00,274.49,R,Amazon UK Marketplace,Yes
Http://opendatacommunities.org/id/metropolitan-district-council/leeds,Leeds City Council,31/08/2017,Adults and Health,Service Strategy  ,Supplies and Services,Office Furniture & Equipment,201,06/07/2017,1708-00666,0.00,32.94,R,Amazon UK Marketplace,Yes
Http://opendatacommunities.org/id/metropolitan-district-council/leeds,Leeds City Council,31/08/2017,City Development,Libraries  Arts & Heritage  ,Supplies and Services,Operational Materials,205,07/07/2017,1708-00667,0.00,19.80,R,Amazon UK Marketplace,Yes
Http://opendatacommunities.org/id/metropolitan-district-council/leeds,Leeds City Council,31/08/2017,Communities and Environment,Customer Access  ,Supplies and Services,Office Consumables,210,07/07/2017,1708-00668,0.00,96.24,R,Amazon UK Marketplace,Yes
Http://opendatacommunities.org/id/metropolitan-district-council/leeds,Leeds City Council,31/08/2017,City Development,Highways  ,Premises,Maintenance Of Traffic Signals,108,07/07/2017,1708-00669,0.00,10.50,R,Amazon UK Marketplace,Yes
Http://opendatacommunities.org/id/metropolitan-district-council/leeds,Leeds City Council,31/08/2017,Children and Families,Safeguarding Targeted & Specialist  ,Supplies and Services,Teaching Materials,202,07/07/2017,1708-00670,0.00,11.49,R,Amazon UK Marketplace,Yes
Http://opendatacommunities.org/id/metropolitan-district-council/leeds,Leeds City Council,31/08/2017,City Development,Recreation  ,Supplies and Services,Books & Audio-Visual Materials,206,07/07/2017,1708-00671,0.00,11.91,R,Amazon UK Marketplace,Yes
Http://opendatacommunities.org/id/metropolitan-district-council/leeds,Leeds City Council,31/08/2017,Children and Families,Safeguarding Targeted & Specialist  ,Supplies and Services,Teaching Materials,202,07/07/2017,1708-00672,0.00,23.70,R,Amazon UK Marketplace,Yes
Http://opendatacommunities.org/id/metropolitan-district-council/leeds,Leeds City Council,31/08/2017,City Development,Planning & Sustainable Development  ,Supplies and Services,Books & Audio-Visual Materials,206,08/07/2017,1708-00673,0.00,32.77,R,Amazon UK Marketplace,Yes
Http://opendatacommunities.org/id/metropolitan-district-council/leeds,Leeds City Council,31/08/2017,City Development,Libraries  Arts & Heritage  ,Supplies and Services,Operational Materials,205,09/07/2017,1708-00674,0.00,23.63,R,Amazon UK Marketplace,Yes
Http://opendatacommunities.org/id/metropolitan-district-council/leeds,Leeds City Council,31/08/2017,City Development,Libraries  Arts & Heritage  ,Supplies and Services,Operational Materials,205,09/07/2017,1708-00675,0.00,10.65,R,Amazon UK Marketplace,Yes
Http://opendatacommunities.org/id/metropolitan-district-council/leeds,Leeds City Council,31/08/2017,City Development,Libraries  Arts & Heritage  ,Supplies and Services,Books & Audio-Visual Materials,206,09/07/2017,1708-00676,0.00,14.16,R,Amazon UK Marketplace,Yes
Http://opendatacommunities.org/id/metropolitan-district-council/leeds,Leeds City Council,31/08/2017,Children and Families,Safeguarding Targeted & Specialist  ,Supplies and Services,Office Consumables,210,10/07/2017,1708-00677,0.00,23.98,R,Amazon UK Marketplace,Yes
Http://opendatacommunities.org/id/metropolitan-district-council/leeds,Leeds City Council,31/08/2017,Environment & Housing,Environmental Action (West North West)  ,Supplies and Services,Operational Furniture And Equipment,203,10/07/2017,1708-00678,0.00,67.34,R,Amazon UK Marketplace,Yes
Http://opendatacommunities.org/id/metropolitan-district-council/leeds,Leeds City Council,31/08/2017,Resources and Housing,Technology  ,Supplies and Services,Computer Software & Equipment,214,10/07/2017,1708-00679,0.00,5.97,R,Amazon UK Marketplace,Yes
Http://opendatacommunities.org/id/metropolitan-district-council/leeds,Leeds City Council,31/08/2017,City Development,Libraries  Arts & Heritage  ,Supplies and Services,Operational Materials,205,10/07/2017,1708-00680,0.00,35.97,R,Amazon UK Marketplace,Yes
Http://opendatacommunities.org/id/metropolitan-district-council/leeds,Leeds City Council,31/08/2017,Civic Enterprise Leeds,Commercial Services  ,Transport,Miscellaneous Transport Related Costs,324,10/07/2017,1708-00681,0.00,65.13,R,Amazon UK Marketplace,Yes
Http://opendatacommunities.org/id/metropolitan-district-council/leeds,Leeds City Council,31/08/2017,Strategic Landlord,Housing Management  ,Supplies and Services,Operational Materials,205,10/07/2017,1708-00682,0.00,233.33,R,Amazon UK Marketplace,Yes
Http://opendatacommunities.org/id/metropolitan-district-council/leeds,Leeds City Council,31/08/2017,Civic Enterprise Leeds,Commercial Services  ,Transport,Miscellaneous Transport Related Costs,324,11/07/2017,1708-00683,0.00,43.44,R,Amazon UK Marketplace,Yes
Http://opendatacommunities.org/id/metropolitan-district-council/leeds,Leeds City Council,31/08/2017,Civic Enterprise Leeds,Commercial Services  ,Transport,Miscellaneous Transport Related Costs,324,11/07/2017,1708-00684,0.00,45.60,R,Amazon UK Marketplace,Yes
Http://opendatacommunities.org/id/metropolitan-district-council/leeds,Leeds City Council,31/08/2017,City Development,Libraries  Arts & Heritage  ,Supplies and Services,Operational Materials,205,11/07/2017,1708-00685,0.00,12.48,R,Amazon UK Marketplace,Yes
Http://opendatacommunities.org/id/metropolitan-district-council/leeds,Leeds City Council,31/08/2017,Environment & Housing,Parks And Countryside  ,Supplies and Services,Office Consumables,210,11/07/2017,1708-00686,0.00,6.52,R,Amazon UK Marketplace,Yes
Http://opendatacommunities.org/id/metropolitan-district-council/leeds,Leeds City Council,31/08/2017,Adults and Health,Services For Adults Under 65 Learn/Dis  ,Supplies and Services,Office Furniture & Equipment,201,11/07/2017,1708-00687,0.00,21.77,R,Amazon UK Marketplace,Yes
Http://opendatacommunities.org/id/metropolitan-district-council/leeds,Leeds City Council,31/08/2017,City Development,Libraries  Arts & Heritage  ,Supplies and Services,Operational Materials,205,12/07/2017,1708-00688,0.00,9.11,R,Amazon UK Marketplace,Yes
Http://opendatacommunities.org/id/metropolitan-district-council/leeds,Leeds City Council,31/08/2017,City Development,Libraries  Arts & Heritage  ,Supplies and Services,Teaching Materials,202,12/07/2017,1708-00689,0.00,4.39,R,Amazon UK Marketplace,Yes
Http://opendatacommunities.org/id/metropolitan-district-council/leeds,Leeds City Council,31/08/2017,Communities and Environment,Communities  ,Supplies and Services,Office Consumables,210,12/07/2017,1708-00690,0.00,44.75,R,Amazon UK Marketplace,Yes
Http://opendatacommunities.org/id/metropolitan-district-council/leeds,Leeds City Council,31/08/2017,City Development,Recreation  ,Supplies and Services,Operational Furniture And Equipment,203,12/07/2017,1708-00691,0.00,8.99,R,Amazon UK Marketplace,Yes
Http://opendatacommunities.org/id/metropolitan-district-council/leeds,Leeds City Council,31/08/2017,City Development,Libraries  Arts & Heritage  ,Supplies and Services,Books & Audio-Visual Materials,206,12/07/2017,1708-00692,0.00,14.57,R,Amazon UK Marketplace,Yes
Http://opendatacommunities.org/id/metropolitan-district-council/leeds,Leeds City Council,31/08/2017,City Development,Libraries  Arts & Heritage  ,Supplies and Services,Teaching Materials,202,12/07/2017,1708-00693,0.00,18.13,R,Amazon UK Marketplace,Yes
Http://opendatacommunities.org/id/metropolitan-district-council/leeds,Leeds City Council,31/08/2017,City Development,Libraries  Arts & Heritage  ,Supplies and Services,Operational Materials,205,12/07/2017,1708-00694,0.00,14.01,R,Amazon UK Marketplace,Yes
Http://opendatacommunities.org/id/metropolitan-district-council/leeds,Leeds City Council,31/08/2017,Communities and Environment,Customer Access  ,Supplies and Services,Computer Software & Equipment,214,12/07/2017,1708-00695,0.00,13.00,R,Amazon UK Marketplace,Yes
Http://opendatacommunities.org/id/metropolitan-district-council/leeds,Leeds City Council,31/08/2017,Children and Families,Safeguarding Targeted & Specialist  ,Premises,Cleaning Maintenance & Toiletries,127,12/07/2017,1708-00696,0.00,26.50,R,Amazon UK Marketplace,Yes
Http://opendatacommunities.org/id/metropolitan-district-council/leeds,Leeds City Council,31/08/2017,City Development,Libraries  Arts & Heritage  ,Supplies and Services,Operational Materials,205,12/07/2017,1708-00697,0.00,16.65,R,Amazon UK Marketplace,Yes
Http://opendatacommunities.org/id/metropolitan-district-council/leeds,Leeds City Council,31/08/2017,Adults and Health,Assessment And Care Management  ,Supplies and Services,Office Consumables,210,12/07/2017,1708-00698,0.00,11.08,R,Amazon UK Marketplace,Yes
Http://opendatacommunities.org/id/metropolitan-district-council/leeds,Leeds City Council,31/08/2017,Children and Families,Safeguarding Targeted & Specialist  ,Supplies and Services,Teaching Materials,202,12/07/2017,1708-00699,0.00,9.14,R,Amazon UK Marketplace,Yes
Http://opendatacommunities.org/id/metropolitan-district-council/leeds,Leeds City Council,31/08/2017,Children and Families,Safeguarding Targeted & Specialist  ,Supplies and Services,Teaching Materials,202,13/07/2017,1708-00700,0.00,22.50,R,Amazon UK Marketplace,Yes
Http://opendatacommunities.org/id/metropolitan-district-council/leeds,Leeds City Council,31/08/2017,City Development,Libraries  Arts & Heritage  ,Supplies and Services,Office Consumables,210,13/07/2017,1708-00701,0.00,47.48,R,Amazon UK Marketplace,Yes
Http://opendatacommunities.org/id/metropolitan-district-council/leeds,Leeds City Council,31/08/2017,Communities and Environment,Customer Access  ,Premises,First Aid Requisites,128,13/07/2017,1708-00702,0.00,12.86,R,Amazon UK Marketplace,Yes
Http://opendatacommunities.org/id/metropolitan-district-council/leeds,Leeds City Council,31/08/2017,City Development,Libraries  Arts & Heritage  ,Supplies and Services,Operational Materials,205,13/07/2017,1708-00703,0.00,9.29,R,Amazon UK Marketplace,Yes
Http://opendatacommunities.org/id/metropolitan-district-council/leeds,Leeds City Council,31/08/2017,Children and Families,Safeguarding Targeted & Specialist  ,Supplies and Services,Teaching Materials,202,13/07/2017,1708-00704,0.00,8.69,R,Amazon UK Marketplace,Yes
Http://opendatacommunities.org/id/metropolitan-district-council/leeds,Leeds City Council,31/08/2017,Children and Families,Safeguarding Targeted & Specialist  ,Supplies and Services,Teaching Materials,202,13/07/2017,1708-00705,0.00,2.99,R,Amazon UK Marketplace,Yes
Http://opendatacommunities.org/id/metropolitan-district-council/leeds,Leeds City Council,31/08/2017,Communities and Environment,Customer Access  ,Premises,First Aid Requisites,128,13/07/2017,1708-00706,0.00,5.15,R,Amazon UK Marketplace,Yes
Http://opendatacommunities.org/id/metropolitan-district-council/leeds,Leeds City Council,31/08/2017,Children and Families,Learning Skills & Universal  ,Supplies and Services,Teaching Materials,202,13/07/2017,1708-00707,0.00,57.80,R,Amazon UK Marketplace,Yes
Http://opendatacommunities.org/id/metropolitan-district-council/leeds,Leeds City Council,31/08/2017,City Development,Libraries  Arts & Heritage  ,Supplies and Services,Operational Materials,205,13/07/2017,1708-00708,0.00,9.92,R,Amazon UK Marketplace,Yes
Http://opendatacommunities.org/id/metropolitan-district-council/leeds,Leeds City Council,31/08/2017,Children and Families,Safeguarding Targeted & Specialist  ,Supplies and Services,Teaching Materials,202,13/07/2017,1708-00709,0.00,2.48,R,Amazon UK Marketplace,Yes
Http://opendatacommunities.org/id/metropolitan-district-council/leeds,Leeds City Council,31/08/2017,Communities and Environment,Customer Access  ,Premises,First Aid Requisites,128,13/07/2017,1708-00710,0.00,11.29,R,Amazon UK Marketplace,Yes
Http://opendatacommunities.org/id/metropolitan-district-council/leeds,Leeds City Council,31/08/2017,City Development,Libraries  Arts & Heritage  ,Supplies and Services,Operational Materials,205,13/07/2017,1708-00711,0.00,53.13,R,Amazon UK Marketplace,Yes
Http://opendatacommunities.org/id/metropolitan-district-council/leeds,Leeds City Council,31/08/2017,City Development,Libraries  Arts & Heritage  ,Supplies and Services,Teaching Materials,202,13/07/2017,1708-00712,0.00,6.15,R,Amazon UK Marketplace,Yes
Http://opendatacommunities.org/id/metropolitan-district-council/leeds,Leeds City Council,31/08/2017,Communities and Environment,Benefits  Wlefare And Poverty  ,Supplies and Services,Office Consumables,210,13/07/2017,1708-00713,0.00,10.99,R,Amazon UK Marketplace,Yes
Http://opendatacommunities.org/id/metropolitan-district-council/leeds,Leeds City Council,31/08/2017,City Development,Libraries  Arts & Heritage  ,Supplies and Services,Teaching Materials,202,13/07/2017,1708-00714,0.00,5.64,R,Amazon UK Marketplace,Yes
Http://opendatacommunities.org/id/metropolitan-district-council/leeds,Leeds City Council,31/08/2017,Children and Families,Partnerships  ,Supplies and Services,Operational Furniture And Equipment,203,13/07/2017,1708-00715,0.00,16.29,R,Amazon UK Marketplace,Yes
Http://opendatacommunities.org/id/metropolitan-district-council/leeds,Leeds City Council,31/08/2017,Children and Families,Learning Skills & Universal  ,Supplies and Services,Office Furniture & Equipment,201,14/07/2017,1708-00716,0.00,19.90,R,Amazon UK Marketplace,Yes
Http://opendatacommunities.org/id/metropolitan-district-council/leeds,Leeds City Council,31/08/2017,Children and Families,Learning Skills & Universal  ,Supplies and Services,Teaching Materials,202,14/07/2017,1708-00717,0.00,32.93,R,Amazon UK Marketplace,Yes
Http://opendatacommunities.org/id/metropolitan-district-council/leeds,Leeds City Council,31/08/2017,Environment & Housing,Leeds Building Services  ,Supplies and Services,Computer Software & Equipment,214,14/07/2017,1708-00718,0.00,27.00,R,Amazon UK Marketplace,Yes
Http://opendatacommunities.org/id/metropolitan-district-council/leeds,Leeds City Council,31/08/2017,Communities and Environment,Customer Access  ,Supplies and Services,Computer Software & Equipment,214,14/07/2017,1708-00719,0.00,74.83,R,Amazon UK Marketplace,Yes
Http://opendatacommunities.org/id/metropolitan-district-council/leeds,Leeds City Council,31/08/2017,Children and Families,Safeguarding Targeted & Specialist  ,Supplies and Services,Teaching Materials,202,14/07/2017,1708-00720,0.00,18.79,R,Amazon UK Marketplace,Yes
Http://opendatacommunities.org/id/metropolitan-district-council/leeds,Leeds City Council,31/08/2017,Environment & Housing,Leeds Building Services  ,Supplies and Services,Computer Software & Equipment,214,14/07/2017,1708-00721,0.00,17.88,R,Amazon UK Marketplace,Yes
Http://opendatacommunities.org/id/metropolitan-district-council/leeds,Leeds City Council,31/08/2017,Children and Families,Learning Skills & Universal  ,Supplies and Services,Teaching Materials,202,14/07/2017,1708-00722,0.00,89.00,R,Amazon UK Marketplace,Yes
Http://opendatacommunities.org/id/metropolitan-district-council/leeds,Leeds City Council,31/08/2017,Children and Families,Safeguarding Targeted & Specialist  ,Transfer Payments,Young Peoples Activities,652,16/07/2017,1708-00723,0.00,16.99,R,Amazon UK Marketplace,Yes
Http://opendatacommunities.org/id/metropolitan-district-council/leeds,Leeds City Council,31/08/2017,Communities and Environment,Customer Access  ,Supplies and Services,Operational Materials,205,16/07/2017,1708-00724,0.00,22.29,R,Amazon UK Marketplace,Yes
Http://opendatacommunities.org/id/metropolitan-district-council/leeds,Leeds City Council,31/08/2017,Children and Families,Safeguarding Targeted & Specialist  ,Supplies and Services,Computer Software & Equipment,214,17/07/2017,1708-00725,0.00,15.98,R,Amazon UK Marketplace,Yes
Http://opendatacommunities.org/id/metropolitan-district-council/leeds,Leeds City Council,31/08/2017,Children and Families,Safeguarding Targeted & Specialist  ,Supplies and Services,Teaching Materials,202,17/07/2017,1708-00726,0.00,22.42,R,Amazon UK Marketplace,Yes
Http://opendatacommunities.org/id/metropolitan-district-council/leeds,Leeds City Council,31/08/2017,City Development,Libraries  Arts & Heritage  ,Supplies and Services,Operational Materials,205,18/07/2017,1708-00727,0.00,11.57,R,Amazon UK Marketplace,Yes
Http://opendatacommunities.org/id/metropolitan-district-council/leeds,Leeds City Council,31/08/2017,Children and Families,Safeguarding Targeted & Specialist  ,Supplies and Services,Office Consumables,210,18/07/2017,1708-00728,0.00,39.99,R,Amazon UK Marketplace,Yes
Http://opendatacommunities.org/id/metropolitan-district-council/leeds,Leeds City Council,31/08/2017,City Development,Libraries  Arts & Heritage  ,Supplies and Services,Books & Audio-Visual Materials,206,18/07/2017,1708-00729,0.00,11.04,R,Amazon UK Marketplace,Yes
Http://opendatacommunities.org/id/metropolitan-district-council/leeds,Leeds City Council,31/08/2017,Children and Families,Safeguarding Targeted & Specialist  ,Supplies and Services,Computer Software & Equipment,214,19/07/2017,1708-00730,0.00,11.79,R,Amazon UK Marketplace,Yes
Http://opendatacommunities.org/id/metropolitan-district-council/leeds,Leeds City Council,31/08/2017,Environment & Housing,Leeds Building Services  ,Supplies and Services,Computer Software & Equipment,214,19/07/2017,1708-00731,0.00,97.67,R,Amazon UK Marketplace,Yes
Http://opendatacommunities.org/id/metropolitan-district-council/leeds,Leeds City Council,31/08/2017,Children and Families,Safeguarding Targeted & Specialist  ,Transfer Payments,Children's Homes Clothing Allowance,608,19/07/2017,1708-00732,0.00,6.80,R,Amazon UK Marketplace,Yes
Http://opendatacommunities.org/id/metropolitan-district-council/leeds,Leeds City Council,31/08/2017,Civic Enterprise Leeds,Shared Services  ,Supplies and Services,Office Furniture & Equipment,201,19/07/2017,1708-00733,0.00,339.80,R,Amazon UK Marketplace,Yes
Http://opendatacommunities.org/id/metropolitan-district-council/leeds,Leeds City Council,31/08/2017,Environment & Housing,Leeds Building Services  ,Supplies and Services,Computer Software & Equipment,214,19/07/2017,1708-00734,0.00,56.67,R,Amazon UK Marketplace,Yes
Http://opendatacommunities.org/id/metropolitan-district-council/leeds,Leeds City Council,31/08/2017,Children and Families,Safeguarding Targeted & Specialist  ,Supplies and Services,Operational Furniture And Equipment,203,19/07/2017,1708-00735,0.00,27.96,R,Amazon UK Marketplace,Yes
Http://opendatacommunities.org/id/metropolitan-district-council/leeds,Leeds City Council,31/08/2017,City Development,Libraries  Arts & Heritage  ,Supplies and Services,Books & Audio-Visual Materials,206,19/07/2017,1708-00736,0.00,5.93,R,Amazon UK Marketplace,Yes
Http://opendatacommunities.org/id/metropolitan-district-council/leeds,Leeds City Council,31/08/2017,Children and Families,Safeguarding Targeted & Specialist  ,Supplies and Services,Office Consumables,210,19/07/2017,1708-00737,0.00,1.55,R,Amazon UK Marketplace,Yes
Http://opendatacommunities.org/id/metropolitan-district-council/leeds,Leeds City Council,31/08/2017,City Development,Libraries  Arts & Heritage  ,Supplies and Services,Books & Audio-Visual Materials,206,19/07/2017,1708-00738,0.00,9.59,R,Amazon UK Marketplace,Yes
Http://opendatacommunities.org/id/metropolitan-district-council/leeds,Leeds City Council,31/08/2017,Children and Families,Safeguarding Targeted & Specialist  ,Supplies and Services,Teaching Materials,202,19/07/2017,1708-00739,0.00,13.21,R,Amazon UK Marketplace,Yes
Http://opendatacommunities.org/id/metropolitan-district-council/leeds,Leeds City Council,31/08/2017,City Development,Libraries  Arts & Heritage  ,Supplies and Services,Books & Audio-Visual Materials,206,19/07/2017,1708-00740,0.00,1.28,R,Amazon UK Marketplace,Yes
Http://opendatacommunities.org/id/metropolitan-district-council/leeds,Leeds City Council,31/08/2017,City Development,Libraries  Arts & Heritage  ,Supplies and Services,Books & Audio-Visual Materials,206,19/07/2017,1708-00741,0.00,4.43,R,Amazon UK Marketplace,Yes
Http://opendatacommunities.org/id/metropolitan-district-council/leeds,Leeds City Council,31/08/2017,Children and Families,Safeguarding Targeted & Specialist  ,Supplies and Services,Operational Furniture And Equipment,203,19/07/2017,1708-00742,0.00,31.53,R,Amazon UK Marketplace,Yes
Http://opendatacommunities.org/id/metropolitan-district-council/leeds,Leeds City Council,31/08/2017,Children and Families,Safeguarding Targeted & Specialist  ,Supplies and Services,Operational Furniture And Equipment,203,19/07/2017,1708-00743,0.00,56.11,R,Amazon UK Marketplace,Yes
Http://opendatacommunities.org/id/metropolitan-district-council/leeds,Leeds City Council,31/08/2017,Children and Families,Safeguarding Targeted & Specialist  ,Supplies and Services,Operational Furniture And Equipment,203,19/07/2017,1708-00744,0.00,31.53,R,Amazon UK Marketplace,Yes
Http://opendatacommunities.org/id/metropolitan-district-council/leeds,Leeds City Council,31/08/2017,Children and Families,Safeguarding Targeted & Specialist  ,Supplies and Services,Operational Furniture And Equipment,203,19/07/2017,1708-00745,0.00,99.92,R,Amazon UK Marketplace,Yes
Http://opendatacommunities.org/id/metropolitan-district-council/leeds,Leeds City Council,31/08/2017,Children and Families,Safeguarding Targeted & Specialist  ,Supplies and Services,Operational Furniture And Equipment,203,19/07/2017,1708-00746,0.00,31.54,R,Amazon UK Marketplace,Yes
Http://opendatacommunities.org/id/metropolitan-district-council/leeds,Leeds City Council,31/08/2017,Adults and Health,Services For Adults Under 65 Learn/Dis  ,Supplies and Services,Office Furniture & Equipment,201,19/07/2017,1708-00747,0.00,16.65,R,Amazon UK Marketplace,Yes
Http://opendatacommunities.org/id/metropolitan-district-council/leeds,Leeds City Council,31/08/2017,City Development,Libraries  Arts & Heritage  ,Supplies and Services,Books & Audio-Visual Materials,206,19/07/2017,1708-00748,0.00,7.08,R,Amazon UK Marketplace,Yes
Http://opendatacommunities.org/id/metropolitan-district-council/leeds,Leeds City Council,31/08/2017,City Development,Libraries  Arts & Heritage  ,Supplies and Services,Books & Audio-Visual Materials,206,19/07/2017,1708-00749,0.00,10.80,R,Amazon UK Marketplace,Yes
Http://opendatacommunities.org/id/metropolitan-district-council/leeds,Leeds City Council,31/08/2017,City Development,Libraries  Arts & Heritage  ,Supplies and Services,Books & Audio-Visual Materials,206,19/07/2017,1708-00750,0.00,4.73,R,Amazon UK Marketplace,Yes
Http://opendatacommunities.org/id/metropolitan-district-council/leeds,Leeds City Council,31/08/2017,City Development,Highways  ,Supplies and Services,Books & Audio-Visual Materials,206,19/07/2017,1708-00751,0.00,4.00,R,Amazon UK Marketplace,Yes
Http://opendatacommunities.org/id/metropolitan-district-council/leeds,Leeds City Council,31/08/2017,Children and Families,Partnerships  ,Supplies and Services,Operational Furniture And Equipment,203,20/07/2017,1708-00752,0.00,32.99,R,Amazon UK Marketplace,Yes
Http://opendatacommunities.org/id/metropolitan-district-council/leeds,Leeds City Council,31/08/2017,City Development,Recreation  ,Supplies and Services,Operational Furniture And Equipment,203,20/07/2017,1708-00753,0.00,4.74,R,Amazon UK Marketplace,Yes
Http://opendatacommunities.org/id/metropolitan-district-council/leeds,Leeds City Council,31/08/2017,Children and Families,Safeguarding Targeted & Specialist  ,Supplies and Services,Teaching Materials,202,20/07/2017,1708-00754,0.00,9.61,R,Amazon UK Marketplace,Yes
Http://opendatacommunities.org/id/metropolitan-district-council/leeds,Leeds City Council,31/08/2017,City Development,Libraries  Arts & Heritage  ,Supplies and Services,Books & Audio-Visual Materials,206,20/07/2017,1708-00755,0.00,20.34,R,Amazon UK Marketplace,Yes
Http://opendatacommunities.org/id/metropolitan-district-council/leeds,Leeds City Council,31/08/2017,Children and Families,Safeguarding Targeted & Specialist  ,Supplies and Services,Office Consumables,210,20/07/2017,1708-00756,0.00,31.40,R,Amazon UK Marketplace,Yes
Http://opendatacommunities.org/id/metropolitan-district-council/leeds,Leeds City Council,31/08/2017,Communities and Environment,Benefits  Wlefare And Poverty  ,Supplies and Services,Office Consumables,210,20/07/2017,1708-00757,0.00,59.43,R,Amazon UK Marketplace,Yes
Http://opendatacommunities.org/id/metropolitan-district-council/leeds,Leeds City Council,31/08/2017,Children and Families,Safeguarding Targeted & Specialist  ,Supplies and Services,Teaching Materials,202,20/07/2017,1708-00758,0.00,38.17,R,Amazon UK Marketplace,Yes
Http://opendatacommunities.org/id/metropolitan-district-council/leeds,Leeds City Council,31/08/2017,City Development,Libraries  Arts & Heritage  ,Supplies and Services,Books & Audio-Visual Materials,206,20/07/2017,1708-00759,0.00,8.33,R,Amazon UK Marketplace,Yes
Http://opendatacommunities.org/id/metropolitan-district-council/leeds,Leeds City Council,31/08/2017,City Development,Libraries  Arts & Heritage  ,Supplies and Services,Books & Audio-Visual Materials,206,20/07/2017,1708-00760,0.00,9.95,R,Amazon UK Marketplace,Yes
Http://opendatacommunities.org/id/metropolitan-district-council/leeds,Leeds City Council,31/08/2017,City Development,Libraries  Arts & Heritage  ,Supplies and Services,Books & Audio-Visual Materials,206,20/07/2017,1708-00761,0.00,1.90,R,Amazon UK Marketplace,Yes
Http://opendatacommunities.org/id/metropolitan-district-council/leeds,Leeds City Council,31/08/2017,City Development,Libraries  Arts & Heritage  ,Supplies and Services,Books & Audio-Visual Materials,206,20/07/2017,1708-00762,0.00,29.65,R,Amazon UK Marketplace,Yes
